Service Area,Service Division,Expense Type,Expense Code,Detailed Expense Type,Payment Date,Transaction Number,Amount Exc VAT,Supplier Name
Dedicated Schools Grant BG0015,DSG High Needs Block,Third Party Payments,410037,Rendered by Other Local Authorities,01/06/2021,3874636-2807029498,"30,706.60",SUNDERLAND CITY COUNCIL.
Children and Young Peoples Services,Head of Childrens Social Care,Third Party Payments,440062,Other third party payments E440,01/06/2021,3874632-8446,"2,905.49",ST OSWALD`S HOSPICE LTD.
Children and Young Peoples Services,Head of Childrens Social Care,Third Party Payments,440062,Other third party payments E440,01/06/2021,3874632-8492,"4,565.77",ST OSWALD`S HOSPICE LTD.
Children and Young Peoples Services,Head of Childrens Social Care,Third Party Payments,440062,Other third party payments E440,01/06/2021,3874632-8546,"6,172.02",ST OSWALD`S HOSPICE LTD.
Resources BK0010,Digital and Customer Services,Supplies and Services,342033,Computers and Communications,01/06/2021,3874665-R-64794,"4,066.90",UPNORTH ENGINEERING SERVICES LTD.
Resources BK0010,Digital and Customer Services,Supplies and Services,342051,Computers and Communications,01/06/2021,3874503-90031758,"6,122.07",IVANTI UK LTD.
Children and Young Peoples Services,Head of Early Help Inclusion & Vulnerable Children.,Supplies and Services,342051,Computers and Communications,01/06/2021,208-91436952,"1,103.00",I2N LTD.
Neighbourhoods and Climate Change,Technical Services CM0300,Construction work A908,908105,Construction work,01/06/2021,3874505-25268,501.62,JACK COUPE & SONS LTD T/A COUPE LINE.
"Regeneration, Economy and Growth",Culture Sport and Tourism,Construction work A908,908105,Construction work,01/06/2021,3874477-79847,"28,063.09",FOAMS 4 SPORTS LTD.
Adult and Health Services,Adults Excluded,Supplies and Services,338027,Services,01/06/2021,3874666-VB0023,"1,500.00",REDACTED - PAYMENT TO INDIVIDUAL
Children and Young Peoples Services,Head of Education and Skills,Transport,230034,Contract Hire,01/06/2021,3874655-6-4406-APRIL21,990.00,TONYS TAXIS (A BIRCH).
Children and Young Peoples Services,Head of Education and Skills,Transport,230006,Contract Hire,01/06/2021,3874655-9-A105-APRIL21,"2,263.65",TONYS TAXIS (A BIRCH).
Children and Young Peoples Services,Head of Education and Skills,Transport,230012,Contract Hire,01/06/2021,3874655-11-E057-APRIL21,"1,247.70",TONYS TAXIS (A BIRCH).
Children and Young Peoples Services,Head of Education and Skills,Transport,230012,Contract Hire,01/06/2021,3874655-5-W041-APRIL21,"1,548.60",TONYS TAXIS (A BIRCH).
Children and Young Peoples Services,Head of Education and Skills,Transport,230008,Contract Hire,01/06/2021,3874655-10-E058-APRIL21,"2,508.30",TONYS TAXIS (A BIRCH).
Children and Young Peoples Services,Head of Education and Skills,Transport,230008,Contract Hire,01/06/2021,3874655-2-N055-APRIL20,"1,910.85",TONYS TAXIS (A BIRCH).
Children and Young Peoples Services,Head of Education and Skills,Transport,230008,Contract Hire,01/06/2021,3874399-919,"1,689.80",BEELINE MINI BUSES.
Neighbourhoods and Climate Change,Technical Services CM0300,Third Party Payments,460053,Contract Payments,01/06/2021,3874505-25232,697.17,JACK COUPE & SONS LTD T/A COUPE LINE.
Neighbourhoods and Climate Change,Technical Services CM0300,Third Party Payments,460053,Contract Payments,01/06/2021,3874505-25234,"6,990.54",JACK COUPE & SONS LTD T/A COUPE LINE.
Neighbourhoods and Climate Change,Technical Services CM0300,Third Party Payments,460053,Contract Payments,01/06/2021,3874505-25257,"1,634.23",JACK COUPE & SONS LTD T/A COUPE LINE.
Neighbourhoods and Climate Change,Technical Services CM0300,Third Party Payments,460053,Contract Payments,01/06/2021,3874505-25267,"1,291.53",JACK COUPE & SONS LTD T/A COUPE LINE.
"Regeneration, Economy and Growth",Development and Housing,Supplies and Services,384899,Miscellaneous Expenses,01/06/2021,3874494-ND014/8,"3,084.91",HANDCRAFTED PROJECTS.
Neighbourhoods and Climate Change,Partnerships & Community Engagement Div.,Cap Exp on Grants & Other Financial Assistance (REFCUS),918004,Contributions to other bodies 918004,01/06/2021,3874571-VOUCHER20NB-CHES049,"4,680.00",OUSTON COMMUNITY ASSOCIATION.
"Regeneration, Economy and Growth",Corporate Property and Land,Supplies and Services,304221,Equipment and Materials,01/06/2021,3874491-7642,"9,574.22",GROVE REED JOINERY LTD.
"Regeneration, Economy and Growth",Corporate Property and Land,Supplies and Services,304221,Equipment and Materials,01/06/2021,3874514-0303/00373710,"10,416.76",JT DOVE LTD.
"Regeneration, Economy and Growth",Corporate Property and Land,Supplies and Services,304221,Equipment and Materials,01/06/2021,3874538-0000097356,"1,884.25",MIKROFILL SYSTEMS LTD.
"Regeneration, Economy and Growth",Corporate Property and Land,Supplies and Services,304221,Equipment and Materials,01/06/2021,3874639-593255,744.95,T CROSSLING & CO LTD.
"Regeneration, Economy and Growth",Corporate Property and Land,Supplies and Services,304221,Equipment and Materials,01/06/2021,3874669-6890390889,"12,652.44",VIESSMANN LTD.
"Regeneration, Economy and Growth",Corporate Property and Land,Supplies and Services,304221,Equipment and Materials,01/06/2021,3874419-10497270,"1,103.25",CARPET & FLOORING (TRADING) LTD.
"Regeneration, Economy and Growth",Corporate Property and Land,Supplies and Services,304221,Equipment and Materials,01/06/2021,3874640-JE02175-1-TL-HLB,510.00,T MANNERS & SONS LTD.
"Regeneration, Economy and Growth",Corporate Property and Land,Supplies and Services,304221,Equipment and Materials,01/06/2021,3874514-0108/00373699,635.00,JT DOVE LTD.
"Regeneration, Economy and Growth",Corporate Property and Land,Supplies and Services,304221,Equipment and Materials,01/06/2021,3874601-0000060656,"1,905.30",RINNAI UK LTD.
"Regeneration, Economy and Growth",Corporate Property and Land,Supplies and Services,304221,Equipment and Materials,01/06/2021,3874601-0000060683,"1,905.30",RINNAI UK LTD.
"Regeneration, Economy and Growth",Corporate Property and Land,Supplies and Services,304221,Equipment and Materials,01/06/2021,3874644-P37509,"1,062.76",TERRY GROUP LTD.
Neighbourhoods and Climate Change,Technical Services CM0300,Supplies and Services,304221,Equipment and Materials,01/06/2021,3874385-14426,"1,035.30",APOLLO PRODUCTS LTD.
Neighbourhoods and Climate Change,Technical Services CM0300,Supplies and Services,304221,Equipment and Materials,01/06/2021,3874514-0120/00363175,532.50,JT DOVE LTD.
Neighbourhoods and Climate Change,Technical Services CM0300,Supplies and Services,304221,Equipment and Materials,01/06/2021,3874514-0303/00359728,885.00,JT DOVE LTD.
Neighbourhoods and Climate Change,Technical Services CM0300,Supplies and Services,304221,Equipment and Materials,01/06/2021,3874514-0303/00363609,"1,386.40",JT DOVE LTD.
Neighbourhoods and Climate Change,Technical Services CM0300,Supplies and Services,304221,Equipment and Materials,01/06/2021,3874514-0303/00363611,"2,845.00",JT DOVE LTD.
Neighbourhoods and Climate Change,Technical Services CM0300,Supplies and Services,304221,Equipment and Materials,01/06/2021,3874514-0303/00371133,"2,359.00",JT DOVE LTD.
Neighbourhoods and Climate Change,Technical Services CM0300,Supplies and Services,304221,Equipment and Materials,01/06/2021,3874514-0303/00372447,"3,875.00",JT DOVE LTD.
Neighbourhoods and Climate Change,Technical Services CM0300,Supplies and Services,304221,Equipment and Materials,01/06/2021,3874550-NC1/C859/BW,"6,080.22",NEDCO CONTRACTS (NE) LTD.
Neighbourhoods and Climate Change,Technical Services CM0300,Supplies and Services,304221,Equipment and Materials,01/06/2021,3874641-9043403690,833.48,TARMAC TRADING LTD.
Children and Young Peoples Services,Head of Childrens Social Care,Third Party Payments,425028,Rendered by Voluntary Organisations,01/06/2021,3874628-187,"12,975.00",SPORT WORKS LTD.
"Regeneration, Economy and Growth",Transport and Contracted Services,Supplies and Services,304259,Equipment and Materials,01/06/2021,3874533-0000219460,"1,902.60",MANGAR INTERNATIONAL LTD.
Children and Young Peoples Services,Head of Education and Skills,Supplies and Services,338044,Services,01/06/2021,3874475-CAS-05-2021-306,650.00,FIRST STEPS NURSERY.
Children and Young Peoples Services,Head of Education and Skills,Supplies and Services,338044,Services,01/06/2021,3874482-CAS-05-2021-305,650.00,GIANT STEPS LTD.
Neighbourhoods and Climate Change,Technical Services CM0300,Supplies and Services,304358,Equipment and Materials,01/06/2021,3874423-1817,"4,074.00",CG SIMPSON & SON.
Neighbourhoods and Climate Change,Partnerships & Community Engagement Div.,Supplies and Services,384086,Miscellaneous Expenses,01/06/2021,3874563-VOUCHER20NB-DCTY087,"21,157.00",NORTHERN LEARNING TRUST.
Neighbourhoods and Climate Change,Partnerships & Community Engagement Div.,Supplies and Services,384086,Miscellaneous Expenses,01/06/2021,3874634-VOUCHERMARC01-20,950.00,STANLEY DEAF CLUB.
Resources BK0010,Finance & Transactional Services,Supplies and Services,304999,Equipment and Materials,01/06/2021,3874683-53775,"7,335.00",WIRELESS CCTV LTD.
"Regeneration, Economy and Growth",Culture Sport and Tourism,Supplies and Services,384199,Miscellaneous Expenses,01/06/2021,3874417-154,500.00,REDACTED - PAYMENT TO INDIVIDUAL
"Regeneration, Economy and Growth",Culture Sport and Tourism,Supplies and Services,384199,Miscellaneous Expenses,01/06/2021,3874417-155,"4,500.00",REDACTED - PAYMENT TO INDIVIDUAL
Neighbourhoods and Climate Change,Environmental Services,Supplies and Services,338099,Services,01/06/2021,3874617-SM/261,"2,700.00",SHIRLEY MUIR ASSOCIATES.
Children and Young Peoples Services,Head of Childrens Social Care,Third Party Payments,440999,Other third party payments E440,01/06/2021,3874648-2021/140,"1,350.00",THE FOUNDATION FOR FAMILIES CIC.
"Regeneration, Economy and Growth",Development and Housing,Third Party Payments,440999,Other third party payments E440,01/06/2021,3874597-22020197,"4,283.40",RELIANCE HIGH-TECH LTD.
Children and Young Peoples Services,Head of Childrens Social Care,Third Party Payments,425020,Rendered by Voluntary Organisations,01/06/2021,3874414-017/21,740.00,BUTTERWICK LTD..
Children and Young Peoples Services,Head of Childrens Social Care,Third Party Payments,425020,Rendered by Voluntary Organisations,01/06/2021,3874414-022/21,740.00,BUTTERWICK LTD..
Children and Young Peoples Services,Head of Childrens Social Care,Third Party Payments,425020,Rendered by Voluntary Organisations,01/06/2021,3874414-023/21,740.00,BUTTERWICK LTD..
Children and Young Peoples Services,Head of Childrens Social Care,Third Party Payments,425020,Rendered by Voluntary Organisations,01/06/2021,3874414-026/21,740.00,BUTTERWICK LTD..
Children and Young Peoples Services,Head of Childrens Social Care,Third Party Payments,425020,Rendered by Voluntary Organisations,01/06/2021,3874414-033/21,740.00,BUTTERWICK LTD..
Children and Young Peoples Services,Head of Childrens Social Care,Third Party Payments,425020,Rendered by Voluntary Organisations,01/06/2021,3874414-034/21,740.00,BUTTERWICK LTD..
Children and Young Peoples Services,Head of Childrens Social Care,Third Party Payments,425020,Rendered by Voluntary Organisations,01/06/2021,3874414-073/21,740.00,BUTTERWICK LTD..
Children and Young Peoples Services,Head of Childrens Social Care,Third Party Payments,425020,Rendered by Voluntary Organisations,01/06/2021,3874414-074/21,900.00,BUTTERWICK LTD..
"Regeneration, Economy and Growth",Corporate Property and Land,Third Party Payments,430100,Rendered by Private Contractors,01/06/2021,3874603-63718,"3,825.00",RJ UTILITY SERVICES LTD.
"Regeneration, Economy and Growth",Corporate Property and Land,Third Party Payments,430100,Rendered by Private Contractors,01/06/2021,3874570-10911-01,"1,128.38",OPUS BUILDING SERVICES LTD.
Neighbourhoods and Climate Change,Technical Services CM0300,Third Party Payments,430100,Rendered by Private Contractors,01/06/2021,3874443-SI000074,"4,653.00",CRL SURVEYS LTD.
Neighbourhoods and Climate Change,Technical Services CM0300,Third Party Payments,430100,Rendered by Private Contractors,01/06/2021,3874501-HSC00795,"1,840.00",HS CARLSTEEL ENGINEERING LTD.
Neighbourhoods and Climate Change,Technical Services CM0300,Third Party Payments,430100,Rendered by Private Contractors,01/06/2021,3874544-5145,960.00,N FLETCHER.
Children and Young Peoples Services,Head of Childrens Social Care,Transport,240045,Car allowances E240,01/06/2021,3874637-10987,"33,792.17",SUPPORTIVE SRC LTD.
Children and Young Peoples Services,Head of Childrens Social Care,Transport,240045,Car allowances E240,01/06/2021,3874637-10986,"17,623.08",SUPPORTIVE SRC LTD.
Resources BK0010,Finance & Transactional Services,Supplies and Services,340001,Postages E340,01/06/2021,3874605-9062912924,"12,176.41",ROYAL MAIL GROUP PLC.
Resources BK0010,Digital and Customer Services,Supplies and Services,332029,Printing Stationery and Gen Off Exps,01/06/2021,3874587-693981,"9,762.00",POTTS PRINTERS LTD.
Resources BK0010,Digital and Customer Services,Supplies and Services,332029,Printing Stationery and Gen Off Exps,01/06/2021,3874594-19014,"2,400.00",RADECAL SIGNS GRAPHICS & ADVERTISING.
Resources BK0010,Digital and Customer Services,Supplies and Services,332029,Printing Stationery and Gen Off Exps,01/06/2021,3874594-19016,"2,500.00",RADECAL SIGNS GRAPHICS & ADVERTISING.
Resources BK0010,Digital and Customer Services,Supplies and Services,332029,Printing Stationery and Gen Off Exps,01/06/2021,3874594-19017,"7,500.00",RADECAL SIGNS GRAPHICS & ADVERTISING.
Children and Young Peoples Services,Head of Childrens Social Care,Third Party Payments,425021,Rendered by Voluntary Organisations,01/06/2021,3874674-2,"3,800.00",WA REWCASTLE.
Adult and Health Services,Head of Adults,Transport,230005,Contract Hire,01/06/2021,3874655-3-CLS045-APRIL21,889.20,TONYS TAXIS (A BIRCH).
Neighbourhoods and Climate Change,Environmental Services,Transport,230005,Contract Hire,01/06/2021,3874440-20356,"3,960.00",CP DAVIDSON & SONS LTD.
Adult and Health Services,Head of Adults,Transport,230005,Contract Hire,01/06/2021,3874655-15-SED121-APRIL21,"1,512.00",TONYS TAXIS (A BIRCH).
Neighbourhoods and Climate Change,Technical Services CM0300,Stock A926,926900,Stock in hand-Inventory system,01/06/2021,3874514-0113/00373701,"1,125.48",JT DOVE LTD.
Neighbourhoods and Climate Change,Technical Services CM0300,Stock A926,926900,Stock in hand-Inventory system,01/06/2021,3874574-XL270985,658.00,PARK ELECTRICAL DISTRIBUTORS LTD.
Neighbourhoods and Climate Change,Technical Services CM0300,Stock A926,926900,Stock in hand-Inventory system,01/06/2021,3874641-9043470243,716.07,TARMAC TRADING LTD.
Neighbourhoods and Climate Change,Environmental Services,Transport,210057,Repair and Maintenance of Vehicles,01/06/2021,3874447-96406825,545.44,DENNIS EAGLE LTD T/A TERBERG MATEC (UK) LTD.
Neighbourhoods and Climate Change,Environmental Services,Transport,210057,Repair and Maintenance of Vehicles,01/06/2021,3874447-96407008,"1,398.33",DENNIS EAGLE LTD T/A TERBERG MATEC (UK) LTD.
Neighbourhoods and Climate Change,Environmental Services,Transport,210057,Repair and Maintenance of Vehicles,01/06/2021,3874448-DE11406666,676.69,DENNIS EAGLE LTD.
Neighbourhoods and Climate Change,Environmental Services,Transport,210057,Repair and Maintenance of Vehicles,01/06/2021,3874448-DE11407435,686.35,DENNIS EAGLE LTD.
Neighbourhoods and Climate Change,Environmental Services,Transport,210057,Repair and Maintenance of Vehicles,01/06/2021,3874448-DE11407436,685.12,DENNIS EAGLE LTD.
Neighbourhoods and Climate Change,Environmental Services,Transport,210057,Repair and Maintenance of Vehicles,01/06/2021,3874488-SI-00000895,853.88,GRAYS MACHINERY LTD.
Neighbourhoods and Climate Change,Environmental Services,Transport,210057,Repair and Maintenance of Vehicles,01/06/2021,3874555-34457,544.60,NIGEL BUCHANAN T/A PREMIER PARTS UK LTD.
Neighbourhoods and Climate Change,Environmental Services,Transport,210057,Repair and Maintenance of Vehicles,01/06/2021,3874555-34484,"2,000.00",NIGEL BUCHANAN T/A PREMIER PARTS UK LTD.
Children and Young Peoples Services,Head of Childrens Social Care,Third Party Payments,440038,Other third party payments E440,02/06/2021,3875564-5564,"14,880.00",ROC FAMILY SUPPORT LTD.
Children and Young Peoples Services,Head of Early Help Inclusion & Vulnerable Children.,Supplies and Services,384302,Miscellaneous Expenses,02/06/2021,3875584-013,"5,200.00",SKILL MILL PARTNERSHIP LTD.
"Regeneration, Economy and Growth",Development and Housing,Supplies and Services,336005,Advertising E336,02/06/2021,3875610-14273,556.50,TEESDALE MERCURY LTD.
"Regeneration, Economy and Growth",Business Durham CL0850,Employees,080025,Agency Staff,02/06/2021,3875566-12894,"4,522.66",RTC NORTH LTD.
Resources - C A C,COVID19 - Resources - CAC,Supplies and Services,324117,Provisions E324,02/06/2021,3875391-9002266,520.43,FREEMAN CATERING BUTCHERS LTD.
"Regeneration, Economy and Growth",Culture Sport and Tourism,Premises,145023,Cleaning and Domestic Supplies,02/06/2021,3875408-06/124180,743.60,GREENHAM TRADING LTD.
Resources BK0010,Digital and Customer Services,Vehicles Equipment Furniture and Fittings,912701,Computer equipment,02/06/2021,3875655-KZ35048,"85,950.00",XMA LTD.
Resources BK0010,Finance & Transactional Services,Supplies and Services,342051,Computers and Communications,02/06/2021,3875521-00026910,645.00,NCC SERVICES LTD.
Resources BK0010,Finance & Transactional Services,Supplies and Services,342051,Computers and Communications,02/06/2021,3875521-00026913,645.00,NCC SERVICES LTD.
Neighbourhoods and Climate Change,Environmental Services,Construction work A908,908105,Construction work,02/06/2021,3875603-136426,"3,236.00",SWITCHSHOP LTD.
"Regeneration, Economy and Growth",Development and Housing,Construction work A908,908105,Construction work,02/06/2021,3875578-22750,"63,213.73",SEYMOUR (CIVIL ENGINEERING CONTRACTORS) LTD.
"Regeneration, Economy and Growth",Corporate Property and Land,Construction work A908,908105,Construction work,02/06/2021,3875244-90324128,"1,860.00",APEX ACOUSTICS LTD.
Children and Young Peoples Services,Head of Education and Skills,Supplies and Services,338027,Services,02/06/2021,3875600-84/21,550.00,REDACTED - PAYMENT TO INDIVIDUAL
Children and Young Peoples Services,Head of Education and Skills,Transport,230034,Contract Hire,02/06/2021,3875283-BIL0239,"2,318.00",CA MUSGROVE.
Children and Young Peoples Services,Head of Education and Skills,Transport,230034,Contract Hire,02/06/2021,3875231-9-4422,"1,273.00",A & C TAXIS.
Children and Young Peoples Services,Head of Education and Skills,Transport,230034,Contract Hire,02/06/2021,3875499-AT237MAY21,949.00,MR AG WILSON T/A ALAN`S TAXIS (DURHAM CITY).
Children and Young Peoples Services,Head of Education and Skills,Transport,230034,Contract Hire,02/06/2021,3875502-174,"1,140.00",MR JOHN ALLINSON T/A AALPHA TAXIS.
Children and Young Peoples Services,Head of Education and Skills,Transport,230035,Contract Hire,02/06/2021,3875502-175,845.12,MR JOHN ALLINSON T/A AALPHA TAXIS.
Children and Young Peoples Services,Head of Education and Skills,Transport,230035,Contract Hire,02/06/2021,3875501-HERM05-21,"1,451.60",MR CT WALKER T/A CW TAXIS.
Children and Young Peoples Services,Head of Education and Skills,Transport,230007,Contract Hire,02/06/2021,3875402-76232,"8,110.34",GO GATESHEAD LTD.
Children and Young Peoples Services,Head of Education and Skills,Transport,230007,Contract Hire,02/06/2021,3875501-DJS05-21,"1,721.21",MR CT WALKER T/A CW TAXIS.
Children and Young Peoples Services,Head of Education and Skills,Transport,230007,Contract Hire,02/06/2021,3875532-6722,"3,612.09",NORTH EAST COACHWAYS LTD.
Children and Young Peoples Services,Head of Education and Skills,Transport,230007,Contract Hire,02/06/2021,3875292-06-3445,"1,154.00",CHAPMAN TRAVEL.
Children and Young Peoples Services,Head of Education and Skills,Transport,230007,Contract Hire,02/06/2021,3875291-063,735.60,CHANNER`S CABS.
Children and Young Peoples Services,Head of Education and Skills,Transport,230007,Contract Hire,02/06/2021,3875406-9-2021,"2,720.00",GRAHAM WILLIAMS T/A BUS 2 MINIBUS HIRE.
Children and Young Peoples Services,Head of Education and Skills,Transport,230007,Contract Hire,02/06/2021,3875272-102G,"2,128.00",BOBS TAXIS.
Children and Young Peoples Services,Head of Education and Skills,Transport,230007,Contract Hire,02/06/2021,3875458-010521,"1,798.99",KEVIN EDMUNDSON.
Children and Young Peoples Services,Head of Education and Skills,Transport,230007,Contract Hire,02/06/2021,3875364-1116,988.00,EAST DURHAM TAXIS.
Children and Young Peoples Services,Head of Education and Skills,Transport,230007,Contract Hire,02/06/2021,3875301-C/11253,"3,534.00",COCHRANES T/A KELVIN TRAVEL.
Children and Young Peoples Services,Head of Education and Skills,Transport,230007,Contract Hire,02/06/2021,3875499-AT238,579.00,MR AG WILSON T/A ALAN`S TAXIS (DURHAM CITY).
Children and Young Peoples Services,Head of Education and Skills,Transport,230007,Contract Hire,02/06/2021,3875364-1112,"2,470.00",EAST DURHAM TAXIS.
Children and Young Peoples Services,Head of Education and Skills,Transport,230007,Contract Hire,02/06/2021,3875272-102H,"2,964.00",BOBS TAXIS.
Children and Young Peoples Services,Head of Education and Skills,Transport,230007,Contract Hire,02/06/2021,3875502-172,"1,102.00",MR JOHN ALLINSON T/A AALPHA TAXIS.
Children and Young Peoples Services,Head of Education and Skills,Transport,230007,Contract Hire,02/06/2021,3875393-102344,"1,653.00",G & P JOHNSON LTD T/A NIGHTINGALE COACHES.
Children and Young Peoples Services,Head of Education and Skills,Transport,230007,Contract Hire,02/06/2021,3875393-102345-MAY,"2,097.40",G & P JOHNSON LTD T/A NIGHTINGALE COACHES.
Children and Young Peoples Services,Head of Education and Skills,Transport,230007,Contract Hire,02/06/2021,3875301-C/11252,"7,082.44",COCHRANES T/A KELVIN TRAVEL.
Children and Young Peoples Services,Head of Education and Skills,Transport,230007,Contract Hire,02/06/2021,3875647-16142,770.25,WEARDALE MOTOR SERVICES LTD.
Children and Young Peoples Services,Head of Education and Skills,Transport,230007,Contract Hire,02/06/2021,3875532-6724,"2,204.00",NORTH EAST COACHWAYS LTD.
Children and Young Peoples Services,Head of Education and Skills,Transport,230007,Contract Hire,02/06/2021,3875532-6725,"2,489.00",NORTH EAST COACHWAYS LTD.
Children and Young Peoples Services,Head of Education and Skills,Transport,230007,Contract Hire,02/06/2021,3875532-6726,"2,584.00",NORTH EAST COACHWAYS LTD.
Children and Young Peoples Services,Head of Education and Skills,Transport,230003,Contract Hire,02/06/2021,3875592-56843,"2,964.00",STANLEY TRAVEL (NORTH EAST) LTD.
Children and Young Peoples Services,Head of Education and Skills,Transport,230003,Contract Hire,02/06/2021,3875592-56844,"3,515.00",STANLEY TRAVEL (NORTH EAST) LTD.
Children and Young Peoples Services,Head of Education and Skills,Transport,230003,Contract Hire,02/06/2021,3875592-56845,"3,705.00",STANLEY TRAVEL (NORTH EAST) LTD.
Children and Young Peoples Services,Head of Education and Skills,Transport,230003,Contract Hire,02/06/2021,3875592-56846,"3,629.00",STANLEY TRAVEL (NORTH EAST) LTD.
Children and Young Peoples Services,Head of Education and Skills,Transport,230003,Contract Hire,02/06/2021,3875592-56847,"3,306.00",STANLEY TRAVEL (NORTH EAST) LTD.
Children and Young Peoples Services,Head of Education and Skills,Transport,230003,Contract Hire,02/06/2021,3875532-6728,"3,534.00",NORTH EAST COACHWAYS LTD.
Children and Young Peoples Services,Head of Education and Skills,Transport,230003,Contract Hire,02/06/2021,3875301-C/11254,"2,774.00",COCHRANES T/A KELVIN TRAVEL.
Children and Young Peoples Services,Head of Education and Skills,Transport,230003,Contract Hire,02/06/2021,3875301-C/11255,"2,935.50",COCHRANES T/A KELVIN TRAVEL.
Children and Young Peoples Services,Head of Education and Skills,Transport,230003,Contract Hire,02/06/2021,3875592-56850,"4,085.00",STANLEY TRAVEL (NORTH EAST) LTD.
Children and Young Peoples Services,Head of Education and Skills,Transport,230003,Contract Hire,02/06/2021,3875592-56848,"9,804.00",STANLEY TRAVEL (NORTH EAST) LTD.
Children and Young Peoples Services,Head of Education and Skills,Transport,230009,Contract Hire,02/06/2021,3875249-28521,"2,043.83",AVALON TAXIS.
Children and Young Peoples Services,Head of Education and Skills,Transport,230009,Contract Hire,02/06/2021,3875232-MAY01-7357,950.00,A & P TAXIS.
Children and Young Peoples Services,Head of Education and Skills,Transport,230009,Contract Hire,02/06/2021,3875647-16140,"1,722.89",WEARDALE MOTOR SERVICES LTD.
Children and Young Peoples Services,Head of Education and Skills,Transport,230006,Contract Hire,02/06/2021,3875292-09-F828,918.00,CHAPMAN TRAVEL.
Children and Young Peoples Services,Head of Education and Skills,Transport,230006,Contract Hire,02/06/2021,3875232-MAY02-F856,"2,635.00",A & P TAXIS.
Children and Young Peoples Services,Head of Education and Skills,Transport,230006,Contract Hire,02/06/2021,3875241-18,"2,036.40",ANDREW ROBSON`S TAXI.
Children and Young Peoples Services,Head of Education and Skills,Transport,230006,Contract Hire,02/06/2021,3875292-20-F748,"1,593.00",CHAPMAN TRAVEL.
Children and Young Peoples Services,Head of Education and Skills,Transport,230006,Contract Hire,02/06/2021,3875328-479,"1,074.00",DA TRAVEL.
Children and Young Peoples Services,Head of Education and Skills,Transport,230006,Contract Hire,02/06/2021,3875328-480,"1,108.00",DA TRAVEL.
Children and Young Peoples Services,Head of Education and Skills,Transport,230006,Contract Hire,02/06/2021,3875330-DPHCMAY2101,"1,178.00",DALELINK PRIVATE HIRE.
Children and Young Peoples Services,Head of Education and Skills,Transport,230006,Contract Hire,02/06/2021,3875332-INV-0513,682.00,DARREN IRVING T/A @CAB TAXIS.
Children and Young Peoples Services,Head of Education and Skills,Transport,230006,Contract Hire,02/06/2021,3875364-1114,"1,254.00",EAST DURHAM TAXIS.
Children and Young Peoples Services,Head of Education and Skills,Transport,230006,Contract Hire,02/06/2021,3875448-F80115,569.25,JOVIAL PRIVATE HIRE.
Children and Young Peoples Services,Head of Education and Skills,Transport,230006,Contract Hire,02/06/2021,3875502-173,609.00,MR JOHN ALLINSON T/A AALPHA TAXIS.
Children and Young Peoples Services,Head of Education and Skills,Transport,230006,Contract Hire,02/06/2021,3875502-176,843.60,MR JOHN ALLINSON T/A AALPHA TAXIS.
Children and Young Peoples Services,Head of Education and Skills,Transport,230006,Contract Hire,02/06/2021,3875508-INV0036,870.00,MR S HUSSAIN T/A EMPIRE CARS.
Children and Young Peoples Services,Head of Education and Skills,Transport,230006,Contract Hire,02/06/2021,3875438-0806,"2,035.00",JACKSON`S TAXI.
Children and Young Peoples Services,Head of Education and Skills,Transport,230006,Contract Hire,02/06/2021,3875624-0002235,"1,566.00",TONY RIDLEY T/A COLORS TAXIS LTD.
Children and Young Peoples Services,Head of Education and Skills,Transport,230010,Contract Hire,02/06/2021,3875438-0809,"1,384.90",JACKSON`S TAXI.
Children and Young Peoples Services,Head of Education and Skills,Transport,230012,Contract Hire,02/06/2021,3875501-CH-PK-05-21,"1,723.30",MR CT WALKER T/A CW TAXIS.
Children and Young Peoples Services,Head of Education and Skills,Transport,230012,Contract Hire,02/06/2021,3875364-1113,"2,166.00",EAST DURHAM TAXIS.
Children and Young Peoples Services,Head of Education and Skills,Transport,230012,Contract Hire,02/06/2021,3875393-102345,"1,984.17",G & P JOHNSON LTD T/A NIGHTINGALE COACHES.
Children and Young Peoples Services,Head of Education and Skills,Transport,230012,Contract Hire,02/06/2021,3875277-9MAY21,"2,351.52",BRIAN PURVIS T/A BJ`S TAXIS.
Children and Young Peoples Services,Head of Education and Skills,Transport,230012,Contract Hire,02/06/2021,3875291-062,"1,938.00",CHANNER`S CABS.
Children and Young Peoples Services,Head of Education and Skills,Transport,230016,Contract Hire,02/06/2021,3875282-S02102,"1,349.00",C & R TAXIS.
Children and Young Peoples Services,Head of Education and Skills,Transport,230008,Contract Hire,02/06/2021,3875247-31,"3,515.00",AUCKLAND TRAVEL.
Children and Young Peoples Services,Head of Education and Skills,Transport,230008,Contract Hire,02/06/2021,3875256-SMITH1MAY21,"1,373.87",BEELINE PRIVATE HIRE.
Children and Young Peoples Services,Head of Education and Skills,Transport,230008,Contract Hire,02/06/2021,3875256-SMITH1MAY21-N047,758.00,BEELINE PRIVATE HIRE.
Children and Young Peoples Services,Head of Education and Skills,Transport,230008,Contract Hire,02/06/2021,3875501-EL-1-05-21,"1,888.60",MR CT WALKER T/A CW TAXIS.
Children and Young Peoples Services,Head of Education and Skills,Transport,230008,Contract Hire,02/06/2021,3875282-W046020,"2,297.48",C & R TAXIS.
Children and Young Peoples Services,Head of Education and Skills,Transport,230008,Contract Hire,02/06/2021,3875326-DI202105,"1,830.00",D&I TAXIS.
Children and Young Peoples Services,Head of Education and Skills,Transport,230008,Contract Hire,02/06/2021,3875327-1730,"1,558.00",DA TAXIS.
Children and Young Peoples Services,Head of Education and Skills,Transport,230008,Contract Hire,02/06/2021,3875327-1731,"2,128.00",DA TAXIS.
Children and Young Peoples Services,Head of Education and Skills,Transport,230008,Contract Hire,02/06/2021,3875364-1115,"3,230.00",EAST DURHAM TAXIS.
Children and Young Peoples Services,Head of Education and Skills,Transport,230008,Contract Hire,02/06/2021,3875269-E013-MAY,"1,781.44",BLACKHALL TAXIS.
Children and Young Peoples Services,Head of Education and Skills,Transport,230008,Contract Hire,02/06/2021,3875624-0002237,"2,318.00",TONY RIDLEY T/A COLORS TAXIS LTD.
Children and Young Peoples Services,Head of Education and Skills,Transport,230008,Contract Hire,02/06/2021,3875334-3636,"2,536.31",DAVES MINIBUSES.
Children and Young Peoples Services,Head of Education and Skills,Transport,230008,Contract Hire,02/06/2021,3875334-3637,"1,900.00",DAVES MINIBUSES.
Children and Young Peoples Services,Head of Education and Skills,Transport,230008,Contract Hire,02/06/2021,3875364-1110,"3,484.60",EAST DURHAM TAXIS.
Children and Young Peoples Services,Head of Education and Skills,Transport,230008,Contract Hire,02/06/2021,3875438-0807,"1,776.50",JACKSON`S TAXI.
Children and Young Peoples Services,Head of Education and Skills,Transport,230008,Contract Hire,02/06/2021,3875276-BBZ00372,"1,158.62",BREZ`S TAXIS.
Children and Young Peoples Services,Head of Education and Skills,Transport,230008,Contract Hire,02/06/2021,3875276-BZ00371,"1,128.98",BREZ`S TAXIS.
Children and Young Peoples Services,Head of Education and Skills,Transport,230008,Contract Hire,02/06/2021,3875479-71,"1,209.35",MALCOLM CARR T/A CARLY CABS.
Children and Young Peoples Services,Head of Education and Skills,Transport,230008,Contract Hire,02/06/2021,3875345-05/2021-A153,"3,363.00",DIANE GOOCH T/A COLLINS TAXIS.
Children and Young Peoples Services,Head of Education and Skills,Transport,230008,Contract Hire,02/06/2021,3875393-102343,"3,515.00",G & P JOHNSON LTD T/A NIGHTINGALE COACHES.
Children and Young Peoples Services,Head of Education and Skills,Transport,230008,Contract Hire,02/06/2021,3875508-INV0039,"1,553.94",MR S HUSSAIN T/A EMPIRE CARS.
Children and Young Peoples Services,Head of Education and Skills,Transport,230008,Contract Hire,02/06/2021,3875249-N325-AY21,"2,040.60",AVALON TAXIS.
Children and Young Peoples Services,Head of Education and Skills,Transport,230008,Contract Hire,02/06/2021,3875282-W030020,"2,128.00",C & R TAXIS.
Children and Young Peoples Services,Head of Education and Skills,Transport,230008,Contract Hire,02/06/2021,3875327-1732,"1,645.78",DA TAXIS.
Children and Young Peoples Services,Head of Education and Skills,Transport,230008,Contract Hire,02/06/2021,3875327-1733,"1,605.12",DA TAXIS.
Children and Young Peoples Services,Head of Education and Skills,Transport,230008,Contract Hire,02/06/2021,3875501-OAK-1-05-21,"1,915.20",MR CT WALKER T/A CW TAXIS.
Children and Young Peoples Services,Head of Education and Skills,Transport,230008,Contract Hire,02/06/2021,3875501-OAK-2-05-21,"2,257.20",MR CT WALKER T/A CW TAXIS.
Children and Young Peoples Services,Head of Education and Skills,Transport,230008,Contract Hire,02/06/2021,3875624-0002238,"1,843.00",TONY RIDLEY T/A COLORS TAXIS LTD.
Children and Young Peoples Services,Head of Education and Skills,Transport,230008,Contract Hire,02/06/2021,3875647-16135,"1,352.91",WEARDALE MOTOR SERVICES LTD.
Children and Young Peoples Services,Head of Education and Skills,Transport,230008,Contract Hire,02/06/2021,3875247-32,"2,546.00",AUCKLAND TRAVEL.
Children and Young Peoples Services,Head of Education and Skills,Transport,230008,Contract Hire,02/06/2021,3875247-33,"2,394.00",AUCKLAND TRAVEL.
Children and Young Peoples Services,Head of Education and Skills,Transport,230008,Contract Hire,02/06/2021,3875283-BIL0238,990.72,CA MUSGROVE.
Children and Young Peoples Services,Head of Education and Skills,Transport,230008,Contract Hire,02/06/2021,3875307-1722,"1,892.40",CONNORS MINI BUSES.*
Children and Young Peoples Services,Head of Education and Skills,Transport,230008,Contract Hire,02/06/2021,3875307-1723,"2,203.43",CONNORS MINI BUSES.*
Children and Young Peoples Services,Head of Education and Skills,Transport,230008,Contract Hire,02/06/2021,3875307-1724,"1,951.68",CONNORS MINI BUSES.*
Children and Young Peoples Services,Head of Education and Skills,Transport,230008,Contract Hire,02/06/2021,3875307-1725,"2,475.89",CONNORS MINI BUSES.*
Children and Young Peoples Services,Head of Education and Skills,Transport,230008,Contract Hire,02/06/2021,3875334-3634,"2,200.68",DAVES MINIBUSES.
Children and Young Peoples Services,Head of Education and Skills,Transport,230008,Contract Hire,02/06/2021,3875334-3635,"1,677.24",DAVES MINIBUSES.
Children and Young Peoples Services,Head of Education and Skills,Transport,230008,Contract Hire,02/06/2021,3875334-3639,"1,897.20",DAVES MINIBUSES.
Children and Young Peoples Services,Head of Education and Skills,Transport,230008,Contract Hire,02/06/2021,3875364-1108,"2,448.00",EAST DURHAM TAXIS.
Children and Young Peoples Services,Head of Education and Skills,Transport,230008,Contract Hire,02/06/2021,3875393-102341,"2,510.52",G & P JOHNSON LTD T/A NIGHTINGALE COACHES.
Children and Young Peoples Services,Head of Education and Skills,Transport,230008,Contract Hire,02/06/2021,3875438-0808,"2,307.60",JACKSON`S TAXI.
Children and Young Peoples Services,Head of Education and Skills,Transport,230008,Contract Hire,02/06/2021,3875448-E00516,"1,862.64",JOVIAL PRIVATE HIRE.
Children and Young Peoples Services,Head of Education and Skills,Transport,230008,Contract Hire,02/06/2021,3875448-M00937,"1,481.40",JOVIAL PRIVATE HIRE.
Children and Young Peoples Services,Head of Education and Skills,Transport,230008,Contract Hire,02/06/2021,3875448-M01538,"1,900.62",JOVIAL PRIVATE HIRE.
Children and Young Peoples Services,Head of Education and Skills,Transport,230008,Contract Hire,02/06/2021,3875448-M01737,876.06,JOVIAL PRIVATE HIRE.
Children and Young Peoples Services,Head of Education and Skills,Transport,230008,Contract Hire,02/06/2021,3875501-DT-1-05-21,800.12,MR CT WALKER T/A CW TAXIS.
Children and Young Peoples Services,Head of Education and Skills,Transport,230008,Contract Hire,02/06/2021,3875393-102340,"2,886.94",G & P JOHNSON LTD T/A NIGHTINGALE COACHES.
Children and Young Peoples Services,Head of Education and Skills,Transport,230008,Contract Hire,02/06/2021,3875438-0805,"2,604.71",JACKSON`S TAXI.
Children and Young Peoples Services,Head of Education and Skills,Transport,230008,Contract Hire,02/06/2021,3875282-W112023,"1,748.00",C & R TAXIS.
Children and Young Peoples Services,Head of Education and Skills,Transport,230008,Contract Hire,02/06/2021,3875328-482,"2,388.70",DA TRAVEL.
Neighbourhoods and Climate Change,Technical Services CM0300,Third Party Payments,460224,Contract Payments,02/06/2021,3875431-Q-84019,"4,399.90",INNOVYZE LTD.
Neighbourhoods and Climate Change,Technical Services CM0300,Third Party Payments,460224,Contract Payments,02/06/2021,3875536-915001640,"4,600.00",NORTHUMBRIAN WATER LTD.
"Regeneration, Economy and Growth",Business Durham CL0850,Supplies and Services,384899,Miscellaneous Expenses,02/06/2021,3875233-DBRG-06-2021-01,"1,012.50",A1 STAGE.
"Regeneration, Economy and Growth",Business Durham CL0850,Supplies and Services,384899,Miscellaneous Expenses,02/06/2021,3875233-DBRG-06-2021-02,"1,026.00",A1 STAGE.
"Regeneration, Economy and Growth",Business Durham CL0850,Supplies and Services,384899,Miscellaneous Expenses,02/06/2021,3875233-DBRG-06-2021-03,900.00,A1 STAGE.
"Regeneration, Economy and Growth",Business Durham CL0850,Supplies and Services,384899,Miscellaneous Expenses,02/06/2021,3875233-DBRG-06-2021-04,900.00,A1 STAGE.
"Regeneration, Economy and Growth",Business Durham CL0850,Supplies and Services,384899,Miscellaneous Expenses,02/06/2021,3875233-DBRG-06-2021-05,900.00,A1 STAGE.
"Regeneration, Economy and Growth",Business Durham CL0850,Supplies and Services,384899,Miscellaneous Expenses,02/06/2021,3875233-DBRG-06-2021-06,787.50,A1 STAGE.
"Regeneration, Economy and Growth",Business Durham CL0850,Supplies and Services,384899,Miscellaneous Expenses,02/06/2021,3875233-DBRG-06-2021-07,787.50,A1 STAGE.
"Regeneration, Economy and Growth",Business Durham CL0850,Supplies and Services,384899,Miscellaneous Expenses,02/06/2021,3875233-DBRG-06-2021-08,900.00,A1 STAGE.
"Regeneration, Economy and Growth",Business Durham CL0850,Supplies and Services,384899,Miscellaneous Expenses,02/06/2021,3875233-DBRG-06-2021-09,787.50,A1 STAGE.
"Regeneration, Economy and Growth",Business Durham CL0850,Supplies and Services,384899,Miscellaneous Expenses,02/06/2021,3875233-DBRG-06-2021-10,"1,350.00",A1 STAGE.
"Regeneration, Economy and Growth",Business Durham CL0850,Supplies and Services,384899,Miscellaneous Expenses,02/06/2021,3875298-DBRG-05-2021-117,"4,912.50",CLEAN BEAN (NE) LTD.
"Regeneration, Economy and Growth",Business Durham CL0850,Supplies and Services,384899,Miscellaneous Expenses,02/06/2021,3875354-DBRG-06-2021-12,518.10,DREAM BIG.
"Regeneration, Economy and Growth",Business Durham CL0850,Supplies and Services,384899,Miscellaneous Expenses,02/06/2021,3875356-DBRG-05-2021-132,989.25,DURHAM MICROPUB LTD T/A THE STATION HOUSE.
"Regeneration, Economy and Growth",Business Durham CL0850,Supplies and Services,384899,Miscellaneous Expenses,02/06/2021,3875410-DBRG-05-2021-129,"10,586.81",GT COATINGS LTD.
"Regeneration, Economy and Growth",Business Durham CL0850,Supplies and Services,384899,Miscellaneous Expenses,02/06/2021,3875418-DBRG-05-2021-134,"12,827.25",HEADLAM LEISURE LTD.
"Regeneration, Economy and Growth",Business Durham CL0850,Supplies and Services,384899,Miscellaneous Expenses,02/06/2021,3875418-DBRG-05-2021-135,"2,350.50",HEADLAM LEISURE LTD.
"Regeneration, Economy and Growth",Business Durham CL0850,Supplies and Services,384899,Miscellaneous Expenses,02/06/2021,3875418-DBRG-05-2021-136,"1,165.50",HEADLAM LEISURE LTD.
"Regeneration, Economy and Growth",Business Durham CL0850,Supplies and Services,384899,Miscellaneous Expenses,02/06/2021,3875452-DBRG-06-2021-25,"4,500.00",KAKHKI INTERNATIONAL LAW OFFICE LTD.
"Regeneration, Economy and Growth",Business Durham CL0850,Supplies and Services,384899,Miscellaneous Expenses,02/06/2021,3875455-DBRG-05-2021-127,"1,687.43",KATHRYN HUME T/A FORGET ME NOT.
"Regeneration, Economy and Growth",Business Durham CL0850,Supplies and Services,384899,Miscellaneous Expenses,02/06/2021,3875469-DBRG-05-2021-137,"4,687.50",LINGOTOT LTD T/A LINGOTOT TYNE & WEAR.
"Regeneration, Economy and Growth",Business Durham CL0850,Supplies and Services,384899,Miscellaneous Expenses,02/06/2021,3875523-DBRG-05-2021-118,"20,250.00",NEDCO CONTRACTS (NE) LTD.
"Regeneration, Economy and Growth",Business Durham CL0850,Supplies and Services,384899,Miscellaneous Expenses,02/06/2021,3875540-DBRG-05-2021-130,"6,232.50",ONE SPORTS WAREHOUSE LTD.
"Regeneration, Economy and Growth",Business Durham CL0850,Supplies and Services,384899,Miscellaneous Expenses,02/06/2021,3875549-DBRG-06-2021-18,"12,693.59",PRAGMATIC LTD.
"Regeneration, Economy and Growth",Business Durham CL0850,Supplies and Services,384899,Miscellaneous Expenses,02/06/2021,3875592-DBRG-05-2021-131,"18,750.00",STANLEY TRAVEL (NORTH EAST) LTD.
"Regeneration, Economy and Growth",Business Durham CL0850,Supplies and Services,384899,Miscellaneous Expenses,02/06/2021,3875601-DBRG-06-2021-19,"20,640.00",SWADDLE MICRO BREWERY LTD T/A BLACK STORM BREWERY.
"Regeneration, Economy and Growth",Business Durham CL0850,Supplies and Services,384899,Miscellaneous Expenses,02/06/2021,3875601-DBRG-06-2021-20,"5,625.00",SWADDLE MICRO BREWERY LTD T/A BLACK STORM BREWERY.
"Regeneration, Economy and Growth",Business Durham CL0850,Supplies and Services,384899,Miscellaneous Expenses,02/06/2021,3875602-DBRG-06-2021-26,"6,631.75",SWEETHART LTD.
"Regeneration, Economy and Growth",Business Durham CL0850,Supplies and Services,384899,Miscellaneous Expenses,02/06/2021,3875611-DBRG-06-2021-23,"4,113.75",THE CHERRY TREE OUSTON LTD.
"Regeneration, Economy and Growth",Business Durham CL0850,Supplies and Services,384899,Miscellaneous Expenses,02/06/2021,3875617-DBRG-05-2021-119,"12,750.00",THE QUARRY BURN GUEST HOUSE & RESTAURANT LTD.
"Regeneration, Economy and Growth",Business Durham CL0850,Supplies and Services,384899,Miscellaneous Expenses,02/06/2021,3875619-DBRG-05-2021-124,"1,067.11",THE STABLES RESTAURANT.
"Regeneration, Economy and Growth",Business Durham CL0850,Supplies and Services,384899,Miscellaneous Expenses,02/06/2021,3875619-DBRG-05-2021-125,824.25,THE STABLES RESTAURANT.
"Regeneration, Economy and Growth",Business Durham CL0850,Supplies and Services,384899,Miscellaneous Expenses,02/06/2021,3875619-DBRG-05-2021-126,746.25,THE STABLES RESTAURANT.
"Regeneration, Economy and Growth",Development and Housing,Cap Exp on Grants & Other Financial Assistance (REFCUS),918004,Contributions to other bodies 918004,02/06/2021,3875637-RED-06-2021-015,"4,608.00",VALENTINES RESTAURANT LTD.
"Regeneration, Economy and Growth",Corporate Property and Land,Supplies and Services,304221,Equipment and Materials,02/06/2021,3875605-JE02152-1-TL-HLB,"4,458.00",T MANNERS & SONS LTD.
"Regeneration, Economy and Growth",Corporate Property and Land,Supplies and Services,304221,Equipment and Materials,02/06/2021,3875605-JE02160-1-TL-HLB,668.00,T MANNERS & SONS LTD.
"Regeneration, Economy and Growth",Corporate Property and Land,Supplies and Services,304221,Equipment and Materials,02/06/2021,3875605-JE02168-1-TL-HLB,"1,228.00",T MANNERS & SONS LTD.
"Regeneration, Economy and Growth",Corporate Property and Land,Supplies and Services,304221,Equipment and Materials,02/06/2021,3875285-10501633,"1,207.20",CARPET & FLOORING (TRADING) LTD.
"Regeneration, Economy and Growth",Corporate Property and Land,Supplies and Services,304221,Equipment and Materials,02/06/2021,3875285-10501635,658.75,CARPET & FLOORING (TRADING) LTD.
"Regeneration, Economy and Growth",Corporate Property and Land,Supplies and Services,304221,Equipment and Materials,02/06/2021,3875367-059-281355,700.00,EDMUNDSON ELECTRICAL LTD.
"Regeneration, Economy and Growth",Corporate Property and Land,Supplies and Services,304221,Equipment and Materials,02/06/2021,3875579-0000120444,"1,657.00",SHORTS INDUSTRIES LTD T/A SHORTS LIFTS.
Neighbourhoods and Climate Change,Environmental Services,Supplies and Services,304221,Equipment and Materials,02/06/2021,3875466-DCC1275,"1,570.00",LEAMSIDE NURSERY.
Neighbourhoods and Climate Change,Environmental Services,Supplies and Services,304221,Equipment and Materials,02/06/2021,3875526-065286,"1,381.08",NEW ROW FARM NURSERIES.
Neighbourhoods and Climate Change,Technical Services CM0300,Supplies and Services,304221,Equipment and Materials,02/06/2021,3875450-0113/00367390,633.33,JT DOVE LTD.
Neighbourhoods and Climate Change,Technical Services CM0300,Supplies and Services,304221,Equipment and Materials,02/06/2021,3875607-9043524960,640.05,TARMAC TRADING LTD.
Neighbourhoods and Climate Change,Technical Services CM0300,Supplies and Services,304221,Equipment and Materials,02/06/2021,3875632-221845,"2,578.89",TYNEDALE ROADSTONE LTD.
Resources BK0010,Finance & Transactional Services,Supplies and Services,338064,Services,02/06/2021,3875533-30960,"16,696.00",NORTH EAST REGIONAL EMPLOYERS ORGANISATION (NEREO).
Adult and Health Services,Head of Adults,Supplies and Services,338365,Services,02/06/2021,3875421-1101022370,"8,894.55",HOME GROUP LTD.
Adult and Health Services,Head of Adults,Supplies and Services,304259,Equipment and Materials,02/06/2021,3875565-150015,623.95,ROMPA LTD.
Children and Young Peoples Services,Head of Childrens Social Care,Supplies and Services,338044,Services,02/06/2021,3875353-MS-1-130521,526.50,DR URSULA CAWTHORNE T/A CAWTHORNE PSYCHOLOGICAL SERVICES LTD.
"Regeneration, Economy and Growth",Development and Housing,Supplies and Services,308011,Furniture,02/06/2021,3875581-5166,608.00,SIESTA BLINDS LTD.
Adult and Health Services,Commissioning inc Supporting People,Third Party Payments,441001,Supporting People E441,02/06/2021,3875355-1971089,"25,243.12",DURHAM ACTION ON SINGLE HOUSING LTD.
Adult and Health Services,Commissioning inc Supporting People,Third Party Payments,441001,Supporting People E441,02/06/2021,3875414-1971073,"18,082.80",HARBOUR SUPPORT SERVICES.
Adult and Health Services,Commissioning inc Supporting People,Third Party Payments,441001,Supporting People E441,02/06/2021,3875613-1971081,"19,231.20",THE CYRENIANS LTD T/A CHANGING LIVES.
Adult and Health Services,Commissioning inc Supporting People,Third Party Payments,441001,Supporting People E441,02/06/2021,3875622-1971084,"7,776.68",THIRTEEN HOUSING GROUP LTD.
Adult and Health Services,Commissioning inc Supporting People,Third Party Payments,441001,Supporting People E441,02/06/2021,3875646-1971112,"9,542.60",WEAR VALLEY WOMENS AID LTD.
Adult and Health Services,Commissioning inc Supporting People,Third Party Payments,441001,Supporting People E441,02/06/2021,3875420-1971100,"26,849.32",HOME GROUP LTD FORMERLY STONHAM HOUSING ASSOCIATION LTD.
Adult and Health Services,Commissioning inc Supporting People,Third Party Payments,441001,Supporting People E441,02/06/2021,3875560-1971077,"9,423.88",RICHMOND FELLOWSHIP.
Adult and Health Services,Commissioning inc Supporting People,Third Party Payments,441001,Supporting People E441,02/06/2021,3875643-1971071,"2,367.20",WADDINGTON STREET CENTRE LTD.
Adult and Health Services,Commissioning inc Supporting People,Third Party Payments,441001,Supporting People E441,02/06/2021,3875363-1971078,"5,483.40",EAST DURHAM COMMUNITY INITIATIVES LTD.
Adult and Health Services,Commissioning inc Supporting People,Third Party Payments,441001,Supporting People E441,02/06/2021,3875420-1971098,"54,465.72",HOME GROUP LTD FORMERLY STONHAM HOUSING ASSOCIATION LTD.
Adult and Health Services,Commissioning inc Supporting People,Third Party Payments,441001,Supporting People E441,02/06/2021,3875622-1971085,"22,933.96",THIRTEEN HOUSING GROUP LTD.
Adult and Health Services,Commissioning inc Supporting People,Third Party Payments,442002,Supporting People E442,02/06/2021,3875389-1971109,"14,482.44",FOUNDATION.
Adult and Health Services,Commissioning inc Supporting People,Third Party Payments,442002,Supporting People E442,02/06/2021,3875420-1971069,"91,080.12",HOME GROUP LTD FORMERLY STONHAM HOUSING ASSOCIATION LTD.
Adult and Health Services,Commissioning inc Supporting People,Third Party Payments,442002,Supporting People E442,02/06/2021,3875427-1971070,"33,554.16",HUMANKIND CHARITY.
Adult and Health Services,Commissioning inc Supporting People,Third Party Payments,442002,Supporting People E442,02/06/2021,3875314-1971072,"19,868.48",CREATIVE SUPPORT LTD.
Adult and Health Services,Commissioning inc Supporting People,Third Party Payments,442002,Supporting People E442,02/06/2021,3875420-1971103,"27,962.72",HOME GROUP LTD FORMERLY STONHAM HOUSING ASSOCIATION LTD.
Adult and Health Services,Commissioning inc Supporting People,Third Party Payments,442002,Supporting People E442,02/06/2021,3875488-1971074,"5,469.72",MENTAL HEALTH MATTERS.
Adult and Health Services,Commissioning inc Supporting People,Third Party Payments,442002,Supporting People E442,02/06/2021,3875560-1971076,"11,729.08",RICHMOND FELLOWSHIP.
Adult and Health Services,Commissioning inc Supporting People,Third Party Payments,442002,Supporting People E442,02/06/2021,3875622-1971083,"5,088.84",THIRTEEN HOUSING GROUP LTD.
Adult and Health Services,Commissioning inc Supporting People,Third Party Payments,442002,Supporting People E442,02/06/2021,3875643-1971087,873.44,WADDINGTON STREET CENTRE LTD.
Adult and Health Services,Commissioning inc Supporting People,Third Party Payments,442002,Supporting People E442,02/06/2021,3875263-1971080,"16,448.04",BID SERVICES.
Adult and Health Services,Commissioning inc Supporting People,Third Party Payments,442002,Supporting People E442,02/06/2021,3875420-1971075,"22,862.56",HOME GROUP LTD FORMERLY STONHAM HOUSING ASSOCIATION LTD.
Adult and Health Services,Commissioning inc Supporting People,Third Party Payments,442002,Supporting People E442,02/06/2021,3875498-1971093,"2,620.48",MOVING ON HOUSING.
Adult and Health Services,Commissioning inc Supporting People,Third Party Payments,442002,Supporting People E442,02/06/2021,3875583-1971094,"6,331.08",SINGLE HOMELESS ACTION INITIATIVE IN DURHAM LTD (SHAID).
Neighbourhoods and Climate Change,Technical Services CM0300,Supplies and Services,304358,Equipment and Materials,02/06/2021,3875398-78306,"3,846.05",GEORGE VARDY HAULAGE.
Neighbourhoods and Climate Change,Technical Services CM0300,Supplies and Services,304358,Equipment and Materials,02/06/2021,3875436-5306141,737.50,JA GILSON (AGRICULTURAL CONTRACTORS) LTD.
Neighbourhoods and Climate Change,Technical Services CM0300,Supplies and Services,304358,Equipment and Materials,02/06/2021,3875475-MS2806,"1,323.45",M SPENCE SURFACING LTD.
Neighbourhoods and Climate Change,Technical Services CM0300,Supplies and Services,304358,Equipment and Materials,02/06/2021,3875475-MS2807,950.18,M SPENCE SURFACING LTD.
Neighbourhoods and Climate Change,Technical Services CM0300,Supplies and Services,304358,Equipment and Materials,02/06/2021,3875475-MS2823,"1,323.45",M SPENCE SURFACING LTD.
Neighbourhoods and Climate Change,Technical Services CM0300,Supplies and Services,304358,Equipment and Materials,02/06/2021,3875475-MS2824,950.18,M SPENCE SURFACING LTD.
Children and Young Peoples Services,Head of Childrens Social Care,Supplies and Services,338045,Services,02/06/2021,3875259-CMCC/JAC171/1,"1,090.00",BEN HOARE BELL LLP.
Resources BK0010,Digital and Customer Services,Supplies and Services,344015,Telephones,02/06/2021,3875642-PG66225,"2,080.00",VODAFONE LTD.
Adult and Health Services,Commissioning inc Supporting People,Third Party Payments,479111,Purchase of Care,02/06/2021,3875240-1971092,"3,297.48",ANCHOR HANOVER GROUP.
Adult and Health Services,Commissioning inc Supporting People,Third Party Payments,479111,Purchase of Care,02/06/2021,3875420-1971110,940.80,HOME GROUP LTD FORMERLY STONHAM HOUSING ASSOCIATION LTD.
Resources BK0010,Digital and Customer Services,Supplies and Services,384199,Miscellaneous Expenses,02/06/2021,3875338-0000005458,500.00,DCMS (DEPARTMENT FOR DIGITAL CULTURE MEDIA & SPORT).
Children and Young Peoples Services,Head of Education and Skills,Supplies and Services,384199,Miscellaneous Expenses,02/06/2021,3875350-WNT01,"4,500.00",DR AMY IZYCKY T/A IZYCKY PSYCHOLOGICAL SERVICES LTD.
"Regeneration, Economy and Growth",Transport and Contracted Services,Third Party Payments,440999,Other third party payments E440,02/06/2021,3875255-88726,"6,514.32",BAYDALE CONTROL SYSTEMS LTD.
"Regeneration, Economy and Growth",Corporate Property and Land,Third Party Payments,430100,Rendered by Private Contractors,02/06/2021,3875419-DCCC/CD03,"41,190.40",HEWITT SPECIALIST ENVELOPE CONTRACTORS.
"Regeneration, Economy and Growth",Corporate Property and Land,Third Party Payments,430100,Rendered by Private Contractors,02/06/2021,3875251-33173,"3,197.00",AYCLIFFE FABRICATIONS LTD.
"Regeneration, Economy and Growth",Corporate Property and Land,Third Party Payments,430100,Rendered by Private Contractors,02/06/2021,3875278-4100724578,585.00,BRIAN YOUNGER T/A B & E YOUNGER FLOORING.
"Regeneration, Economy and Growth",Corporate Property and Land,Third Party Payments,430100,Rendered by Private Contractors,02/06/2021,3875650-53527,547.55,WILLOWCRETE MANUFACTURING COMPANY LTD (MFG).
Neighbourhoods and Climate Change,Environmental Services,Third Party Payments,430100,Rendered by Private Contractors,02/06/2021,3875342-409073,"3,177.85",DENNIS EAGLE LTD.
Neighbourhoods and Climate Change,Environmental Services,Third Party Payments,430100,Rendered by Private Contractors,02/06/2021,3875515-25980,"5,513.00",MULTEVO LTD.
Neighbourhoods and Climate Change,Environmental Services,Third Party Payments,430100,Rendered by Private Contractors,02/06/2021,3875585-105/21/12044,"1,795.00",SOCIETE GENERALE EQUIPMENT FINANCE LTD.
"Regeneration, Economy and Growth",Culture Sport and Tourism,Third Party Payments,430100,Rendered by Private Contractors,02/06/2021,3875304-PSINV04949,"6,637.20",COMPETITION LINE UK LTD T/A LIFESTYLE FITNESS.
Neighbourhoods and Climate Change,Technical Services CM0300,Third Party Payments,430100,Rendered by Private Contractors,02/06/2021,3875437-25274,"10,094.79",JACK COUPE & SONS LTD T/A COUPE LINE.
"Regeneration, Economy and Growth",Culture Sport and Tourism,Third Party Payments,430100,Rendered by Private Contractors,02/06/2021,3875304-PSINV04954,"4,731.07",COMPETITION LINE UK LTD T/A LIFESTYLE FITNESS.
"Regeneration, Economy and Growth",Culture Sport and Tourism,Third Party Payments,430100,Rendered by Private Contractors,02/06/2021,3875304-PSINV04951,"3,340.46",COMPETITION LINE UK LTD T/A LIFESTYLE FITNESS.
"Regeneration, Economy and Growth",Culture Sport and Tourism,Third Party Payments,430100,Rendered by Private Contractors,02/06/2021,3875304-PSINV04952,637.60,COMPETITION LINE UK LTD T/A LIFESTYLE FITNESS.
"Regeneration, Economy and Growth",Culture Sport and Tourism,Third Party Payments,430100,Rendered by Private Contractors,02/06/2021,3875304-PSINV04953,"1,383.34",COMPETITION LINE UK LTD T/A LIFESTYLE FITNESS.
"Regeneration, Economy and Growth",Culture Sport and Tourism,Third Party Payments,430100,Rendered by Private Contractors,02/06/2021,3875304-PSINV04950,576.50,COMPETITION LINE UK LTD T/A LIFESTYLE FITNESS.
"Regeneration, Economy and Growth",Culture Sport and Tourism,Third Party Payments,430100,Rendered by Private Contractors,02/06/2021,3875304-PSINV04955,"1,194.41",COMPETITION LINE UK LTD T/A LIFESTYLE FITNESS.
Neighbourhoods and Climate Change,Environmental Services,Third Party Payments,430101,Rendered by Private Contractors,02/06/2021,3875485-FKL00203,"3,143.00",MCCONECHYS TYRE SERVICE LTD.
Neighbourhoods and Climate Change,Environmental Services,Third Party Payments,430101,Rendered by Private Contractors,02/06/2021,3875485-FKL00211,"1,761.00",MCCONECHYS TYRE SERVICE LTD.
Neighbourhoods and Climate Change,Environmental Services,Third Party Payments,430101,Rendered by Private Contractors,02/06/2021,3875485-FKL00212,"1,792.00",MCCONECHYS TYRE SERVICE LTD.
Neighbourhoods and Climate Change,Environmental Services,Third Party Payments,430101,Rendered by Private Contractors,02/06/2021,3875485-FKL00210,"1,938.00",MCCONECHYS TYRE SERVICE LTD.
Neighbourhoods and Climate Change,Environmental Services,Third Party Payments,430101,Rendered by Private Contractors,02/06/2021,3875485-FKL00205,"1,793.50",MCCONECHYS TYRE SERVICE LTD.
Neighbourhoods and Climate Change,Environmental Services,Third Party Payments,430101,Rendered by Private Contractors,02/06/2021,3875485-FKL00209,"1,380.50",MCCONECHYS TYRE SERVICE LTD.
"Regeneration, Economy and Growth",Business Durham CL0850,Supplies and Services,338066,Services,02/06/2021,3875486-INV-0445,660.00,MCDONOUGH MARKETING COMMUNICATIONS LTD T/A MMC.
Neighbourhoods and Climate Change,Technical Services CM0300,Supplies and Services,338066,Services,02/06/2021,3875270-SIN024157,"50,521.01",BLOOM PROCUREMENT SERVICES LTD (FORMERLY NEPRO LTD).
Neighbourhoods and Climate Change,Environmental Services,Supplies and Services,338066,Services,02/06/2021,3875430-BURSARY-JUNE21,849.13,IMOGEN COVERDALE.
"Regeneration, Economy and Growth",Culture Sport and Tourism,Vehicles Equipment Furniture and Fittings,912521,Purchase-furniture and fittings,02/06/2021,3875599-180575,"3,872.00",SUPATINT LTD T/A SUPATINT WINDOW FILMS & BLINDS.
Dedicated Schools Grant BG0015,Dedicated Schools Grant CG0050,Central Support and Other Recharges,615208,Support Services,02/06/2021,3875589-RES-06-2021-004,"8,756.47",ST LEONARDS CATHOLIC SCHOOL FUND.
Dedicated Schools Grant BG0015,Dedicated Schools Grant CG0050,Central Support and Other Recharges,615208,Support Services,02/06/2021,3875589-RES-06-2021-005,717.65,ST LEONARDS CATHOLIC SCHOOL FUND.
Dedicated Schools Grant BG0015,Dedicated Schools Grant CG0050,Central Support and Other Recharges,615208,Support Services,02/06/2021,3875366-RES-06-2021-002,574.19,EDEN LEARNING TRUST T/A WOODHAM ACADEMY.
Dedicated Schools Grant BG0015,Dedicated Schools Grant CG0050,Central Support and Other Recharges,615208,Support Services,02/06/2021,3875366-RES-06-2021-007,574.19,EDEN LEARNING TRUST T/A WOODHAM ACADEMY.
"Regeneration, Economy and Growth",Corporate Property and Land,Supplies and Services,338078,Services,02/06/2021,3875570-13919,"1,050.00",SAFEGUARD SECURITY (NE) LTD.
Adult and Health Services,Head of Adults,Transport,230005,Contract Hire,02/06/2021,3875235-0045,"1,296.38",AIRPORT TAXIS 4U.
Adult and Health Services,Head of Adults,Transport,230005,Contract Hire,02/06/2021,3875415-20-DM208,852.00,HARDIP SINGH MAHIL T/A AMBER CARS.
Children and Young Peoples Services,Head of Childrens Social Care,Transport,230005,Contract Hire,02/06/2021,3875595-SI-906,520.00,STEVEN PRATT T/A PTL TAXIS DURHAM.
Children and Young Peoples Services,Head of Childrens Social Care,Transport,230005,Contract Hire,02/06/2021,3875596-MAY2/STL,522.50,STL CABS.
Children and Young Peoples Services,Head of Childrens Social Care,Transport,230005,Contract Hire,02/06/2021,3875299-CLUB2119G,665.00,CLUBMAN CABS.
Children and Young Peoples Services,Head of Childrens Social Care,Transport,230005,Contract Hire,02/06/2021,3875299-CLUB2119C,540.00,CLUBMAN CABS.
Children and Young Peoples Services,Head of Childrens Social Care,Transport,230005,Contract Hire,02/06/2021,3875315-110634,878.80,CROFT BUSINESS SERVICES (UK) LTD T/A CROFT TAXIS.
Children and Young Peoples Services,Head of Childrens Social Care,Transport,230005,Contract Hire,02/06/2021,3875315-110653,878.80,CROFT BUSINESS SERVICES (UK) LTD T/A CROFT TAXIS.
Adult and Health Services,Head of Adults,Transport,230005,Contract Hire,02/06/2021,3875393-102346,"1,349.00",G & P JOHNSON LTD T/A NIGHTINGALE COACHES.
Adult and Health Services,Head of Adults,Transport,230005,Contract Hire,02/06/2021,3875393-102347,"1,878.34",G & P JOHNSON LTD T/A NIGHTINGALE COACHES.
Adult and Health Services,Head of Adults,Transport,230005,Contract Hire,02/06/2021,3875393-102349,"2,755.00",G & P JOHNSON LTD T/A NIGHTINGALE COACHES.
Children and Young Peoples Services,Head of Education and Skills,Transport,230005,Contract Hire,02/06/2021,3875364-1119,"1,452.00",EAST DURHAM TAXIS.
Adult and Health Services,Head of Adults,Transport,230005,Contract Hire,02/06/2021,3875327-1734,570.00,DA TAXIS.
Adult and Health Services,Head of Adults,Transport,230005,Contract Hire,02/06/2021,3875393-102348,"1,845.47",G & P JOHNSON LTD T/A NIGHTINGALE COACHES.
Adult and Health Services,Head of Adults,Transport,230005,Contract Hire,02/06/2021,3875624-0002239,"2,888.00",TONY RIDLEY T/A COLORS TAXIS LTD.
Adult and Health Services,Central/Other,Supplies and Services,338043,Services,02/06/2021,3875648-02017971,906.00,WEIGHTMANS LLP.
Dedicated Schools Grant BG0015,DSG High Needs Block,Central Support and Other Recharges,689987,Unclassified E690,02/06/2021,316455-CAS-05-2021-265,"4,094.00",SUNDERLAND CITY COUNCIL.
Neighbourhoods and Climate Change,Technical Services CM0300,Stock A926,926900,Stock in hand-Inventory system,02/06/2021,3875378-137312,"10,845.17",FABRIKAT (NOTTINGHAM) LTD.
Neighbourhoods and Climate Change,Technical Services CM0300,Stock A926,926900,Stock in hand-Inventory system,02/06/2021,3875378-137318,"6,278.25",FABRIKAT (NOTTINGHAM) LTD.
Neighbourhoods and Climate Change,Technical Services CM0300,Stock A926,926900,Stock in hand-Inventory system,02/06/2021,3875378-137326,"9,542.94",FABRIKAT (NOTTINGHAM) LTD.
Neighbourhoods and Climate Change,Technical Services CM0300,Stock A926,926900,Stock in hand-Inventory system,02/06/2021,3875400-SI816798,"1,242.50",GLASDON UK LTD.
Neighbourhoods and Climate Change,Technical Services CM0300,Stock A926,926900,Stock in hand-Inventory system,02/06/2021,3875408-06/124099,747.60,GREENHAM TRADING LTD.
Neighbourhoods and Climate Change,Technical Services CM0300,Stock A926,926900,Stock in hand-Inventory system,02/06/2021,3875652-75460723,664.39,WOLSELEY UK LTD.
Neighbourhoods and Climate Change,Community Protection,Supplies and Services,372009,Subscriptions E372,02/06/2021,3875615-33191,615.00,THE INSTITUTE OF LICENSING (EVENTS) LTD.
Resources BK0010,Digital and Customer Services,Supplies and Services,304639,Equipment and Materials,02/06/2021,3875655-KZ34624,566.44,XMA LTD.
Neighbourhoods and Climate Change,Environmental Services,Transport,210057,Repair and Maintenance of Vehicles,02/06/2021,3875341-96407131,899.90,DENNIS EAGLE LTD T/A TERBERG MATEC (UK) LTD.
Neighbourhoods and Climate Change,Environmental Services,Transport,210057,Repair and Maintenance of Vehicles,02/06/2021,3875341-96407450,"1,315.54",DENNIS EAGLE LTD T/A TERBERG MATEC (UK) LTD.
Neighbourhoods and Climate Change,Environmental Services,Transport,210057,Repair and Maintenance of Vehicles,02/06/2021,3875443-141373,569.25,JG PAXTON & SONS LTD.
"Regeneration, Economy and Growth",Culture Sport and Tourism,Supplies and Services,338094,Services,02/06/2021,3875528-3646,"1,045.00",NEWTON AYCLIFFE YOUTH & COMMUNITY CENTRE.
Dedicated Schools Grant BG0015,DSG High Needs Block,Third Party Payments,410037,Rendered by Other Local Authorities,03/06/2021,3875853-51622313,"1,420.90",PROTOCOL EDUCATION LTD.*
Dedicated Schools Grant BG0015,DSG High Needs Block,Third Party Payments,410037,Rendered by Other Local Authorities,03/06/2021,3875853-51622314,682.90,PROTOCOL EDUCATION LTD.*
Chief Executive's Office,Communications Management,Employees,080025,Agency Staff,03/06/2021,3875764-2449151,"168,178.04",GEOMETRIC RESULTS INTERNATIONAL.
Neighbourhoods and Climate Change,Technical Services CM0300,Fees,901004,Capital - Detailed Design,03/06/2021,3875851-170342,"1,612.00",PREMIER TRAFFIC MANAGEMENT LTD.
"Regeneration, Economy and Growth",Development and Housing,Supplies and Services,342053,Computers and Communications,03/06/2021,3875708-C/HB217771,"6,500.00",CIVICA UK LTD.
Resources BK0010,Corporate Finance & Commercial Services,Supplies and Services,342053,Computers and Communications,03/06/2021,3875841-1810884,"10,936.50",ORACLE CORPORATION UK LTD.
"Regeneration, Economy and Growth",Development and Housing,Supplies and Services,342053,Computers and Communications,03/06/2021,3875708-C/HB217772,"11,500.00",CIVICA UK LTD.
Resources BK0010,Digital and Customer Services,Supplies and Services,342053,Computers and Communications,03/06/2021,3875808-12620225,"2,100.00",MAINTEL EUROPE LTD.
Resources BK0010,Corporate Finance & Commercial Services,Supplies and Services,342051,Computers and Communications,03/06/2021,3875868-IN0003162,"5,162.37",SAFETYCULTURE PTY LTD.
Neighbourhoods and Climate Change,Environmental Services,Construction work A908,908105,Construction work,03/06/2021,3875754-ESAL06135086,"25,776.85",FINNING (UK) LTD.
Neighbourhoods and Climate Change,Environmental Services,Supplies and Services,338027,Services,03/06/2021,3875880-0000886169,"4,805.66",SOCOTEC UK LTD.
"Regeneration, Economy and Growth",Transport and Contracted Services,Third Party Payments,430108,Rendered by Private Contractors,03/06/2021,3875830-1800010699940,"25,590.85",NEWCASTLE UPON TYNE CITY COUNCIL.
Neighbourhoods and Climate Change,Environmental Services,Third Party Payments,430113,Rendered by Private Contractors,03/06/2021,3875876-173744,"5,122.41",SHOWSEC INTERNATIONAL LTD.
Neighbourhoods and Climate Change,Environmental Services,Third Party Payments,430113,Rendered by Private Contractors,03/06/2021,3875876-173747,"5,171.96",SHOWSEC INTERNATIONAL LTD.
Neighbourhoods and Climate Change,Environmental Services,Third Party Payments,430113,Rendered by Private Contractors,03/06/2021,3875876-173750,"1,852.90",SHOWSEC INTERNATIONAL LTD.
Neighbourhoods and Climate Change,Environmental Services,Third Party Payments,430113,Rendered by Private Contractors,03/06/2021,3875876-173875,"2,830.25",SHOWSEC INTERNATIONAL LTD.
Neighbourhoods and Climate Change,Environmental Services,Third Party Payments,430113,Rendered by Private Contractors,03/06/2021,3875876-173878,"2,809.75",SHOWSEC INTERNATIONAL LTD.
Neighbourhoods and Climate Change,Environmental Services,Third Party Payments,430113,Rendered by Private Contractors,03/06/2021,3875876-173881,929.41,SHOWSEC INTERNATIONAL LTD.
Neighbourhoods and Climate Change,Environmental Services,Third Party Payments,460305,Contract Payments,03/06/2021,3875713-6187,"1,125.00",CO-WHEELS CAR CLUB CIC.
Neighbourhoods and Climate Change,Environmental Services,Third Party Payments,460305,Contract Payments,03/06/2021,3875713-6188,"6,250.00",CO-WHEELS CAR CLUB CIC.
Adult and Health Services,Public Health CC0450,Supplies and Services,384899,Miscellaneous Expenses,03/06/2021,3875887-CAS-04-2021-159-REPROVIDE,"1,297.00",(USE 189028) ST JOSEPHS RC DURHAM ROAD USHAW MOOR.
Neighbourhoods and Climate Change,Environmental Services,Transport,215005,Running Costs of Vehicles,03/06/2021,3875839-762999,"25,040.00",OIL NRG LTD.
Neighbourhoods and Climate Change,Environmental Services,Transport,215005,Running Costs of Vehicles,03/06/2021,3875839-762444,"12,010.40",OIL NRG LTD.
"Regeneration, Economy and Growth",Corporate Property and Land,Supplies and Services,304221,Equipment and Materials,03/06/2021,3875701-10501634,"1,057.90",CARPET & FLOORING (TRADING) LTD.
"Regeneration, Economy and Growth",Corporate Property and Land,Supplies and Services,304221,Equipment and Materials,03/06/2021,3875922-75484360,517.92,WOLSELEY UK LTD.
"Regeneration, Economy and Growth",Corporate Property and Land,Supplies and Services,304221,Equipment and Materials,03/06/2021,3875733-059-282020,600.00,EDMUNDSON ELECTRICAL LTD.
"Regeneration, Economy and Growth",Corporate Property and Land,Supplies and Services,304221,Equipment and Materials,03/06/2021,3875795-0120/00369886,"2,713.11",JT DOVE LTD.
Neighbourhoods and Climate Change,Technical Services CM0300,Supplies and Services,304221,Equipment and Materials,03/06/2021,3875896-9043510638,976.88,TARMAC TRADING LTD.
Neighbourhoods and Climate Change,Technical Services CM0300,Supplies and Services,304221,Equipment and Materials,03/06/2021,3875909-220677,743.56,TYNEDALE ROADSTONE LTD.
Neighbourhoods and Climate Change,Technical Services CM0300,Supplies and Services,304221,Equipment and Materials,03/06/2021,3875909-221539,574.89,TYNEDALE ROADSTONE LTD.
Neighbourhoods and Climate Change,Technical Services CM0300,Supplies and Services,304221,Equipment and Materials,03/06/2021,3875909-221947,606.88,TYNEDALE ROADSTONE LTD.
Neighbourhoods and Climate Change,Technical Services CM0300,Supplies and Services,304221,Equipment and Materials,03/06/2021,3875909-222308,"1,050.40",TYNEDALE ROADSTONE LTD.
Neighbourhoods and Climate Change,Technical Services CM0300,Supplies and Services,304221,Equipment and Materials,03/06/2021,3875909-222316,"1,002.88",TYNEDALE ROADSTONE LTD.
Neighbourhoods and Climate Change,Environmental Services,Supplies and Services,304221,Equipment and Materials,03/06/2021,3875743-6888360,"13,518.00",ESE WORLD LTD.
Dedicated Schools Grant BG0015,DSG High Needs Block,Central Support and Other Recharges,689988,Unclassified E690,03/06/2021,3875887-YS21/22TOPUP-REPROVIDE,"10,991.00",(USE 189028) ST JOSEPHS RC DURHAM ROAD USHAW MOOR.
Neighbourhoods and Climate Change,Environmental Services,Supplies and Services,304259,Equipment and Materials,03/06/2021,3875879-INV406219,"1,366.81",SNOWBALLS LTD.
Dedicated Schools Grant BG0015,DSG High Needs Block,Supplies and Services,304259,Equipment and Materials,03/06/2021,3875758-0000002125,"1,640.00",FORTUNA GROUP LONDON LTD T/A BAMBACH SADDLE SEAT (EUROPE) LTD.
Children and Young Peoples Services,Head of Childrens Social Care,Supplies and Services,338044,Services,03/06/2021,3875757-72839,526.00,FORENSIC TESTING SERVICE LTD.
Neighbourhoods and Climate Change,Environmental Services,Transport,215022,Running Costs of Vehicles,03/06/2021,3875839-763000,831.95,OIL NRG LTD.
Neighbourhoods and Climate Change,Technical Services CM0300,Supplies and Services,304358,Equipment and Materials,03/06/2021,3875792-31393,"1,279.50",JOHN R BUTTERFIELD LTD.
Neighbourhoods and Climate Change,Technical Services CM0300,Supplies and Services,304358,Equipment and Materials,03/06/2021,3875792-31394,"1,114.50",JOHN R BUTTERFIELD LTD.
Neighbourhoods and Climate Change,Technical Services CM0300,Supplies and Services,304358,Equipment and Materials,03/06/2021,3875792-31396,784.90,JOHN R BUTTERFIELD LTD.
Neighbourhoods and Climate Change,Technical Services CM0300,Supplies and Services,304358,Equipment and Materials,03/06/2021,3875792-31397,505.50,JOHN R BUTTERFIELD LTD.
Neighbourhoods and Climate Change,Technical Services CM0300,Supplies and Services,304358,Equipment and Materials,03/06/2021,3875792-31413,993.50,JOHN R BUTTERFIELD LTD.
Neighbourhoods and Climate Change,Technical Services CM0300,Supplies and Services,304358,Equipment and Materials,03/06/2021,3875792-31414,925.00,JOHN R BUTTERFIELD LTD.
Neighbourhoods and Climate Change,Technical Services CM0300,Supplies and Services,304358,Equipment and Materials,03/06/2021,3875792-31417,"1,293.30",JOHN R BUTTERFIELD LTD.
Neighbourhoods and Climate Change,Technical Services CM0300,Supplies and Services,304358,Equipment and Materials,03/06/2021,3875792-31418,525.00,JOHN R BUTTERFIELD LTD.
Neighbourhoods and Climate Change,Technical Services CM0300,Supplies and Services,304358,Equipment and Materials,03/06/2021,3875792-31419,678.50,JOHN R BUTTERFIELD LTD.
Neighbourhoods and Climate Change,Technical Services CM0300,Supplies and Services,304358,Equipment and Materials,03/06/2021,3875792-31420,851.00,JOHN R BUTTERFIELD LTD.
Neighbourhoods and Climate Change,Technical Services CM0300,Supplies and Services,304358,Equipment and Materials,03/06/2021,3875792-31422,"1,301.50",JOHN R BUTTERFIELD LTD.
Neighbourhoods and Climate Change,Technical Services CM0300,Supplies and Services,304358,Equipment and Materials,03/06/2021,3875926-8585,"2,730.00",YOULL CONSTRUCTION LTD.
Neighbourhoods and Climate Change,Technical Services CM0300,Supplies and Services,304358,Equipment and Materials,03/06/2021,3875926-8598,"2,730.00",YOULL CONSTRUCTION LTD.
Neighbourhoods and Climate Change,Technical Services CM0300,Supplies and Services,304358,Equipment and Materials,03/06/2021,3875926-8601,"2,730.00",YOULL CONSTRUCTION LTD.
Neighbourhoods and Climate Change,Technical Services CM0300,Supplies and Services,304358,Equipment and Materials,03/06/2021,3875926-8605,589.00,YOULL CONSTRUCTION LTD.
Children and Young Peoples Services,Head of Education and Skills,Supplies and Services,338045,Services,03/06/2021,3875919-HJT/A6443/F7,500.00,WILLIAM J MARSHALL & PARTNERS.
Neighbourhoods and Climate Change,Environmental Services,Supplies and Services,304999,Equipment and Materials,03/06/2021,3875842-170098,"1,213.80",PALINTEST LTD.
Neighbourhoods and Climate Change,Environmental Services,Supplies and Services,384199,Miscellaneous Expenses,03/06/2021,3875772-9002027989,778.00,HAKO MACHINES LTD.
Resources BK0010,Legal & Democratic Services,Supplies and Services,384199,Miscellaneous Expenses,03/06/2021,3875680-AYCC1951,550.00,AUCKLAND YOUTH & COMMUNITY CENTRE LTD.
Resources BK0010,Legal & Democratic Services,Supplies and Services,384199,Miscellaneous Expenses,03/06/2021,3875702-210301,500.00,CASTLESIDE & DISTRICT COMMUNITY ASSOCIATION.
Resources BK0010,Legal & Democratic Services,Supplies and Services,384199,Miscellaneous Expenses,03/06/2021,3875886-ROOMHIRE06052021,750.00,ST JOHN`S CHURCH PCC (SEAHAM).
Children and Young Peoples Services,Head of Education and Skills,Supplies and Services,384199,Miscellaneous Expenses,03/06/2021,3875861-INV-0126,"3,838.62",RAW DIGITAL TRAINING LTD.
Children and Young Peoples Services,Head of Education and Skills,Supplies and Services,384199,Miscellaneous Expenses,03/06/2021,3875861-INV-0127,"2,700.00",RAW DIGITAL TRAINING LTD.
Neighbourhoods and Climate Change,Environmental Services,Supplies and Services,384199,Miscellaneous Expenses,03/06/2021,3875724-INV-0298,"8,000.00",DIGVENTURES LTD.
"Regeneration, Economy and Growth",Transport and Contracted Services,Supplies and Services,384199,Miscellaneous Expenses,03/06/2021,3875679-MS2101073,"1,893.12",ATG ACCESS LTD.
"Regeneration, Economy and Growth",Transport and Contracted Services,Supplies and Services,384199,Miscellaneous Expenses,03/06/2021,3875904-TRNE025117,"3,640.00",TOTAL RESOURCES UK LTD.
Children and Young Peoples Services,Head of Childrens Social Care,Third Party Payments,425020,Rendered by Voluntary Organisations,03/06/2021,3875698-024/21,"1,480.00",BUTTERWICK LTD..
Children and Young Peoples Services,Head of Childrens Social Care,Third Party Payments,425020,Rendered by Voluntary Organisations,03/06/2021,3875698-032/21,"1,480.00",BUTTERWICK LTD..
Children and Young Peoples Services,Head of Childrens Social Care,Third Party Payments,425020,Rendered by Voluntary Organisations,03/06/2021,3875698-035/21,"1,480.00",BUTTERWICK LTD..
Children and Young Peoples Services,Head of Childrens Social Care,Third Party Payments,425020,Rendered by Voluntary Organisations,03/06/2021,3875698-036/21,"1,480.00",BUTTERWICK LTD..
Adult and Health Services,Head of Adults,Supplies and Services,384616,Miscellaneous Expenses,03/06/2021,3875849-1157632,"1,361.01",PLACES FOR PEOPLE INDIVIDUAL SUPPORT.
Adult and Health Services,Commissioning inc Supporting People,Supplies and Services,384616,Miscellaneous Expenses,03/06/2021,3875780-9958,"4,739.85",INCLUSION HOUSING CIC LTD.
"Regeneration, Economy and Growth",Corporate Property and Land,Third Party Payments,430100,Rendered by Private Contractors,03/06/2021,3875912-CDI124167,"47,000.00",VAN ELLE LTD.
"Regeneration, Economy and Growth",Corporate Property and Land,Third Party Payments,430100,Rendered by Private Contractors,03/06/2021,3875782-10945,"2,190.00",INGLEFORD SCAFFOLDING LTD.
Neighbourhoods and Climate Change,Environmental Services,Third Party Payments,430100,Rendered by Private Contractors,03/06/2021,3875905-TRNE026370,504.00,TOTAL RESOURCES UK LTD.
Neighbourhoods and Climate Change,Environmental Services,Third Party Payments,430100,Rendered by Private Contractors,03/06/2021,3875920-53618,"3,962.00",WILLOWCRETE MANUFACTURING COMPANY LTD (MFG).
Neighbourhoods and Climate Change,Technical Services CM0300,Third Party Payments,430100,Rendered by Private Contractors,03/06/2021,3875776-3236,"3,179.00",HIGHWAY CONSTRUCTION SERVICES LTD.
Neighbourhoods and Climate Change,Technical Services CM0300,Third Party Payments,430100,Rendered by Private Contractors,03/06/2021,3875776-3237,"7,293.00",HIGHWAY CONSTRUCTION SERVICES LTD.
Neighbourhoods and Climate Change,Technical Services CM0300,Third Party Payments,430100,Rendered by Private Contractors,03/06/2021,3875904-166095,"6,374.00",TOTAL RESOURCES UK LTD.
"Regeneration, Economy and Growth",Transport and Contracted Services,Third Party Payments,430100,Rendered by Private Contractors,03/06/2021,3875915-INV-42711,"2,345.80",VISTECH SERVICES.
"Regeneration, Economy and Growth",Transport and Contracted Services,Supplies and Services,332029,Printing Stationery and Gen Off Exps,03/06/2021,3875860-19013,617.50,RADECAL SIGNS GRAPHICS & ADVERTISING.
Resources BK0010,Finance & Transactional Services,Supplies and Services,338066,Services,03/06/2021,3875835-91447441,"2,866.20",NORTHGATE PUBLIC SERVICES (UK) LTD.
Neighbourhoods and Climate Change,Technical Services CM0300,Supplies and Services,338066,Services,03/06/2021,3875893-32849,"1,950.00",SURVEY OPERATIONS LTD.
Neighbourhoods and Climate Change,Technical Services CM0300,Supplies and Services,338066,Services,03/06/2021,3875918-494,"2,405.00",WHORLTON LAND SURVEYS LTD.
Neighbourhoods and Climate Change,Technical Services CM0300,Supplies and Services,338066,Services,03/06/2021,3875918-495,"3,150.00",WHORLTON LAND SURVEYS LTD.
Neighbourhoods and Climate Change,Technical Services CM0300,Supplies and Services,338066,Services,03/06/2021,3875918-496,"1,450.00",WHORLTON LAND SURVEYS LTD.
Resources BK0010,Legal & Democratic Services,Supplies and Services,338066,Services,03/06/2021,3875708-M/IW087412,"10,000.00",CIVICA UK LTD.
Neighbourhoods and Climate Change,Environmental Services,Supplies and Services,338066,Services,03/06/2021,3875788-BURSARY-JUNE2021,711.88,JAMES DILL-RUSSELL (GEOLOGIST).
"Regeneration, Economy and Growth",Corporate Property and Land,Supplies and Services,338066,Services,03/06/2021,3875917-798758,"1,500.00",WARD HADAWAY.
Adult and Health Services,Public Health CC0450,Third Party Payments,460803,Contract Payments,03/06/2021,3875699-866,"1,750.00",C HEWISON (CONSULTANT PROJECT MANAGEMENT TRAINING).
Neighbourhoods and Climate Change,Technical Services CM0300,Stock A926,926900,Stock in hand-Inventory system,03/06/2021,3875661-271965,"1,169.00",1ST COVERALL COMPANY LTD.
Neighbourhoods and Climate Change,Technical Services CM0300,Stock A926,926900,Stock in hand-Inventory system,03/06/2021,3875661-271972,935.20,1ST COVERALL COMPANY LTD.
Neighbourhoods and Climate Change,Technical Services CM0300,Stock A926,926900,Stock in hand-Inventory system,03/06/2021,3875845-XL270769,885.40,PARK ELECTRICAL DISTRIBUTORS LTD.
Neighbourhoods and Climate Change,Technical Services CM0300,Stock A926,926900,Stock in hand-Inventory system,03/06/2021,3875845-XL271049,540.00,PARK ELECTRICAL DISTRIBUTORS LTD.
Neighbourhoods and Climate Change,Technical Services CM0300,Stock A926,926900,Stock in hand-Inventory system,03/06/2021,3875896-9043540872,708.91,TARMAC TRADING LTD.
Neighbourhoods and Climate Change,Environmental Services,Stock A926,926900,Stock in hand-Inventory system,03/06/2021,3875800-SI02-0314559,672.16,KILLGERM CHEMICALS LTD.
Adult and Health Services,Head of Adults,Third Party Payments,478101,Purchase of Care,03/06/2021,3875828-1900,"3,673.50",MY HOMECARE (DURHAM) LTD.
Adult and Health Services,Head of Adults,Third Party Payments,478151,Purchase of Care,03/06/2021,3875714-421R172162,"7,800.00",COMMUNITY INTEGRATED CARE LTD.
Adult and Health Services,Head of Adults,Third Party Payments,478151,Purchase of Care,03/06/2021,3875714-421R172163,"5,555.88",COMMUNITY INTEGRATED CARE LTD.
Adult and Health Services,Head of Adults,Third Party Payments,478151,Purchase of Care,03/06/2021,3875714-421R172195,"9,712.00",COMMUNITY INTEGRATED CARE LTD.
Adult and Health Services,Head of Adults,Third Party Payments,478151,Purchase of Care,03/06/2021,3875714-421R172197,603.74,COMMUNITY INTEGRATED CARE LTD.
Adult and Health Services,Head of Adults,Third Party Payments,478151,Purchase of Care,03/06/2021,3875722-INV-0809,"1,708.80",DEACONSTAR LTD.
Adult and Health Services,Head of Adults,Third Party Payments,478151,Purchase of Care,03/06/2021,3875722-INV-0810,"2,521.41",DEACONSTAR LTD.
"Regeneration, Economy and Growth",Culture Sport and Tourism,Supplies and Services,384302,Miscellaneous Expenses,04/06/2021,3876148-21004,"6,100.00",STEVE MESSAM.
Chief Executive's Office,Communications Management,Supplies and Services,336005,Advertising E336,04/06/2021,3875949-8029577,"4,015.13",BAUER RADIO LTD.
Dedicated Schools Grant BG0015,DSG High Needs Block,Third Party Payments,410037,Rendered by Other Local Authorities,04/06/2021,3875965-35323338,"1,147.16",BURY METROPOLITAN BOROUGH COUNCIL.
Resources BK0010,Legal & Democratic Services,Supplies and Services,338042,Services,04/06/2021,3876169-268296/INVGM399,"1,425.00",TRINITY CHAMBERS.
Adult and Health Services,Head of Adults,Supplies and Services,338366,Services,04/06/2021,3875967-73863,"1,829.00",CARE ABILITY HEALTHCARE LTD.
Adult and Health Services,Head of Adults,Supplies and Services,338366,Services,04/06/2021,3875967-76006,"1,099.00",CARE ABILITY HEALTHCARE LTD.
Adult and Health Services,Head of Adults,Supplies and Services,338366,Services,04/06/2021,3875967-76007,617.10,CARE ABILITY HEALTHCARE LTD.
Adult and Health Services,Head of Adults,Supplies and Services,338366,Services,04/06/2021,3875967-76008,"1,421.00",CARE ABILITY HEALTHCARE LTD.
Adult and Health Services,Head of Adults,Supplies and Services,338366,Services,04/06/2021,3875967-76009,937.10,CARE ABILITY HEALTHCARE LTD.
Adult and Health Services,Head of Adults,Supplies and Services,338366,Services,04/06/2021,3875967-76010,"1,174.00",CARE ABILITY HEALTHCARE LTD.
"Regeneration, Economy and Growth",Culture Sport and Tourism,Supplies and Services,328041,Clothing uniforms and laundry E328,04/06/2021,3876163-NSIN00055621,"1,756.98",THOMAS OWEN & SONS (NEWCASTLE) LTD.
Resources BK0010,Digital and Customer Services,Supplies and Services,342033,Computers and Communications,04/06/2021,3876099-0000001746,765.94,NOMINET UK.
Resources BK0010,Digital and Customer Services,Supplies and Services,342033,Computers and Communications,04/06/2021,3876155-136724,"4,750.40",SWITCHSHOP LTD.
"Regeneration, Economy and Growth",Corporate Property and Land,Supplies and Services,342053,Computers and Communications,04/06/2021,3875985-114133043,"9,143.40",COSTAR UK LTD.
Resources BK0010,Digital and Customer Services,Supplies and Services,342051,Computers and Communications,04/06/2021,3876005-22046,"2,280.00",DOTTED EYES LTD T/A MISO PORTAL.
Children and Young Peoples Services,Head of Education and Skills,Construction work A908,908105,Construction work,04/06/2021,3876072-135233,"4,000.00",LUCION ENVIRONMENTAL LLP LTD.
Children and Young Peoples Services,Head of Education and Skills,Construction work A908,908105,Construction work,04/06/2021,3876116-900923965,"22,847.75",PORTAKABIN LTD.
"Regeneration, Economy and Growth",Corporate Property and Land,Construction work A908,908105,Construction work,04/06/2021,3875944-21020937,"6,850.00",ATKINS GLOBAL.
"Regeneration, Economy and Growth",Development and Housing,Construction work A908,908105,Construction work,04/06/2021,3876072-135762,800.00,LUCION ENVIRONMENTAL LLP LTD.
Children and Young Peoples Services,Head of Education and Skills,Supplies and Services,338027,Services,04/06/2021,3876082-0067,"1,575.00",REDACTED - PAYMENT TO INDIVIDUAL
"Regeneration, Economy and Growth",Corporate Property and Land,Fees,901002,Consultants fees 901002,04/06/2021,3875944-21021016,"4,430.00",ATKINS GLOBAL.
"Regeneration, Economy and Growth",Culture Sport and Tourism,Fees,901002,Consultants fees 901002,04/06/2021,3875944-21021025,"6,610.00",ATKINS GLOBAL.
"Regeneration, Economy and Growth",Culture Sport and Tourism,Fees,901002,Consultants fees 901002,04/06/2021,3876130-TEC572570,"15,037.00",RPS CONSULTING SERVICES LTD.
"Regeneration, Economy and Growth",Culture Sport and Tourism,Fees,901002,Consultants fees 901002,04/06/2021,3876130-TEC573088,"4,074.00",RPS CONSULTING SERVICES LTD.
Children and Young Peoples Services,Head of Education and Skills,Transport,230034,Contract Hire,04/06/2021,3875987-45,988.00,CRAIG MASSEY`S TAXIS.
Children and Young Peoples Services,Head of Education and Skills,Transport,230034,Contract Hire,04/06/2021,3876076-INV05/202128,"1,600.00",MARK & JOHN CHISHOLM T/A (CHEVRON).
Children and Young Peoples Services,Head of Education and Skills,Transport,230034,Contract Hire,04/06/2021,3876069-1917,"2,090.00",LD TAXIS.
Children and Young Peoples Services,Head of Education and Skills,Transport,230034,Contract Hire,04/06/2021,3875954-FRAM/CA0521,988.00,BENS TAXIS.
Children and Young Peoples Services,Head of Education and Skills,Transport,230034,Contract Hire,04/06/2021,3876087-240,"1,476.00",MR BRIAN JOHNSON T/A BRYS TAXIS.
Children and Young Peoples Services,Head of Education and Skills,Transport,230034,Contract Hire,04/06/2021,3875929-52102,"1,544.70",24/7 TAXI SERVICES LTD.
Children and Young Peoples Services,Head of Education and Skills,Transport,230034,Contract Hire,04/06/2021,3875929-52117,"2,489.00",24/7 TAXI SERVICES LTD.
Children and Young Peoples Services,Head of Education and Skills,Transport,230034,Contract Hire,04/06/2021,3875943-841,"1,349.00",AT TAXIS LTD.
Children and Young Peoples Services,Head of Education and Skills,Transport,230034,Contract Hire,04/06/2021,3876076-INV05/202127,"1,520.00",MARK & JOHN CHISHOLM T/A (CHEVRON).
Children and Young Peoples Services,Head of Education and Skills,Transport,230034,Contract Hire,04/06/2021,3876114-3422-MAY21,988.00,PETER`S TAXIS.
Children and Young Peoples Services,Head of Education and Skills,Transport,230034,Contract Hire,04/06/2021,3875987-47,"1,953.00",CRAIG MASSEY`S TAXIS.
Children and Young Peoples Services,Head of Education and Skills,Transport,230034,Contract Hire,04/06/2021,3876114-5294-MAY21,798.00,PETER`S TAXIS.
Children and Young Peoples Services,Head of Education and Skills,Transport,230034,Contract Hire,04/06/2021,3875974-5208/08,874.00,CHRISTOPHER MADDISON (TAXI).
Children and Young Peoples Services,Head of Education and Skills,Transport,230034,Contract Hire,04/06/2021,3875929-52103,"1,721.00",24/7 TAXI SERVICES LTD.
Children and Young Peoples Services,Head of Education and Skills,Transport,230035,Contract Hire,04/06/2021,3876181-7465,969.00,WEARDALE PRIVATE HIRE.
Children and Young Peoples Services,Head of Education and Skills,Transport,230007,Contract Hire,04/06/2021,3876159-05/2021/003,"1,558.00",TARNS TAXIS LTD.
Children and Young Peoples Services,Head of Education and Skills,Transport,230007,Contract Hire,04/06/2021,3876030-22806,"6,251.00",GARNETTS LTD (COACHES).
Children and Young Peoples Services,Head of Education and Skills,Transport,230007,Contract Hire,04/06/2021,3876030-22807,"2,945.00",GARNETTS LTD (COACHES).
Children and Young Peoples Services,Head of Education and Skills,Transport,230007,Contract Hire,04/06/2021,3876182-009,"1,048.42",WILLIAM PINDER T/A FEATHERBED TAXIS.
Children and Young Peoples Services,Head of Education and Skills,Transport,230007,Contract Hire,04/06/2021,3876030-22808-4227,"3,515.00",GARNETTS LTD (COACHES).
Children and Young Peoples Services,Head of Education and Skills,Transport,230007,Contract Hire,04/06/2021,3876030-22808-4404,"14,440.00",GARNETTS LTD (COACHES).
Children and Young Peoples Services,Head of Education and Skills,Transport,230007,Contract Hire,04/06/2021,3876030-22800,"4,769.00",GARNETTS LTD (COACHES).
Children and Young Peoples Services,Head of Education and Skills,Transport,230007,Contract Hire,04/06/2021,3876102-INV-6723,"2,489.00",NORTH EAST COACHWAYS LTD.
Children and Young Peoples Services,Head of Education and Skills,Transport,230007,Contract Hire,04/06/2021,3875943-844,"1,843.00",AT TAXIS LTD.
Children and Young Peoples Services,Head of Education and Skills,Transport,230007,Contract Hire,04/06/2021,3876030-22801,"2,462.21",GARNETTS LTD (COACHES).
Children and Young Peoples Services,Head of Education and Skills,Transport,230007,Contract Hire,04/06/2021,3876030-22801-3435,"3,420.00",GARNETTS LTD (COACHES).
Children and Young Peoples Services,Head of Education and Skills,Transport,230007,Contract Hire,04/06/2021,3876032-ST028,"1,346.72",GARY JACKSON PRIVATE HIRE.
Children and Young Peoples Services,Head of Education and Skills,Transport,230007,Contract Hire,04/06/2021,3876030-22802,"4,742.02",GARNETTS LTD (COACHES).
Children and Young Peoples Services,Head of Education and Skills,Transport,230007,Contract Hire,04/06/2021,3876030-22802-4034,"2,624.28",GARNETTS LTD (COACHES).
Children and Young Peoples Services,Head of Education and Skills,Transport,230007,Contract Hire,04/06/2021,3876030-22802-4035,"2,427.82",GARNETTS LTD (COACHES).
Children and Young Peoples Services,Head of Education and Skills,Transport,230007,Contract Hire,04/06/2021,3876030-22802-4036,"2,624.28",GARNETTS LTD (COACHES).
Children and Young Peoples Services,Head of Education and Skills,Transport,230007,Contract Hire,04/06/2021,3876030-22802-4038,"2,427.82",GARNETTS LTD (COACHES).
Children and Young Peoples Services,Head of Education and Skills,Transport,230007,Contract Hire,04/06/2021,3876156-12105PA,"1,681.50",T MOORE & SON.
Children and Young Peoples Services,Head of Education and Skills,Transport,230007,Contract Hire,04/06/2021,3875973-47229,"4,978.00",CHRISTOPHER JAMES GRIERSON T/A GRIERSONS COACHES.
Children and Young Peoples Services,Head of Education and Skills,Transport,230007,Contract Hire,04/06/2021,3876158-04/2021/001,930.00,TARNS TAXIS LTD.
Children and Young Peoples Services,Head of Education and Skills,Transport,230007,Contract Hire,04/06/2021,3876159-05/2021/002,"1,178.00",TARNS TAXIS LTD.
Children and Young Peoples Services,Head of Education and Skills,Transport,230007,Contract Hire,04/06/2021,3876057-CORPTRAVWPAMAY21,798.00,JOHN W CROOK T/A CORPORATE TRAVEL.
Children and Young Peoples Services,Head of Education and Skills,Transport,230007,Contract Hire,04/06/2021,3875990-H018,559.36,DAVID BRIDDICK T/A COUNDONS TAXIS.
Children and Young Peoples Services,Head of Education and Skills,Transport,230007,Contract Hire,04/06/2021,3876138-200440-2021,"1,260.00",SHERBURN TAXIS LTD.
Children and Young Peoples Services,Head of Education and Skills,Transport,230007,Contract Hire,04/06/2021,3876030-22803-3029,"2,831.00",GARNETTS LTD (COACHES).
Children and Young Peoples Services,Head of Education and Skills,Transport,230007,Contract Hire,04/06/2021,3876030-22803-3199,"2,698.00",GARNETTS LTD (COACHES).
Children and Young Peoples Services,Head of Education and Skills,Transport,230007,Contract Hire,04/06/2021,3876030-22799,"4,845.00",GARNETTS LTD (COACHES).
Children and Young Peoples Services,Head of Education and Skills,Transport,230007,Contract Hire,04/06/2021,3876102-INV-6727,"2,560.06",NORTH EAST COACHWAYS LTD.
Children and Young Peoples Services,Head of Education and Skills,Transport,230007,Contract Hire,04/06/2021,3875973-47226,"2,532.89",CHRISTOPHER JAMES GRIERSON T/A GRIERSONS COACHES.
Children and Young Peoples Services,Head of Education and Skills,Transport,230007,Contract Hire,04/06/2021,3875973-47227,"2,471.52",CHRISTOPHER JAMES GRIERSON T/A GRIERSONS COACHES.
Children and Young Peoples Services,Head of Education and Skills,Transport,230007,Contract Hire,04/06/2021,3875973-47228,"1,349.00",CHRISTOPHER JAMES GRIERSON T/A GRIERSONS COACHES.
Children and Young Peoples Services,Head of Education and Skills,Transport,230007,Contract Hire,04/06/2021,3876102-INV-6730,"3,481.75",NORTH EAST COACHWAYS LTD.
Children and Young Peoples Services,Head of Education and Skills,Transport,230007,Contract Hire,04/06/2021,3875953-9-MAY21,"1,919.00",BENNETTS TAXIS.
Children and Young Peoples Services,Head of Education and Skills,Transport,230007,Contract Hire,04/06/2021,3876156-12005WA,"1,887.46",T MOORE & SON.
Children and Young Peoples Services,Head of Education and Skills,Transport,230007,Contract Hire,04/06/2021,3876181-7464,872.29,WEARDALE PRIVATE HIRE.
Children and Young Peoples Services,Head of Education and Skills,Transport,230003,Contract Hire,04/06/2021,3875973-47224,"5,909.00",CHRISTOPHER JAMES GRIERSON T/A GRIERSONS COACHES.
Children and Young Peoples Services,Head of Education and Skills,Transport,230003,Contract Hire,04/06/2021,3875973-47225,"3,154.00",CHRISTOPHER JAMES GRIERSON T/A GRIERSONS COACHES.
Children and Young Peoples Services,Head of Education and Skills,Transport,230003,Contract Hire,04/06/2021,3876030-22804-3302,"3,515.00",GARNETTS LTD (COACHES).
Children and Young Peoples Services,Head of Education and Skills,Transport,230003,Contract Hire,04/06/2021,3875973-47230,"3,154.00",CHRISTOPHER JAMES GRIERSON T/A GRIERSONS COACHES.
Children and Young Peoples Services,Head of Education and Skills,Transport,230003,Contract Hire,04/06/2021,3875973-47231,"3,059.00",CHRISTOPHER JAMES GRIERSON T/A GRIERSONS COACHES.
Children and Young Peoples Services,Head of Education and Skills,Transport,230003,Contract Hire,04/06/2021,3875973-47232,"3,249.00",CHRISTOPHER JAMES GRIERSON T/A GRIERSONS COACHES.
Children and Young Peoples Services,Head of Education and Skills,Transport,230003,Contract Hire,04/06/2021,3876030-22804-3301,"3,515.00",GARNETTS LTD (COACHES).
Children and Young Peoples Services,Head of Education and Skills,Transport,230003,Contract Hire,04/06/2021,3876030-22804-3303,"3,515.00",GARNETTS LTD (COACHES).
Children and Young Peoples Services,Head of Education and Skills,Transport,230003,Contract Hire,04/06/2021,3876156-11705SB,"1,225.50",T MOORE & SON.
Children and Young Peoples Services,Head of Education and Skills,Transport,230003,Contract Hire,04/06/2021,3875973-47233,"2,565.00",CHRISTOPHER JAMES GRIERSON T/A GRIERSONS COACHES.
Children and Young Peoples Services,Head of Education and Skills,Transport,230003,Contract Hire,04/06/2021,3876102-INV-6729,"3,325.00",NORTH EAST COACHWAYS LTD.
Children and Young Peoples Services,Head of Education and Skills,Transport,230003,Contract Hire,04/06/2021,3876030-22805-3004,"3,230.00",GARNETTS LTD (COACHES).
Children and Young Peoples Services,Head of Education and Skills,Transport,230003,Contract Hire,04/06/2021,3876030-22805-3005,"5,890.00",GARNETTS LTD (COACHES).
Children and Young Peoples Services,Head of Education and Skills,Transport,230003,Contract Hire,04/06/2021,3876030-22805-3008,"3,325.00",GARNETTS LTD (COACHES).
Children and Young Peoples Services,Head of Education and Skills,Transport,230003,Contract Hire,04/06/2021,3876030-22805-3203,"3,135.00",GARNETTS LTD (COACHES).
Children and Young Peoples Services,Head of Education and Skills,Transport,230003,Contract Hire,04/06/2021,3876030-22805-3223,"6,270.00",GARNETTS LTD (COACHES).
Children and Young Peoples Services,Head of Education and Skills,Transport,230003,Contract Hire,04/06/2021,3876030-22805-3262,"3,667.00",GARNETTS LTD (COACHES).
Children and Young Peoples Services,Head of Education and Skills,Transport,230003,Contract Hire,04/06/2021,3876030-22805-3333,"3,306.00",GARNETTS LTD (COACHES).
Children and Young Peoples Services,Head of Education and Skills,Transport,230003,Contract Hire,04/06/2021,3875960-2615,"2,615.73",BOB SMITH COACHES.
Children and Young Peoples Services,Head of Education and Skills,Transport,230003,Contract Hire,04/06/2021,3876156-11905SL,"1,675.42",T MOORE & SON.
Children and Young Peoples Services,Head of Education and Skills,Transport,230003,Contract Hire,04/06/2021,3876030-22803-3020,"2,850.00",GARNETTS LTD (COACHES).
Children and Young Peoples Services,Head of Education and Skills,Transport,230003,Contract Hire,04/06/2021,3876030-22803-3024,"2,375.00",GARNETTS LTD (COACHES).
Children and Young Peoples Services,Head of Education and Skills,Transport,230003,Contract Hire,04/06/2021,3876030-22803-3027,"2,527.00",GARNETTS LTD (COACHES).
Children and Young Peoples Services,Head of Education and Skills,Transport,230003,Contract Hire,04/06/2021,3876030-22803-3028,"2,755.00",GARNETTS LTD (COACHES).
Dedicated Schools Grant BG0015,DSG High Needs Block,Transport,230009,Contract Hire,04/06/2021,3875929-52121,728.10,24/7 TAXI SERVICES LTD.
Dedicated Schools Grant BG0015,DSG High Needs Block,Transport,230009,Contract Hire,04/06/2021,3875945-04227,756.00,ATLAS TAXIS CONSETT.
Children and Young Peoples Services,Head of Education and Skills,Transport,230009,Contract Hire,04/06/2021,3876111-7311-MAY,"1,634.00",PAUL WILSON.
Children and Young Peoples Services,Head of Education and Skills,Transport,230009,Contract Hire,04/06/2021,3876076-INV05/2021-29,960.00,MARK & JOHN CHISHOLM T/A (CHEVRON).
Children and Young Peoples Services,Head of Education and Skills,Transport,230004,Contract Hire,04/06/2021,3876181-7466,912.00,WEARDALE PRIVATE HIRE.
Children and Young Peoples Services,Head of Education and Skills,Transport,230004,Contract Hire,04/06/2021,3876181-7467,661.58,WEARDALE PRIVATE HIRE.
Children and Young Peoples Services,Head of Education and Skills,Transport,230006,Contract Hire,04/06/2021,3876014-1117,"3,551.00",EAST DURHAM TAXIS.
Children and Young Peoples Services,Head of Education and Skills,Transport,230006,Contract Hire,04/06/2021,3875929-52110,"1,111.00",24/7 TAXI SERVICES LTD.
Children and Young Peoples Services,Head of Education and Skills,Transport,230006,Contract Hire,04/06/2021,3875929-52119,"1,366.58",24/7 TAXI SERVICES LTD.
Children and Young Peoples Services,Head of Education and Skills,Transport,230006,Contract Hire,04/06/2021,3875952-23,"2,219.52",BELMONT TAXIS.
Children and Young Peoples Services,Head of Education and Skills,Transport,230006,Contract Hire,04/06/2021,3875987-48,"1,544.00",CRAIG MASSEY`S TAXIS.
Children and Young Peoples Services,Head of Education and Skills,Transport,230006,Contract Hire,04/06/2021,3876031-DC028,861.50,GARY JACKSON PRIVATE HIRE.
Children and Young Peoples Services,Head of Education and Skills,Transport,230006,Contract Hire,04/06/2021,3876056-9/20/21,"1,124.00",JOHN BELL TAXI.
Children and Young Peoples Services,Head of Education and Skills,Transport,230006,Contract Hire,04/06/2021,3876069-1918,952.00,LD TAXIS.
Children and Young Peoples Services,Head of Education and Skills,Transport,230006,Contract Hire,04/06/2021,3876111-F848-MAY,"1,512.00",PAUL WILSON.
Children and Young Peoples Services,Head of Education and Skills,Transport,230006,Contract Hire,04/06/2021,3876114-F789-MAY21,702.00,PETER`S TAXIS.
Children and Young Peoples Services,Head of Education and Skills,Transport,230006,Contract Hire,04/06/2021,3876114-F789-MAY21-2,963.00,PETER`S TAXIS.
Children and Young Peoples Services,Head of Education and Skills,Transport,230006,Contract Hire,04/06/2021,3876156-11805BC,"1,539.00",T MOORE & SON.
Children and Young Peoples Services,Head of Education and Skills,Transport,230006,Contract Hire,04/06/2021,3876181-7468,805.35,WEARDALE PRIVATE HIRE.
Children and Young Peoples Services,Head of Education and Skills,Transport,230006,Contract Hire,04/06/2021,3876182-AA9,720.00,WILLIAM PINDER T/A FEATHERBED TAXIS.
Children and Young Peoples Services,Head of Education and Skills,Transport,230006,Contract Hire,04/06/2021,3876069-1924,780.00,LD TAXIS.
Children and Young Peoples Services,Head of Education and Skills,Transport,230006,Contract Hire,04/06/2021,3876014-1109,"2,448.00",EAST DURHAM TAXIS.
Children and Young Peoples Services,Head of Education and Skills,Transport,230006,Contract Hire,04/06/2021,3876109-N061-MAY21,"1,520.00",PAUL GREEN T/A GREEN TAXIS.
Dedicated Schools Grant BG0015,DSG High Needs Block,Transport,230011,Contract Hire,04/06/2021,3875982-008,968.00,COLIN HOWE T/A C H TAXIS.
Children and Young Peoples Services,Head of Education and Skills,Transport,230010,Contract Hire,04/06/2021,3876069-1919,"1,368.00",LD TAXIS.
Children and Young Peoples Services,Head of Education and Skills,Transport,230010,Contract Hire,04/06/2021,3876076-INV05/202101,"3,125.00",MARK & JOHN CHISHOLM T/A (CHEVRON).
Children and Young Peoples Services,Head of Education and Skills,Transport,230010,Contract Hire,04/06/2021,3876076-INV05/202102,"4,271.00",MARK & JOHN CHISHOLM T/A (CHEVRON).
Children and Young Peoples Services,Head of Education and Skills,Transport,230010,Contract Hire,04/06/2021,3876076-INV05/202104,"1,806.14",MARK & JOHN CHISHOLM T/A (CHEVRON).
Children and Young Peoples Services,Head of Education and Skills,Transport,230010,Contract Hire,04/06/2021,3876076-INV05/202105,"2,783.27",MARK & JOHN CHISHOLM T/A (CHEVRON).
Children and Young Peoples Services,Head of Education and Skills,Transport,230010,Contract Hire,04/06/2021,3876076-INV05/202114,"1,877.20",MARK & JOHN CHISHOLM T/A (CHEVRON).
Children and Young Peoples Services,Head of Education and Skills,Transport,230010,Contract Hire,04/06/2021,3876159-05/2021/004,"1,876.00",TARNS TAXIS LTD.
Children and Young Peoples Services,Head of Education and Skills,Transport,230012,Contract Hire,04/06/2021,3876003-05/2021-W009COVER,"2,158.00",DIANE GOOCH T/A COLLINS TAXIS.
Children and Young Peoples Services,Head of Education and Skills,Transport,230012,Contract Hire,04/06/2021,3875933-3889-900,"1,860.67",ALAN SOUTHERN T/A ALANS TAXIS PELTON FELL.
Children and Young Peoples Services,Head of Education and Skills,Transport,230012,Contract Hire,04/06/2021,3875929-52124,"2,299.00",24/7 TAXI SERVICES LTD.
Children and Young Peoples Services,Head of Education and Skills,Transport,230012,Contract Hire,04/06/2021,3876003-05/2021-M035,"3,024.00",DIANE GOOCH T/A COLLINS TAXIS.
Children and Young Peoples Services,Head of Education and Skills,Transport,230016,Contract Hire,04/06/2021,3875939-MAY212,558.00,ANGIE`S TAXIS.
Children and Young Peoples Services,Head of Education and Skills,Transport,230008,Contract Hire,04/06/2021,3875993-0077,"4,238.00",DAVID WALKER TAXIS.
Children and Young Peoples Services,Head of Education and Skills,Transport,230008,Contract Hire,04/06/2021,3875929-52112,"2,471.53",24/7 TAXI SERVICES LTD.
Children and Young Peoples Services,Head of Education and Skills,Transport,230008,Contract Hire,04/06/2021,3875936-MAY21,"1,842.75",ANDREW PYGALL T/A ARP TAXIS.
Children and Young Peoples Services,Head of Education and Skills,Transport,230008,Contract Hire,04/06/2021,3875977-N115-CB0521,"1,942.50",CJ`S EXECUTIVE TRAVEL LTD.
Children and Young Peoples Services,Head of Education and Skills,Transport,230008,Contract Hire,04/06/2021,3876035-77,"2,227.68",GP TAXIS.
Children and Young Peoples Services,Head of Education and Skills,Transport,230008,Contract Hire,04/06/2021,3876076-INV05/2021-21,"3,451.70",MARK & JOHN CHISHOLM T/A (CHEVRON).
Children and Young Peoples Services,Head of Education and Skills,Transport,230008,Contract Hire,04/06/2021,3876076-INV05/2021-22,"3,860.00",MARK & JOHN CHISHOLM T/A (CHEVRON).
Children and Young Peoples Services,Head of Education and Skills,Transport,230008,Contract Hire,04/06/2021,3876090-M054APR,"1,558.00",MR DOMINICK JONES T/A DJ PRIVATE HIRE.
Children and Young Peoples Services,Head of Education and Skills,Transport,230008,Contract Hire,04/06/2021,3875937-0118,"1,472.00",ANDREW SIMPSON T/A ANDY`S CABS.
Children and Young Peoples Services,Head of Education and Skills,Transport,230008,Contract Hire,04/06/2021,3875943-838,"2,439.22",AT TAXIS LTD.
Children and Young Peoples Services,Head of Education and Skills,Transport,230008,Contract Hire,04/06/2021,3875943-839,798.00,AT TAXIS LTD.
Children and Young Peoples Services,Head of Education and Skills,Transport,230008,Contract Hire,04/06/2021,3876065-S020-MAY21,"2,453.66",KEITH GIBSON T/A KEITH`S TAXIS.
Children and Young Peoples Services,Head of Education and Skills,Transport,230008,Contract Hire,04/06/2021,3876092-3169,"1,674.88",MR S BOWERS T/A DH7 TAXIS.
Children and Young Peoples Services,Head of Education and Skills,Transport,230008,Contract Hire,04/06/2021,3876128-0020,"2,565.00",RONS TAXI (CHESTER LE ST).
Children and Young Peoples Services,Head of Education and Skills,Transport,230008,Contract Hire,04/06/2021,3876181-7469,"3,100.80",WEARDALE PRIVATE HIRE.
Children and Young Peoples Services,Head of Education and Skills,Transport,230008,Contract Hire,04/06/2021,3876024-N090-MAY21,"2,090.00",FAIR FARE TRAVEL (TAXIS).
Children and Young Peoples Services,Head of Education and Skills,Transport,230008,Contract Hire,04/06/2021,3876090-W003MAY,"2,008.21",MR DOMINICK JONES T/A DJ PRIVATE HIRE.
Children and Young Peoples Services,Head of Education and Skills,Transport,230008,Contract Hire,04/06/2021,3876092-3171,"4,491.41",MR S BOWERS T/A DH7 TAXIS.
Children and Young Peoples Services,Head of Education and Skills,Transport,230008,Contract Hire,04/06/2021,3875929-52113,"2,318.00",24/7 TAXI SERVICES LTD.
Children and Young Peoples Services,Head of Education and Skills,Transport,230008,Contract Hire,04/06/2021,3875936-MAY212,"1,916.72",ANDREW PYGALL T/A ARP TAXIS.
Children and Young Peoples Services,Head of Education and Skills,Transport,230008,Contract Hire,04/06/2021,3875961-8030-2021,"2,111.28",BOBBY DOVE PRIVATE HIRE.
Children and Young Peoples Services,Head of Education and Skills,Transport,230008,Contract Hire,04/06/2021,3876014-1106,"2,666.56",EAST DURHAM TAXIS.
Children and Young Peoples Services,Head of Education and Skills,Transport,230008,Contract Hire,04/06/2021,3876014-1107,"3,647.05",EAST DURHAM TAXIS.
Children and Young Peoples Services,Head of Education and Skills,Transport,230008,Contract Hire,04/06/2021,3876076-INV05/2021-11,"1,862.00",MARK & JOHN CHISHOLM T/A (CHEVRON).
Children and Young Peoples Services,Head of Education and Skills,Transport,230008,Contract Hire,04/06/2021,3876076-INV05/202110,"2,134.27",MARK & JOHN CHISHOLM T/A (CHEVRON).
Children and Young Peoples Services,Head of Education and Skills,Transport,230008,Contract Hire,04/06/2021,3876090-E046APR,944.50,MR DOMINICK JONES T/A DJ PRIVATE HIRE.
Children and Young Peoples Services,Head of Education and Skills,Transport,230008,Contract Hire,04/06/2021,3876076-INV05/202117,"1,930.97",MARK & JOHN CHISHOLM T/A (CHEVRON).
Children and Young Peoples Services,Head of Education and Skills,Transport,230008,Contract Hire,04/06/2021,3876132-222,"2,196.00",SAM MONTAGUE T/A 8 SEATER TRAVEL.
Children and Young Peoples Services,Head of Education and Skills,Transport,230008,Contract Hire,04/06/2021,3875929-52105,"2,508.00",24/7 TAXI SERVICES LTD.
Children and Young Peoples Services,Head of Education and Skills,Transport,230008,Contract Hire,04/06/2021,3875929-52106,"2,172.84",24/7 TAXI SERVICES LTD.
Children and Young Peoples Services,Head of Education and Skills,Transport,230008,Contract Hire,04/06/2021,3875929-52109,"1,178.00",24/7 TAXI SERVICES LTD.
Children and Young Peoples Services,Head of Education and Skills,Transport,230008,Contract Hire,04/06/2021,3875948-9-MAY21,"1,064.00",B&C YELLOWCAB TAXI`S.
Children and Young Peoples Services,Head of Education and Skills,Transport,230008,Contract Hire,04/06/2021,3876069-1920,"2,066.82",LD TAXIS.
Children and Young Peoples Services,Head of Education and Skills,Transport,230008,Contract Hire,04/06/2021,3876069-1922,"1,938.00",LD TAXIS.
Children and Young Peoples Services,Head of Education and Skills,Transport,230008,Contract Hire,04/06/2021,3876076-INV05/202124,"2,040.00",MARK & JOHN CHISHOLM T/A (CHEVRON).
Children and Young Peoples Services,Head of Education and Skills,Transport,230008,Contract Hire,04/06/2021,3876091-0050,"3,320.63",MR PM MULLEN T/A CATHEDRAL TAXIS.
Children and Young Peoples Services,Head of Education and Skills,Transport,230008,Contract Hire,04/06/2021,3876115-69,"1,983.22",PHILLIP BOYD T/A FILS TAXIS.
Children and Young Peoples Services,Head of Education and Skills,Transport,230008,Contract Hire,04/06/2021,3876159-05/2021/001,"2,318.00",TARNS TAXIS LTD.
Children and Young Peoples Services,Head of Education and Skills,Transport,230008,Contract Hire,04/06/2021,3875943-842,"1,746.00",AT TAXIS LTD.
Children and Young Peoples Services,Head of Education and Skills,Transport,230008,Contract Hire,04/06/2021,3875977-E031-KC0521,"5,058.75",CJ`S EXECUTIVE TRAVEL LTD.
Children and Young Peoples Services,Head of Education and Skills,Transport,230008,Contract Hire,04/06/2021,3876088-3-M055,"1,178.00",MR BW YOUNG T/A ESH TAXIS.
Children and Young Peoples Services,Head of Education and Skills,Transport,230008,Contract Hire,04/06/2021,3875977-M011-AA0521,"1,629.92",CJ`S EXECUTIVE TRAVEL LTD.
Children and Young Peoples Services,Head of Education and Skills,Transport,230008,Contract Hire,04/06/2021,3876003-05/2021-W016,"3,341.00",DIANE GOOCH T/A COLLINS TAXIS.
Children and Young Peoples Services,Head of Education and Skills,Transport,230008,Contract Hire,04/06/2021,3876030-22809,"3,068.50",GARNETTS LTD (COACHES).
Children and Young Peoples Services,Head of Education and Skills,Transport,230008,Contract Hire,04/06/2021,3876030-22809-W099,"3,553.00",GARNETTS LTD (COACHES).
Children and Young Peoples Services,Head of Education and Skills,Transport,230008,Contract Hire,04/06/2021,3876034-016-MAY21,"2,101.40",GMC TAXIS NORTH EAST.
Children and Young Peoples Services,Head of Education and Skills,Transport,230008,Contract Hire,04/06/2021,3876076-INV05/2021-06,"2,561.96",MARK & JOHN CHISHOLM T/A (CHEVRON).
Children and Young Peoples Services,Head of Education and Skills,Transport,230008,Contract Hire,04/06/2021,3876076-INV05/202107,"2,369.30",MARK & JOHN CHISHOLM T/A (CHEVRON).
Children and Young Peoples Services,Head of Education and Skills,Transport,230008,Contract Hire,04/06/2021,3876076-INV05/202108,"2,033.00",MARK & JOHN CHISHOLM T/A (CHEVRON).
Children and Young Peoples Services,Head of Education and Skills,Transport,230008,Contract Hire,04/06/2021,3876129-1858,"1,880.00",RON`S TAXIS (FISHBURN).
Children and Young Peoples Services,Head of Education and Skills,Transport,230008,Contract Hire,04/06/2021,3876129-1859,"2,816.37",RON`S TAXIS (FISHBURN).
Children and Young Peoples Services,Head of Education and Skills,Transport,230008,Contract Hire,04/06/2021,3876003-05/2021-S037,"3,072.84",DIANE GOOCH T/A COLLINS TAXIS.
Children and Young Peoples Services,Head of Education and Skills,Transport,230008,Contract Hire,04/06/2021,3876092-3170,"2,286.00",MR S BOWERS T/A DH7 TAXIS.
Children and Young Peoples Services,Head of Education and Skills,Transport,230008,Contract Hire,04/06/2021,3876111-N037-MAY,"1,188.00",PAUL WILSON.
Children and Young Peoples Services,Head of Education and Skills,Transport,230008,Contract Hire,04/06/2021,3876064-09-N083,"3,021.12",KD TAXIS.
Children and Young Peoples Services,Head of Education and Skills,Transport,230008,Contract Hire,04/06/2021,3876069-1923,"1,476.00",LD TAXIS.
Children and Young Peoples Services,Head of Education and Skills,Transport,230008,Contract Hire,04/06/2021,3875929-52116,"3,347.80",24/7 TAXI SERVICES LTD.
Children and Young Peoples Services,Head of Education and Skills,Transport,230008,Contract Hire,04/06/2021,3875929-52123,"2,888.00",24/7 TAXI SERVICES LTD.
Children and Young Peoples Services,Head of Education and Skills,Transport,230008,Contract Hire,04/06/2021,3875991-4,"2,793.00",DAVID MCKINNELL T/A D&G TRAVEL.
Children and Young Peoples Services,Head of Education and Skills,Transport,230008,Contract Hire,04/06/2021,3876076-INV05/2021-20,"2,698.00",MARK & JOHN CHISHOLM T/A (CHEVRON).
Children and Young Peoples Services,Head of Education and Skills,Transport,230008,Contract Hire,04/06/2021,3876076-INV05/202119,"2,631.12",MARK & JOHN CHISHOLM T/A (CHEVRON).
Children and Young Peoples Services,Head of Education and Skills,Transport,230008,Contract Hire,04/06/2021,3876076-INV052021-18,"2,098.66",MARK & JOHN CHISHOLM T/A (CHEVRON).
Neighbourhoods and Climate Change,Technical Services CM0300,Third Party Payments,460224,Contract Payments,04/06/2021,3876136-22823,"203,197.40",SEYMOUR (CIVIL ENGINEERING CONTRACTORS) LTD.
Neighbourhoods and Climate Change,Partnerships & Community Engagement Div.,Cap Exp on Grants & Other Financial Assistance (REFCUS),918004,Contributions to other bodies 918004,04/06/2021,3876093-VOUCHER16AB-EDUR009,"3,004.00",MURTON WELFARE ASSOCIATION.
Neighbourhoods and Climate Change,Partnerships & Community Engagement Div.,Cap Exp on Grants & Other Financial Assistance (REFCUS),918004,Contributions to other bodies 918004,04/06/2021,3876036-VOUCHER20AB-GAMP012,"3,806.00",GREENFIELD SCHOOL FUND.
Neighbourhoods and Climate Change,Partnerships & Community Engagement Div.,Cap Exp on Grants & Other Financial Assistance (REFCUS),918004,Contributions to other bodies 918004,04/06/2021,3876009-VOUCHER20NB-3TWN029,"4,000.00",DURHAM ALLIANCE FOR COMMUNITY CARE.
Neighbourhoods and Climate Change,Environmental Services,Transport,215005,Running Costs of Vehicles,04/06/2021,3876105-762731,"2,038.22",OIL NRG LTD.
"Regeneration, Economy and Growth",Corporate Property and Land,Supplies and Services,304221,Equipment and Materials,04/06/2021,3876022-SIN018822,"1,443.60",ENERGY CONSERVATION SOLUTIONS LTD (ECSL).
"Regeneration, Economy and Growth",Corporate Property and Land,Supplies and Services,304221,Equipment and Materials,04/06/2021,3875976-2852ABE910,863.89,CITY PLUMBING SUPPLIES HOLDINGS LTD.
Neighbourhoods and Climate Change,Environmental Services,Supplies and Services,304221,Equipment and Materials,04/06/2021,3876126-RSIN0374465,"1,030.00",RIGBY TAYLOR LTD.
Neighbourhoods and Climate Change,Environmental Services,Supplies and Services,304221,Equipment and Materials,04/06/2021,3876126-RSIN0374693,"1,030.00",RIGBY TAYLOR LTD.
Neighbourhoods and Climate Change,Environmental Services,Supplies and Services,304221,Equipment and Materials,04/06/2021,3876126-RSIN0375222,"1,620.00",RIGBY TAYLOR LTD.
Neighbourhoods and Climate Change,Environmental Services,Supplies and Services,304221,Equipment and Materials,04/06/2021,3876183-53676,874.60,WILLOWCRETE MANUFACTURING COMPANY LTD (MFG).
Neighbourhoods and Climate Change,Environmental Services,Supplies and Services,304221,Equipment and Materials,04/06/2021,3876183-53677,"3,033.00",WILLOWCRETE MANUFACTURING COMPANY LTD (MFG).
Neighbourhoods and Climate Change,Technical Services CM0300,Supplies and Services,304221,Equipment and Materials,04/06/2021,3876157-9043433991,544.50,TARMAC TRADING LTD.
Neighbourhoods and Climate Change,Technical Services CM0300,Supplies and Services,304221,Equipment and Materials,04/06/2021,3876165-36722,"3,360.00",TODDS HIGHWAY MAINTENANCE LTD.
Neighbourhoods and Climate Change,Technical Services CM0300,Supplies and Services,304221,Equipment and Materials,04/06/2021,3876171-222154,"1,966.16",TYNEDALE ROADSTONE LTD.
Neighbourhoods and Climate Change,Technical Services CM0300,Supplies and Services,304221,Equipment and Materials,04/06/2021,3876171-222164,581.81,TYNEDALE ROADSTONE LTD.
Neighbourhoods and Climate Change,Technical Services CM0300,Supplies and Services,304221,Equipment and Materials,04/06/2021,3876171-222465,"1,390.97",TYNEDALE ROADSTONE LTD.
Neighbourhoods and Climate Change,Technical Services CM0300,Supplies and Services,304221,Equipment and Materials,04/06/2021,3876171-222541,"1,544.42",TYNEDALE ROADSTONE LTD.
Neighbourhoods and Climate Change,Technical Services CM0300,Supplies and Services,304221,Equipment and Materials,04/06/2021,3876171-222542,903.88,TYNEDALE ROADSTONE LTD.
Neighbourhoods and Climate Change,Technical Services CM0300,Supplies and Services,304221,Equipment and Materials,04/06/2021,3876171-222547,553.42,TYNEDALE ROADSTONE LTD.
Children and Young Peoples Services,Head of Childrens Social Care,Third Party Payments,425028,Rendered by Voluntary Organisations,04/06/2021,3876053-00132,"3,000.00",JENNY FLETCHER.
Dedicated Schools Grant BG0015,DSG High Needs Block,Central Support and Other Recharges,689988,Unclassified E690,04/06/2021,3875930-MAY21TOP-UP,"1,458.00",ACRE RIGG ACADEMY.
Dedicated Schools Grant BG0015,DSG High Needs Block,Central Support and Other Recharges,689988,Unclassified E690,04/06/2021,3875957-MAY21TOP-UP,"4,691.00",BISHOP HOGARTH CATHOLIC EDUCATION TRUST.
Dedicated Schools Grant BG0015,DSG High Needs Block,Central Support and Other Recharges,689988,Unclassified E690,04/06/2021,3876145-MAY21TOP-UP,"1,842.00",STANLEY LEARNING PARTNERSHIP.
Dedicated Schools Grant BG0015,DSG High Needs Block,Central Support and Other Recharges,689988,Unclassified E690,04/06/2021,3876145-MAY21TOP-UP3,"3,268.00",STANLEY LEARNING PARTNERSHIP.
Dedicated Schools Grant BG0015,DSG High Needs Block,Central Support and Other Recharges,689988,Unclassified E690,04/06/2021,3876170-MAY21TOP-UP,"2,576.00",TUDHOE LEARNING TRUST T/A SOUTH HETTON PRIMARY SCHOOL.
Dedicated Schools Grant BG0015,DSG High Needs Block,Central Support and Other Recharges,689988,Unclassified E690,04/06/2021,3876000-MAY21TOP-UP,776.00,DENE ACADEMY.
Dedicated Schools Grant BG0015,DSG High Needs Block,Central Support and Other Recharges,689988,Unclassified E690,04/06/2021,3876016-MAY21TOP-UP,677.00,EDEN LEARNING TRUST T/A FERRYHILL BUSINESS & ENTERPRISE COLLEGE.
Dedicated Schools Grant BG0015,DSG High Needs Block,Central Support and Other Recharges,689988,Unclassified E690,04/06/2021,3876017-MAY21TOP-UP,698.00,EDEN LEARNING TRUST T/A TANFIELD SCHOOL.
Dedicated Schools Grant BG0015,DSG High Needs Block,Central Support and Other Recharges,689988,Unclassified E690,04/06/2021,3876108-MAY21TOP-UP,"1,171.00",PARK VIEW ACADEMY.
"Regeneration, Economy and Growth",Culture Sport and Tourism,Premises,120009,Energy Costs,04/06/2021,3876045-15010,"2,965.21",IMPALA ESTATES LTD.
Neighbourhoods and Climate Change,Environmental Services,Supplies and Services,304259,Equipment and Materials,04/06/2021,3876046-74424,"2,495.50",INDIGO AWNINGS LTD.
Children and Young Peoples Services,Head of Education and Skills,Supplies and Services,304259,Equipment and Materials,04/06/2021,3876059-106263,590.30,JP LENNARD LTD.
"Regeneration, Economy and Growth",Culture Sport and Tourism,Supplies and Services,304259,Equipment and Materials,04/06/2021,3875934-171447,"1,219.00",ALBANY OFFICE EQUIPMENT (WHOLESALE) LTD.
"Regeneration, Economy and Growth",Business Durham CL0850,Premises,120021,Energy Costs,04/06/2021,3875984-16098872,846.05,CORONA ENERGY RETAIL 2 LTD.
"Regeneration, Economy and Growth",Business Durham CL0850,Premises,120021,Energy Costs,04/06/2021,3875984-16098871,599.09,CORONA ENERGY RETAIL 2 LTD.
"Regeneration, Economy and Growth",Corporate Property and Land,Premises,108099,Service Repairs and Maintenance,04/06/2021,3876133-6062965,"1,375.00",SAV SYSTEMS.
"Regeneration, Economy and Growth",Corporate Property and Land,Premises,108099,Service Repairs and Maintenance,04/06/2021,3876118-13853,500.00,PREMIER CELL FIT T/A LIVEWIRE GATES & DOORS.
Neighbourhoods and Climate Change,Environmental Services,Premises,108099,Service Repairs and Maintenance,04/06/2021,3875942-INV001269,580.00,ASSOCIATED MAINTENANCE SERVICES LTD.
Adult and Health Services,Commissioning inc Supporting People,Third Party Payments,442002,Supporting People E442,04/06/2021,3876010-CCG/DCC2020/001-MAY21,"14,395.50",DURHAM DEAFENED SUPPORT.
"Regeneration, Economy and Growth",Transport and Contracted Services,Supplies and Services,384540,Miscellaneous Expenses,04/06/2021,3876038-INV-0448,"1,242.50",GRM MAPPING LTD.
Neighbourhoods and Climate Change,Technical Services CM0300,Supplies and Services,304999,Equipment and Materials,04/06/2021,3875998-55310,961.50,DEH DESIGNS LTD T/A HUDSONS.
Resources BK0010,Legal & Democratic Services,Supplies and Services,344014,Telephones,04/06/2021,3876179-PG42041,765.55,VODAFONE LTD.
Resources BK0010,Digital and Customer Services,Supplies and Services,344015,Telephones,04/06/2021,3876179-PG14999,972.00,VODAFONE LTD.
Resources BK0010,Digital and Customer Services,Supplies and Services,344015,Telephones,04/06/2021,3876179-PG15000,"1,248.00",VODAFONE LTD.
Resources BK0010,Digital and Customer Services,Supplies and Services,344015,Telephones,04/06/2021,3876179-PG66226,"2,080.00",VODAFONE LTD.
Resources BK0010,Digital and Customer Services,Supplies and Services,344015,Telephones,04/06/2021,3876179-PG66227,948.00,VODAFONE LTD.
Resources BK0010,Digital and Customer Services,Supplies and Services,304303,Equipment and Materials,04/06/2021,3876185-KZ37936,612.00,XMA LTD.
Adult and Health Services,Commissioning inc Supporting People,Third Party Payments,479111,Purchase of Care,04/06/2021,3876151-DCC003,"9,862.50",SUNDERLAND AND NORTH DURHAM ROYAL SOCIETY FOR THE BLIND.
Adult and Health Services,Commissioning inc Supporting People,Third Party Payments,479111,Purchase of Care,04/06/2021,3875940-INV-0249,"4,225.00",APM CLEANING LTD.
"Regeneration, Economy and Growth",Corporate Property and Land,Supplies and Services,384199,Miscellaneous Expenses,04/06/2021,3875944-21020913,"26,315.00",ATKINS GLOBAL.
"Regeneration, Economy and Growth",Corporate Property and Land,Supplies and Services,384199,Miscellaneous Expenses,04/06/2021,3875944-21020934,"2,550.00",ATKINS GLOBAL.
"Regeneration, Economy and Growth",Corporate Property and Land,Supplies and Services,384199,Miscellaneous Expenses,04/06/2021,3876130-TEC572587,734.00,RPS CONSULTING SERVICES LTD.
"Regeneration, Economy and Growth",Corporate Property and Land,Supplies and Services,384199,Miscellaneous Expenses,04/06/2021,3876130-TEC573107,"1,534.00",RPS CONSULTING SERVICES LTD.
Resources BK0010,Digital and Customer Services,Supplies and Services,384199,Miscellaneous Expenses,04/06/2021,3876173-R-64842,"2,340.48",UPNORTH ENGINEERING SERVICES LTD.
Neighbourhoods and Climate Change,Environmental Services,Supplies and Services,384199,Miscellaneous Expenses,04/06/2021,3876004-INV-0320,"5,000.00",DIGVENTURES LTD.
"Regeneration, Economy and Growth",Culture Sport and Tourism,Supplies and Services,384199,Miscellaneous Expenses,04/06/2021,3876125-INV21-2-01,"4,000.00",RICHARD BLISS (ARTIST).
Children and Young Peoples Services,Head of Early Help Inclusion & Vulnerable Children.,Supplies and Services,384199,Miscellaneous Expenses,04/06/2021,3875970-LS40,"1,750.00",CAROL ANDREWS.
"Regeneration, Economy and Growth",Transport and Contracted Services,Supplies and Services,384199,Miscellaneous Expenses,04/06/2021,3876139-173829,"4,543.00",SHOWSEC INTERNATIONAL LTD.
"Regeneration, Economy and Growth",Culture Sport and Tourism,Supplies and Services,384199,Miscellaneous Expenses,04/06/2021,3875997-VCDMAY2021,"1,575.00",DEBBIE SHARRATT T/A DEBSHARRATT COMMUNICATIONS.
Children and Young Peoples Services,Head of Education and Skills,Third Party Payments,440999,Other third party payments E440,04/06/2021,3875994-KICKSTART-Z7EY-P7PG,"1,010.75",DAYPARK LTD T/A YELLOW WELLIES.
Children and Young Peoples Services,Head of Education and Skills,Third Party Payments,440999,Other third party payments E440,04/06/2021,3876011-NEI-EXP-06-2021-017,"1,010.75",DURHAM SCHOOL.*
Children and Young Peoples Services,Head of Education and Skills,Third Party Payments,440999,Other third party payments E440,04/06/2021,3876011-NEI-EXP-06-2021-019,"1,010.75",DURHAM SCHOOL.*
Children and Young Peoples Services,Head of Education and Skills,Third Party Payments,440999,Other third party payments E440,04/06/2021,3876011-NEI-EXP-06-2021-020,"1,010.75",DURHAM SCHOOL.*
Children and Young Peoples Services,Head of Education and Skills,Third Party Payments,440999,Other third party payments E440,04/06/2021,3876011-NEI-EXP-06-2021-021,"1,010.75",DURHAM SCHOOL.*
Children and Young Peoples Services,Head of Education and Skills,Third Party Payments,440999,Other third party payments E440,04/06/2021,3876011-NEI-EXP-06-2021-022,"1,010.75",DURHAM SCHOOL.*
Children and Young Peoples Services,Head of Education and Skills,Third Party Payments,440999,Other third party payments E440,04/06/2021,3876011-NEI-EXP-06-2021-023,716.39,DURHAM SCHOOL.*
Children and Young Peoples Services,Head of Education and Skills,Third Party Payments,440999,Other third party payments E440,04/06/2021,3876011-NEI-EXP-06-2021-024,750.00,DURHAM SCHOOL.*
Children and Young Peoples Services,Head of Education and Skills,Third Party Payments,440999,Other third party payments E440,04/06/2021,3876011-NEI-EXP-06-2021-025,716.39,DURHAM SCHOOL.*
Children and Young Peoples Services,Head of Education and Skills,Third Party Payments,440999,Other third party payments E440,04/06/2021,3876011-NEI-EXP-06-2021-026,"1,010.75",DURHAM SCHOOL.*
Children and Young Peoples Services,Head of Education and Skills,Third Party Payments,440999,Other third party payments E440,04/06/2021,3876011-NEI-EXP-06-2021-027,716.39,DURHAM SCHOOL.*
Children and Young Peoples Services,Head of Education and Skills,Third Party Payments,440999,Other third party payments E440,04/06/2021,3876086-NEI-EXP-06-2021-018,"1,010.75",MOVEABLE FEASTS ARTS.
Adult and Health Services,Commissioning inc Supporting People,Third Party Payments,440999,Other third party payments E440,04/06/2021,3876066-CAS-06-2021-041,"7,900.00",KELLY PARK LTD..
Dedicated Schools Grant BG0015,DSG High Needs Block,Central Support and Other Recharges,689989,Unclassified E690,04/06/2021,3875958-MAY21TOP-UP,"1,334.00",BISHOP WILKINSON CE TRUST.
Dedicated Schools Grant BG0015,DSG High Needs Block,Central Support and Other Recharges,689989,Unclassified E690,04/06/2021,3875979-MAY21TOP-UP,"8,825.00",CLEVES CROSS LEARNING TRUST.
Dedicated Schools Grant BG0015,DSG High Needs Block,Central Support and Other Recharges,689989,Unclassified E690,04/06/2021,3876001-MAY21TOP-UP,"3,861.00",DENE HOUSE PRIMARY SCHOOL (ACADEMY).
Dedicated Schools Grant BG0015,DSG High Needs Block,Central Support and Other Recharges,689989,Unclassified E690,04/06/2021,3876015-MAY21TOP-UP,"2,775.00",EDEN LEARNING TRUST T/A CHILTON ACADEMY.
Dedicated Schools Grant BG0015,DSG High Needs Block,Central Support and Other Recharges,689989,Unclassified E690,04/06/2021,3876055-MAY21TOP-UP,"1,334.00",JIGSAW LEARNING TRUST.
Dedicated Schools Grant BG0015,DSG High Needs Block,Central Support and Other Recharges,689989,Unclassified E690,04/06/2021,3876145-MAY21TOP-UP2,617.00,STANLEY LEARNING PARTNERSHIP.
"Regeneration, Economy and Growth",Corporate Property and Land,Third Party Payments,430100,Rendered by Private Contractors,04/06/2021,3875950-2115-001,"7,883.77",BCE NORTHERN LTD.
"Regeneration, Economy and Growth",Corporate Property and Land,Third Party Payments,430100,Rendered by Private Contractors,04/06/2021,3876097-32367,"1,100.00",NE & C WINDOWS & DOORS LTD.
"Regeneration, Economy and Growth",Corporate Property and Land,Third Party Payments,430100,Rendered by Private Contractors,04/06/2021,3876143-7564,"1,546.00",ST ASTIER LTD.
"Regeneration, Economy and Growth",Corporate Property and Land,Third Party Payments,430100,Rendered by Private Contractors,04/06/2021,3875971-572,717.63,CEILINGS DIRECT LTD.
Neighbourhoods and Climate Change,Technical Services CM0300,Third Party Payments,430100,Rendered by Private Contractors,04/06/2021,3876123-2858/210537,"160,849.06",RAINTON CONSTRUCTION LTD.
"Regeneration, Economy and Growth",Corporate Property and Land,Premises,106082,Centrally Controlled Rep and Maint,04/06/2021,3876080-44113-21,842.00,MCVICKERS LTD.
Neighbourhoods and Climate Change,Environmental Services,Premises,106082,Centrally Controlled Rep and Maint,04/06/2021,3875941-35524,"1,236.26",AQUAJET DRAIN CLEANING LTD.
Children and Young Peoples Services,Head of Education and Skills,Transfer Payments,510026,School Children,04/06/2021,3875995-MAY21TOP-UP,749.00,DAYPARK LTD T/A YELLOW WELLIES.
Dedicated Schools Grant BG0015,DSG High Needs Block,Transfer Payments,510025,School Children,04/06/2021,3875959-MAY21TOP-UP,"1,349.00",BLUE SKY CHILDCARE.
Dedicated Schools Grant BG0015,DSG High Needs Block,Transfer Payments,510025,School Children,04/06/2021,3875964-MAY21TOP-UP,857.00,BUDDIES CHILDCARE CENTRE.
Dedicated Schools Grant BG0015,DSG High Needs Block,Transfer Payments,510025,School Children,04/06/2021,3875986-MAY21TOP-UP,"1,021.00",CRAGHEAD CHILDCARE CENTRE.
Dedicated Schools Grant BG0015,DSG High Needs Block,Transfer Payments,510025,School Children,04/06/2021,3876033-MAY21TOP-UP,"1,276.00",GIANT STEPS LTD.
Dedicated Schools Grant BG0015,DSG High Needs Block,Transfer Payments,510025,School Children,04/06/2021,3876152-MAY21TOP-UP,857.00,SUNSHINE DAY NURSERY LTD.
Dedicated Schools Grant BG0015,DSG High Needs Block,Transfer Payments,510025,School Children,04/06/2021,3876184-MAY21TOP-UP,"1,859.00",WINGATE COMMUNITY CHILDCARE LTD.
Dedicated Schools Grant BG0015,DSG High Needs Block,Transfer Payments,510025,School Children,04/06/2021,3876186-MAY21TOP-UP,"1,142.00",YORK HOUSE NURSERY.
Children and Young Peoples Services,Head of Childrens Social Care,Transport,230005,Contract Hire,04/06/2021,3876149-MAY6/STL,527.50,STL CABS.
Children and Young Peoples Services,Head of Childrens Social Care,Transport,230005,Contract Hire,04/06/2021,3876070-4895,"2,070.00",LOCAL TRANSPORT LTD.
Children and Young Peoples Services,Head of Childrens Social Care,Transport,230005,Contract Hire,04/06/2021,3875988-110666,814.10,CROFT BUSINESS SERVICES (UK) LTD T/A CROFT TAXIS.
Children and Young Peoples Services,Head of Childrens Social Care,Transport,230005,Contract Hire,04/06/2021,3876070-4892,"2,350.00",LOCAL TRANSPORT LTD.
Children and Young Peoples Services,Head of Childrens Social Care,Transport,230005,Contract Hire,04/06/2021,3875980-CLUB2120G,680.00,CLUBMAN CABS.
Children and Young Peoples Services,Head of Childrens Social Care,Transport,230005,Contract Hire,04/06/2021,3875980-CLUB2121F,520.00,CLUBMAN CABS.
Children and Young Peoples Services,Head of Childrens Social Care,Transport,230005,Contract Hire,04/06/2021,3875988-110677,893.80,CROFT BUSINESS SERVICES (UK) LTD T/A CROFT TAXIS.
Adult and Health Services,Head of Adults,Transport,230005,Contract Hire,04/06/2021,3876029-102350,825.00,G & P JOHNSON LTD T/A NIGHTINGALE COACHES.
Adult and Health Services,Head of Adults,Transport,230005,Contract Hire,04/06/2021,3876156-12405LC,"1,128.40",T MOORE & SON.
Children and Young Peoples Services,Head of Early Help Inclusion & Vulnerable Children.,Transport,230005,Contract Hire,04/06/2021,3875988-110667,765.90,CROFT BUSINESS SERVICES (UK) LTD T/A CROFT TAXIS.
Adult and Health Services,Head of Adults,Transport,230005,Contract Hire,04/06/2021,3875990-F016,680.00,DAVID BRIDDICK T/A COUNDONS TAXIS.
Adult and Health Services,Head of Adults,Transport,230005,Contract Hire,04/06/2021,3876069-MAY-DW123,"1,338.84",LD TAXIS.
Adult and Health Services,Head of Adults,Transport,230005,Contract Hire,04/06/2021,3876111-DM170-MAY,"1,200.00",PAUL WILSON.
Adult and Health Services,Head of Adults,Transport,230005,Contract Hire,04/06/2021,3876114-DM204-MAY21,744.00,PETER`S TAXIS.
Adult and Health Services,Head of Adults,Transport,230005,Contract Hire,04/06/2021,3876129-1855,"1,364.88",RON`S TAXIS (FISHBURN).
Neighbourhoods and Climate Change,Technical Services CM0300,Stock A926,926900,Stock in hand-Inventory system,04/06/2021,3875928-271964,"1,402.80",1ST COVERALL COMPANY LTD.
Neighbourhoods and Climate Change,Technical Services CM0300,Stock A926,926900,Stock in hand-Inventory system,04/06/2021,3875928-271975,553.00,1ST COVERALL COMPANY LTD.
Neighbourhoods and Climate Change,Technical Services CM0300,Stock A926,926900,Stock in hand-Inventory system,04/06/2021,3875981-860124,509.00,CMT EQUIPMENT LTD.
Neighbourhoods and Climate Change,Technical Services CM0300,Stock A926,926900,Stock in hand-Inventory system,04/06/2021,3876023-137376,"3,013.56",FABRIKAT (NOTTINGHAM) LTD.
Neighbourhoods and Climate Change,Technical Services CM0300,Stock A926,926900,Stock in hand-Inventory system,04/06/2021,3876023-137380,"12,556.50",FABRIKAT (NOTTINGHAM) LTD.
Neighbourhoods and Climate Change,Technical Services CM0300,Stock A926,926900,Stock in hand-Inventory system,04/06/2021,3876023-137384,"2,511.30",FABRIKAT (NOTTINGHAM) LTD.
Neighbourhoods and Climate Change,Technical Services CM0300,Stock A926,926900,Stock in hand-Inventory system,04/06/2021,3876037-06/124743,"1,962.02",GREENHAM TRADING LTD.
Neighbourhoods and Climate Change,Technical Services CM0300,Stock A926,926900,Stock in hand-Inventory system,04/06/2021,3876048-783755,"3,472.00",INSTARMAC GROUP PLC.
Neighbourhoods and Climate Change,Technical Services CM0300,Stock A926,926900,Stock in hand-Inventory system,04/06/2021,3876054-10171,904.80,JG UNIFORMS.
Neighbourhoods and Climate Change,Technical Services CM0300,Stock A926,926900,Stock in hand-Inventory system,04/06/2021,3876062-0119/00377613,703.20,JT DOVE LTD.
Neighbourhoods and Climate Change,Technical Services CM0300,Stock A926,926900,Stock in hand-Inventory system,04/06/2021,3876107-XL271065,"2,085.50",PARK ELECTRICAL DISTRIBUTORS LTD.
Neighbourhoods and Climate Change,Technical Services CM0300,Stock A926,926900,Stock in hand-Inventory system,04/06/2021,3876107-XL271066,"2,684.00",PARK ELECTRICAL DISTRIBUTORS LTD.
Neighbourhoods and Climate Change,Technical Services CM0300,Stock A926,926900,Stock in hand-Inventory system,04/06/2021,3876107-XL271204,826.08,PARK ELECTRICAL DISTRIBUTORS LTD.
Neighbourhoods and Climate Change,Technical Services CM0300,Stock A926,926900,Stock in hand-Inventory system,04/06/2021,3876107-XL271205,"1,309.00",PARK ELECTRICAL DISTRIBUTORS LTD.
Neighbourhoods and Climate Change,Technical Services CM0300,Stock A926,926900,Stock in hand-Inventory system,04/06/2021,3876107-XL271206,"3,148.50",PARK ELECTRICAL DISTRIBUTORS LTD.
Neighbourhoods and Climate Change,Technical Services CM0300,Stock A926,926900,Stock in hand-Inventory system,04/06/2021,3876141-90,"2,805.84",SNAPFAST LTD.
"Regeneration, Economy and Growth",Culture Sport and Tourism,Supplies and Services,372009,Subscriptions E372,04/06/2021,3876176-7501330622,768.00,VERIFONE (UK) LTD.
Adult and Health Services,Head of Adults,Third Party Payments,478151,Purchase of Care,04/06/2021,3875996-INV-0811,"2,160.00",DEACONSTAR LTD.
Adult and Health Services,Head of Adults,Third Party Payments,478151,Purchase of Care,04/06/2021,3875996-INV-0812,840.00,DEACONSTAR LTD.
Adult and Health Services,Head of Adults,Third Party Payments,478151,Purchase of Care,04/06/2021,3876085-19,"2,500.00",MOORLAND HOLDINGS (NE) LTD.
Adult and Health Services,Head of Adults,Third Party Payments,478151,Purchase of Care,04/06/2021,3876106-18,"1,440.00",OLIVE STONE SUPPORT.
Adult and Health Services,Head of Adults,Third Party Payments,478151,Purchase of Care,04/06/2021,3876117-26001583,"2,040.00",POTENSIAL LTD.
"Regeneration, Economy and Growth",Business Durham CL0850,Premises,135005,Water Services,04/06/2021,3876180-INV04599638,"1,744.94",WATER PLUS GROUP LTD T/A WATER PLUS SELECT LTD.
"Regeneration, Economy and Growth",Business Durham CL0850,Premises,135005,Water Services,04/06/2021,3876180-INV04647970,967.69,WATER PLUS GROUP LTD T/A WATER PLUS SELECT LTD.
Resources BK0010,Legal & Democratic Services,Supplies and Services,338042,Services,07/06/2021,3876285-361889-MAY,"15,000.00",NEW PARK COURT CHAMBERS.
"Regeneration, Economy and Growth",Culture Sport and Tourism,Premises,145023,Cleaning and Domestic Supplies,07/06/2021,3876243-06/124858,578.60,GREENHAM TRADING LTD.
"Regeneration, Economy and Growth",Corporate Property and Land,Supplies and Services,342033,Computers and Communications,07/06/2021,3876252-5321428,976.00,INSIGHT DIRECT (UK) LTD.
"Regeneration, Economy and Growth",Transport and Contracted Services,Supplies and Services,338080,Services,07/06/2021,3876229-3743,931.01,ESP SYSTEX LTD.
Children and Young Peoples Services,Head of Education and Skills,Supplies and Services,352001,Conference Expenses,07/06/2021,3876310-INV-3605,525.00,SOLVENDIS LTD.
Children and Young Peoples Services,Head of Early Help Inclusion & Vulnerable Children.,Supplies and Services,352001,Conference Expenses,07/06/2021,3876329-INUK11821,"4,505.00",TRIPLE P UK LTD.
Children and Young Peoples Services,Head of Education and Skills,Construction work A908,908105,Construction work,07/06/2021,3876228-170879,"184,366.22",ESH CONSTRUCTION LTD FORMERLY LUMSDEN & CARROLL CONSTRUCTION LTD.
Dedicated Schools Grant BG0015,DSG High Needs Block,Transport,230011,Contract Hire,07/06/2021,3876280-MAY21-9001,796.10,MR MARK WILE T/A HARRY`S TAXIS.
Neighbourhoods and Climate Change,Environmental Services,Transport,215005,Running Costs of Vehicles,07/06/2021,3876289-763387,"6,045.60",OIL NRG LTD.
Neighbourhoods and Climate Change,Environmental Services,Transport,215005,Running Costs of Vehicles,07/06/2021,3876289-763677,"13,548.60",OIL NRG LTD.
Neighbourhoods and Climate Change,Environmental Services,Transport,215005,Running Costs of Vehicles,07/06/2021,3876289-762727,"7,053.20",OIL NRG LTD.
"Regeneration, Economy and Growth",Corporate Property and Land,Supplies and Services,304221,Equipment and Materials,07/06/2021,3876226-059-282459,"1,416.25",EDMUNDSON ELECTRICAL LTD.
"Regeneration, Economy and Growth",Corporate Property and Land,Supplies and Services,304221,Equipment and Materials,07/06/2021,3876187-515731,"3,370.00",(PASS) PORTABLE APPLIANCE SAFETY SERVICES LTD.
Neighbourhoods and Climate Change,Environmental Services,Supplies and Services,304221,Equipment and Materials,07/06/2021,3876287-34483,"2,550.00",NIGEL BUCHANAN T/A PREMIER PARTS UK LTD.
Neighbourhoods and Climate Change,Environmental Services,Supplies and Services,304221,Equipment and Materials,07/06/2021,3876287-34597,"1,275.00",NIGEL BUCHANAN T/A PREMIER PARTS UK LTD.
Neighbourhoods and Climate Change,Environmental Services,Supplies and Services,304221,Equipment and Materials,07/06/2021,3876214-420154,558.00,CARRS BILLINGTON AGRICULTURE.
Neighbourhoods and Climate Change,Technical Services CM0300,Supplies and Services,304221,Equipment and Materials,07/06/2021,3876205-BMPR/414/BJW,756.00,BISHOP MIDDLEHAM PLANT & RECYCLING LTD.
Neighbourhoods and Climate Change,Technical Services CM0300,Supplies and Services,304221,Equipment and Materials,07/06/2021,3876259-0113/00363608,722.11,JT DOVE LTD.
Neighbourhoods and Climate Change,Technical Services CM0300,Supplies and Services,304221,Equipment and Materials,07/06/2021,3876259-0303/00373705,"1,040.00",JT DOVE LTD.
Neighbourhoods and Climate Change,Technical Services CM0300,Supplies and Services,304221,Equipment and Materials,07/06/2021,3876325-36721,500.00,TODDS HIGHWAY MAINTENANCE LTD.
Neighbourhoods and Climate Change,Technical Services CM0300,Supplies and Services,304221,Equipment and Materials,07/06/2021,3876325-36733,"1,000.00",TODDS HIGHWAY MAINTENANCE LTD.
Neighbourhoods and Climate Change,Technical Services CM0300,Supplies and Services,304221,Equipment and Materials,07/06/2021,3876330-222163,532.50,TYNEDALE ROADSTONE LTD.
Neighbourhoods and Climate Change,Technical Services CM0300,Supplies and Services,304221,Equipment and Materials,07/06/2021,3876330-222170,627.08,TYNEDALE ROADSTONE LTD.
Neighbourhoods and Climate Change,Technical Services CM0300,Supplies and Services,304221,Equipment and Materials,07/06/2021,3876330-222310,902.89,TYNEDALE ROADSTONE LTD.
Neighbourhoods and Climate Change,Technical Services CM0300,Supplies and Services,304221,Equipment and Materials,07/06/2021,3876330-222311,536.83,TYNEDALE ROADSTONE LTD.
Neighbourhoods and Climate Change,Technical Services CM0300,Supplies and Services,304221,Equipment and Materials,07/06/2021,3876330-222314,537.69,TYNEDALE ROADSTONE LTD.
Neighbourhoods and Climate Change,Technical Services CM0300,Supplies and Services,304221,Equipment and Materials,07/06/2021,3876330-222319,587.86,TYNEDALE ROADSTONE LTD.
Neighbourhoods and Climate Change,Technical Services CM0300,Supplies and Services,304221,Equipment and Materials,07/06/2021,3876330-222321,778.24,TYNEDALE ROADSTONE LTD.
Neighbourhoods and Climate Change,Technical Services CM0300,Supplies and Services,304221,Equipment and Materials,07/06/2021,3876334-25724,"5,458.00",WARD TIMBER LTD.
Adult and Health Services,Head of Adults,Supplies and Services,338365,Services,07/06/2021,3876230-4100719942,950.00,F TIFFEN BUILDING SERVICES.
"Regeneration, Economy and Growth",Culture Sport and Tourism,Supplies and Services,304259,Equipment and Materials,07/06/2021,3876192-1379,"3,897.65",ALAN FIFIELD T/A A FIFIELD SERVICES.
Dedicated Schools Grant BG0015,DSG High Needs Block,Supplies and Services,304259,Equipment and Materials,07/06/2021,3876198-259980,908.00,ANN ARBOR PUBLISHERS.
Dedicated Schools Grant BG0015,DSG High Needs Block,Supplies and Services,304259,Equipment and Materials,07/06/2021,3876241-SINV00311691,"1,935.87",GL ASSESSMENT LTD.
Neighbourhoods and Climate Change,Environmental Services,Supplies and Services,304252,Equipment and Materials,07/06/2021,3876251-90287,"1,025.53",INITIAL PROJECTS LTD T/A ENITIAL.
Children and Young Peoples Services,Head of Early Help Inclusion & Vulnerable Children.,Supplies and Services,308011,Furniture,07/06/2021,3876293-SI/72019,551.50,PINEAPPLE CONTRACTS.
Resources BK0010,Corporate Finance & Commercial Services,Supplies and Services,308011,Furniture,07/06/2021,3876193-171375,700.00,ALBANY OFFICE EQUIPMENT (WHOLESALE) LTD.
"Regeneration, Economy and Growth",Business Durham CL0850,Premises,108099,Service Repairs and Maintenance,07/06/2021,3876305-13921,503.25,SAFEGUARD SECURITY (NE) LTD.
Adult and Health Services,Commissioning inc Supporting People,Third Party Payments,442002,Supporting People E442,07/06/2021,3876270-555/07859,"15,053.00",MENTAL HEALTH MATTERS.
Neighbourhoods and Climate Change,Technical Services CM0300,Supplies and Services,304358,Equipment and Materials,07/06/2021,3876240-78347,747.00,GEORGE VARDY HAULAGE.
Neighbourhoods and Climate Change,Technical Services CM0300,Supplies and Services,304358,Equipment and Materials,07/06/2021,3876240-78406,722.00,GEORGE VARDY HAULAGE.
Neighbourhoods and Climate Change,Technical Services CM0300,Supplies and Services,304358,Equipment and Materials,07/06/2021,3876267-6066,"1,979.00",MAKEPEACE MOTORS.
Neighbourhoods and Climate Change,Technical Services CM0300,Supplies and Services,304358,Equipment and Materials,07/06/2021,3876267-6067,"1,979.00",MAKEPEACE MOTORS.
Neighbourhoods and Climate Change,Technical Services CM0300,Supplies and Services,304358,Equipment and Materials,07/06/2021,3876267-6077,"2,255.50",MAKEPEACE MOTORS.
Neighbourhoods and Climate Change,Technical Services CM0300,Supplies and Services,304358,Equipment and Materials,07/06/2021,3876267-6078,"2,255.50",MAKEPEACE MOTORS.
Neighbourhoods and Climate Change,Technical Services CM0300,Supplies and Services,304358,Equipment and Materials,07/06/2021,3876304-102-2021,690.00,S & R LANDSCAPES.
Neighbourhoods and Climate Change,Technical Services CM0300,Supplies and Services,304358,Equipment and Materials,07/06/2021,3876304-2605,713.00,S & R LANDSCAPES.
Neighbourhoods and Climate Change,Technical Services CM0300,Supplies and Services,304358,Equipment and Materials,07/06/2021,3876304-2631,645.00,S & R LANDSCAPES.
Neighbourhoods and Climate Change,Technical Services CM0300,Supplies and Services,304358,Equipment and Materials,07/06/2021,3876304-2639,825.50,S & R LANDSCAPES.
Neighbourhoods and Climate Change,Technical Services CM0300,Supplies and Services,304358,Equipment and Materials,07/06/2021,3876304-2646,795.50,S & R LANDSCAPES.
Neighbourhoods and Climate Change,Technical Services CM0300,Supplies and Services,304358,Equipment and Materials,07/06/2021,3876304-2647,"1,029.75",S & R LANDSCAPES.
Neighbourhoods and Climate Change,Technical Services CM0300,Supplies and Services,304358,Equipment and Materials,07/06/2021,3876304-2648,999.50,S & R LANDSCAPES.
Neighbourhoods and Climate Change,Technical Services CM0300,Supplies and Services,304357,Equipment and Materials,07/06/2021,3876236-DCC160521,"16,551.34",GAP GROUP LTD.
"Regeneration, Economy and Growth",Corporate Property and Land,Supplies and Services,304999,Equipment and Materials,07/06/2021,3876201-2974131,626.40,BES LTD.
Adult and Health Services,Commissioning inc Supporting People,Third Party Payments,479111,Purchase of Care,07/06/2021,3876266-4326,"11,757.00",MAIN - TAKING AUTISM PERSONALLY.
"Regeneration, Economy and Growth",Corporate Property and Land,Supplies and Services,384199,Miscellaneous Expenses,07/06/2021,3876301-TEC572579,"1,514.00",RPS CONSULTING SERVICES LTD.
"Regeneration, Economy and Growth",Culture Sport and Tourism,Supplies and Services,384199,Miscellaneous Expenses,07/06/2021,3876267-6086,"2,227.38",MAKEPEACE MOTORS.
"Regeneration, Economy and Growth",Transport and Contracted Services,Supplies and Services,384199,Miscellaneous Expenses,07/06/2021,3876295-170310,"19,690.00",PREMIER TRAFFIC MANAGEMENT LTD.
Resources BK0010,Legal & Democratic Services,Supplies and Services,338099,Services,07/06/2021,3876256-S7196,744.00,JEFF DOBSON MARQUEE HIRE.
Children and Young Peoples Services,Head of Education and Skills,Supplies and Services,338099,Services,07/06/2021,3876294-900922489,688.98,PORTAKABIN LTD.
Children and Young Peoples Services,Head of Education and Skills,Supplies and Services,338099,Services,07/06/2021,3876294-900922488,"1,300.01",PORTAKABIN LTD.
Children and Young Peoples Services,Head of Education and Skills,Third Party Payments,440999,Other third party payments E440,07/06/2021,3876221-KICK5044718INVOICE000057,"1,010.75",DEERNESS VALLEY NURSERY SCHOOL.
Children and Young Peoples Services,Head of Education and Skills,Third Party Payments,440999,Other third party payments E440,07/06/2021,3876221-KICK5044718INVOICE000058,"1,010.75",DEERNESS VALLEY NURSERY SCHOOL.
Children and Young Peoples Services,Head of Education and Skills,Third Party Payments,440999,Other third party payments E440,07/06/2021,3876320-KICK5044718INVOICE000059,"1,010.75",THE FACE & BODY CLINIC T/A AUTON LTD.
Children and Young Peoples Services,Head of Education and Skills,Third Party Payments,440999,Other third party payments E440,07/06/2021,3876332-KICK5044718INVOICE000060,"1,010.75",VANQUISH HAIR & BEAUTY LTD.
"Regeneration, Economy and Growth",Corporate Property and Land,Third Party Payments,430100,Rendered by Private Contractors,07/06/2021,3876215-568,"5,075.84",CEILINGS DIRECT LTD.
"Regeneration, Economy and Growth",Corporate Property and Land,Third Party Payments,430100,Rendered by Private Contractors,07/06/2021,3876260-1482,"33,629.50",KARLIN TIMBER FRAME (NE) LTD.
"Regeneration, Economy and Growth",Corporate Property and Land,Third Party Payments,430100,Rendered by Private Contractors,07/06/2021,3876312-17280,924.65,STONE TECHNICAL SERVICES LTD.
"Regeneration, Economy and Growth",Corporate Property and Land,Third Party Payments,430100,Rendered by Private Contractors,07/06/2021,3876237-823935,"12,459.60",GARTEC LTD.
"Regeneration, Economy and Growth",Corporate Property and Land,Third Party Payments,430100,Rendered by Private Contractors,07/06/2021,3876199-33158,"4,977.00",AYCLIFFE FABRICATIONS LTD.
"Regeneration, Economy and Growth",Culture Sport and Tourism,Third Party Payments,430100,Rendered by Private Contractors,07/06/2021,3876309-16786,641.69,SMITH CONSTRUCTION (HECKINGTON) LTD.
Neighbourhoods and Climate Change,Environmental Services,Supplies and Services,338066,Services,07/06/2021,3876203-INV-29711,"1,278.00",BETTER IMPACT SOFTWARE LTD.
Resources BK0010,Corporate Finance & Commercial Services,Supplies and Services,338066,Services,07/06/2021,3876264-DFE80203590,"19,000.00",LINK TREASURY SERVICES LTD.
Adult and Health Services,Public Health CC0450,Third Party Payments,460803,Contract Payments,07/06/2021,3876248-067-22-1801-04,"387,252.00",HUMANKIND CHARITY.
Neighbourhoods and Climate Change,Environmental Services,Supplies and Services,338078,Services,07/06/2021,3876311-17111,"7,434.30",STEADFAST SECURITY SOLUTIONS LTD.
Neighbourhoods and Climate Change,Environmental Services,Supplies and Services,338078,Services,07/06/2021,3876311-17112,"9,556.26",STEADFAST SECURITY SOLUTIONS LTD.
Neighbourhoods and Climate Change,Environmental Services,Supplies and Services,338078,Services,07/06/2021,3876311-17113,"6,713.95",STEADFAST SECURITY SOLUTIONS LTD.
Children and Young Peoples Services,Head of Early Help Inclusion & Vulnerable Children.,Supplies and Services,338078,Services,07/06/2021,3876311-17109,"17,844.32",STEADFAST SECURITY SOLUTIONS LTD.
Neighbourhoods and Climate Change,Technical Services CM0300,Stock A926,926900,Stock in hand-Inventory system,07/06/2021,3876326-104811,"2,750.00",TOTAL RENTAL SOLUTIONS.
Neighbourhoods and Climate Change,Technical Services CM0300,Stock A926,926900,Stock in hand-Inventory system,07/06/2021,3876326-104812,"3,375.00",TOTAL RENTAL SOLUTIONS.
Neighbourhoods and Climate Change,Technical Services CM0300,Stock A926,926900,Stock in hand-Inventory system,07/06/2021,3876326-104813,"1,344.00",TOTAL RENTAL SOLUTIONS.
Neighbourhoods and Climate Change,Technical Services CM0300,Stock A926,926900,Stock in hand-Inventory system,07/06/2021,3876326-104814,"1,346.80",TOTAL RENTAL SOLUTIONS.
Neighbourhoods and Climate Change,Technical Services CM0300,Stock A926,926900,Stock in hand-Inventory system,07/06/2021,3876326-104835,"1,200.00",TOTAL RENTAL SOLUTIONS.
Neighbourhoods and Climate Change,Technical Services CM0300,Stock A926,926900,Stock in hand-Inventory system,07/06/2021,3876337-603323,600.00,WILLIAM SMITH GROUP 1832.
Adult and Health Services,Head of Adults,Supplies and Services,338089,Services,07/06/2021,3876336-1640,960.00,WELL HANDLED LTD.
Children and Young Peoples Services,Head of Education and Skills,Supplies and Services,336005,Advertising E336,08/06/2021,3877202-INVTES00187576,759.05,TES GLOBAL LTD.
"Regeneration, Economy and Growth",Culture Sport and Tourism,Supplies and Services,312013,Newspapers books and periodicals E312,08/06/2021,3876906-6489678,534.23,ASKEWS & HOLTS LIBRARY SERVICES LTD.
"Regeneration, Economy and Growth",Culture Sport and Tourism,Third Party Payments,430131,Rendered by Private Contractors,08/06/2021,3877074-2021007,"1,363.00",MICHELLE GARTON T/A GET FIT NORTH EAST.
Children and Young Peoples Services,Head of Early Help Inclusion & Vulnerable Children.,Supplies and Services,324500,Provisions E324,08/06/2021,3876949-23831,"13,813.97",CREATIVE MANAGEMENT SERVICES LTD.
Children and Young Peoples Services,Head of Childrens Social Care,Third Party Payments,440062,Other third party payments E440,08/06/2021,3877363-PIG_97437,"2,901.76",DALE CARE LTD.
Children and Young Peoples Services,Head of Childrens Social Care,Third Party Payments,440062,Other third party payments E440,08/06/2021,3877387-PIG_97415,"2,840.69",EMBRACING CARE.
Children and Young Peoples Services,Head of Childrens Social Care,Third Party Payments,440062,Other third party payments E440,08/06/2021,3877541-PIG_98027,"2,337.30",ORCHARD HOME CARE SERVICES LTD.
Children and Young Peoples Services,Head of Childrens Social Care,Third Party Payments,440062,Other third party payments E440,08/06/2021,3877554-PIG_97416,"1,128.90",PERFECT CARE LTD.
Adult and Health Services,Head of Adults,Third Party Payments,440062,Other third party payments E440,08/06/2021,3877377-PIG_98028,572.40,EBONEY HOME CARE LTD.
Adult and Health Services,Head of Adults,Third Party Payments,440062,Other third party payments E440,08/06/2021,3877561-PIG_97417,826.80,PREMIER COMMUNITY CARE LTD.
Resources BK0010,Digital and Customer Services,Vehicles Equipment Furniture and Fittings,912701,Computer equipment,08/06/2021,3876994-INV0182455,"1,010.20",GVAV LTD.
Resources BK0010,Digital and Customer Services,Supplies and Services,342033,Computers and Communications,08/06/2021,3877016-5322854,964.25,INSIGHT DIRECT (UK) LTD.
Resources BK0010,Digital and Customer Services,Supplies and Services,342033,Computers and Communications,08/06/2021,3876954-7402715859,"5,097.20",DELL COMPUTER CORPORATION LTD.
Resources BK0010,Digital and Customer Services,Supplies and Services,342033,Computers and Communications,08/06/2021,3876954-7402716956,"2,206.90",DELL COMPUTER CORPORATION LTD.
Resources BK0010,Digital and Customer Services,Supplies and Services,342033,Computers and Communications,08/06/2021,3877136-OP/I899239,547.68,PHOENIX SOFTWARE LTD.
Resources BK0010,Digital and Customer Services,Supplies and Services,342033,Computers and Communications,08/06/2021,3877136-OP/I899240,821.52,PHOENIX SOFTWARE LTD.
Resources BK0010,Digital and Customer Services,Supplies and Services,342033,Computers and Communications,08/06/2021,3877237-KZ37498,"3,156.75",XMA LTD.
Adult and Health Services,Adults Excluded,Supplies and Services,338027,Services,08/06/2021,3877150-01085,"2,370.00",REDACTED - PAYMENT TO INDIVIDUAL
"Regeneration, Economy and Growth",Corporate Property and Land,Fees,901002,Consultants fees 901002,08/06/2021,3876973-131148/22,"2,000.00",FAIRHURST (CONSULTING ENGINEERS).
"Regeneration, Economy and Growth",Development and Housing,Fees,901002,Consultants fees 901002,08/06/2021,3877007-9630,"1,001.95",HOWARTH LITCHFIELD PARTNERSHIP LTD.
Children and Young Peoples Services,Head of Education and Skills,Transport,230034,Contract Hire,08/06/2021,3877102-MAY2021/4420,"1,900.38",ND TAXIS.
Children and Young Peoples Services,Head of Education and Skills,Transport,230034,Contract Hire,08/06/2021,3877065-34340521,"1,406.00",MEKLEC CARS.
Children and Young Peoples Services,Head of Education and Skills,Transport,230034,Contract Hire,08/06/2021,3877031-241,848.00,JOHN ROBSON T/A ACE TAXIS.
Children and Young Peoples Services,Head of Education and Skills,Transport,230034,Contract Hire,08/06/2021,3877091-MAY21-4423,"1,746.10",MR MARK WILE T/A HARRY`S TAXIS.
Children and Young Peoples Services,Head of Education and Skills,Transport,230034,Contract Hire,08/06/2021,3877187-069,"1,656.23",STEVEN HENDERSON T/A HENDYS TAXIS.
Children and Young Peoples Services,Head of Education and Skills,Transport,230034,Contract Hire,08/06/2021,3877132-722,"2,353.34",PETERLEE EXECUTIVE CARS.
Children and Young Peoples Services,Head of Education and Skills,Transport,230034,Contract Hire,08/06/2021,3877076-375,"1,292.00",MICKS TAXIS - MURTON.
Children and Young Peoples Services,Head of Education and Skills,Transport,230034,Contract Hire,08/06/2021,3877025-2121,"1,170.02",JDS PRIVATE HIRE DURHAM.
Children and Young Peoples Services,Head of Education and Skills,Transport,230034,Contract Hire,08/06/2021,3877086-KDK/MAY21,"1,421.58",MR IAN KELSEY T/A KDK TAXIS.
Children and Young Peoples Services,Head of Education and Skills,Transport,230034,Contract Hire,08/06/2021,3877138-41554,"1,254.00",PHOENIX TAXIS T/A PRATT`S TAXIS.
Children and Young Peoples Services,Head of Education and Skills,Transport,230034,Contract Hire,08/06/2021,3877208-6-4406-MAY21,"1,254.00",TONYS TAXIS (A BIRCH).
Children and Young Peoples Services,Head of Education and Skills,Transport,230034,Contract Hire,08/06/2021,3876909-04229,"1,200.00",ATLAS TAXIS CONSETT.
Children and Young Peoples Services,Head of Education and Skills,Transport,230034,Contract Hire,08/06/2021,3877023-93,"2,196.00",JAYS TAXIS/JOHN GARLAND (TAXIS).
Children and Young Peoples Services,Head of Education and Skills,Transport,230034,Contract Hire,08/06/2021,3877094-MAY21-1279,"1,368.00",MR RICHARD STANDLEY T/A RS TAXI SERVICES.
Children and Young Peoples Services,Head of Education and Skills,Transport,230034,Contract Hire,08/06/2021,3877032-0008-MAY21,"1,320.50",JORA SINGH TAXIS.
Children and Young Peoples Services,Head of Education and Skills,Transport,230034,Contract Hire,08/06/2021,3877025-2120,"1,330.00",JDS PRIVATE HIRE DURHAM.
Children and Young Peoples Services,Head of Education and Skills,Transport,230034,Contract Hire,08/06/2021,3877076-371,"1,296.00",MICKS TAXIS - MURTON.
Children and Young Peoples Services,Head of Education and Skills,Transport,230034,Contract Hire,08/06/2021,3876952-SEDGEFIELD280521,893.00,D IRVING T/A BJ TAXIS.
Children and Young Peoples Services,Head of Education and Skills,Transport,230034,Contract Hire,08/06/2021,3877138-41555,960.00,PHOENIX TAXIS T/A PRATT`S TAXIS.
Children and Young Peoples Services,Head of Education and Skills,Transport,230034,Contract Hire,08/06/2021,3876905-MAY2021-03,"1,008.00",ARMSTRONG`S TAXIS.
Children and Young Peoples Services,Head of Education and Skills,Transport,230034,Contract Hire,08/06/2021,3877184-5289-MAY21,"1,102.95",STEPHEN BRACE T/A JAFFA`S TAXI (SEAHAM).
Children and Young Peoples Services,Head of Education and Skills,Transport,230035,Contract Hire,08/06/2021,3876952-WHIT280521,933.66,D IRVING T/A BJ TAXIS.
Children and Young Peoples Services,Head of Education and Skills,Transport,230007,Contract Hire,08/06/2021,3877224-9-3402,893.00,WALTONS TAXIS.
Children and Young Peoples Services,Head of Education and Skills,Transport,230007,Contract Hire,08/06/2021,3876968-4402/0521,663.75,ELLIOTTS OF TRIMDON.
Children and Young Peoples Services,Head of Education and Skills,Transport,230007,Contract Hire,08/06/2021,3876980-1531,"1,124.56",FMR SILVA PITA.
Children and Young Peoples Services,Head of Education and Skills,Transport,230007,Contract Hire,08/06/2021,3877200-4055/47,"3,534.00",TED WILFORD COACHES.
Children and Young Peoples Services,Head of Education and Skills,Transport,230007,Contract Hire,08/06/2021,3877200-4297/20,"3,534.00",TED WILFORD COACHES.
Children and Young Peoples Services,Head of Education and Skills,Transport,230007,Contract Hire,08/06/2021,3877228-16500,"3,420.00",WEARDALE MOTOR SERVICES LTD.
Children and Young Peoples Services,Head of Education and Skills,Transport,230007,Contract Hire,08/06/2021,3877138-41551,874.00,PHOENIX TAXIS T/A PRATT`S TAXIS.
Children and Young Peoples Services,Head of Education and Skills,Transport,230007,Contract Hire,08/06/2021,3877181-56851,941.64,STANLEY TRAVEL (NORTH EAST) LTD.
Children and Young Peoples Services,Head of Education and Skills,Transport,230007,Contract Hire,08/06/2021,3876909-04223,867.13,ATLAS TAXIS CONSETT.
Children and Young Peoples Services,Head of Education and Skills,Transport,230007,Contract Hire,08/06/2021,3877131-58,"1,094.40",PETER NAYLOR.
Children and Young Peoples Services,Head of Education and Skills,Transport,230007,Contract Hire,08/06/2021,3877046-29545,"2,058.84",LEE`S COACHES LTD.
Children and Young Peoples Services,Head of Education and Skills,Transport,230007,Contract Hire,08/06/2021,3877046-29547,"2,059.03",LEE`S COACHES LTD.
Children and Young Peoples Services,Head of Education and Skills,Transport,230007,Contract Hire,08/06/2021,3877046-29548,"2,059.03",LEE`S COACHES LTD.
Children and Young Peoples Services,Head of Education and Skills,Transport,230007,Contract Hire,08/06/2021,3877046-29549,"2,059.03",LEE`S COACHES LTD.
Children and Young Peoples Services,Head of Education and Skills,Transport,230007,Contract Hire,08/06/2021,3877046-29550,"2,109.38",LEE`S COACHES LTD.
Children and Young Peoples Services,Head of Education and Skills,Transport,230007,Contract Hire,08/06/2021,3877070-213,789.60,MICHAEL COBB T/A HAIL TAXIS.
Children and Young Peoples Services,Head of Education and Skills,Transport,230007,Contract Hire,08/06/2021,3877153-05,"2,452.33",RAYNERS COACHES.
Children and Young Peoples Services,Head of Education and Skills,Transport,230007,Contract Hire,08/06/2021,3877153-05-4005,"4,299.70",RAYNERS COACHES.
Children and Young Peoples Services,Head of Education and Skills,Transport,230007,Contract Hire,08/06/2021,3877076-373,684.00,MICKS TAXIS - MURTON.
Children and Young Peoples Services,Head of Education and Skills,Transport,230007,Contract Hire,08/06/2021,3877153-05-4062,"1,536.91",RAYNERS COACHES.
Children and Young Peoples Services,Head of Education and Skills,Transport,230007,Contract Hire,08/06/2021,3876952-FBEC310521,636.84,D IRVING T/A BJ TAXIS.
Children and Young Peoples Services,Head of Education and Skills,Transport,230007,Contract Hire,08/06/2021,3877227-1258-2021,"1,195.10",WAYNE`S TAXIS.
Children and Young Peoples Services,Head of Education and Skills,Transport,230007,Contract Hire,08/06/2021,3877128-1099-3037,"1,843.00",PBS TRAVEL LTD.
Children and Young Peoples Services,Head of Education and Skills,Transport,230007,Contract Hire,08/06/2021,3877131-59,"1,083.00",PETER NAYLOR.
Children and Young Peoples Services,Head of Education and Skills,Transport,230007,Contract Hire,08/06/2021,3877186-00759,"1,464.28",STEPHEN VALLANCE T/A SELECT CABS.
Children and Young Peoples Services,Head of Education and Skills,Transport,230007,Contract Hire,08/06/2021,3877133-4330-MAY,"2,179.49",PETER`S PRIVATE HIRE/PETER BEST.
Children and Young Peoples Services,Head of Education and Skills,Transport,230007,Contract Hire,08/06/2021,3876890-0511,623.20,ABC & OUSTON CABS.
Children and Young Peoples Services,Head of Education and Skills,Transport,230007,Contract Hire,08/06/2021,3876980-1530,"1,186.93",FMR SILVA PITA.
Children and Young Peoples Services,Head of Education and Skills,Transport,230007,Contract Hire,08/06/2021,3877021-DCC002,"1,843.00",JAMES EVANS INDEPENDENT TAXIS.
Children and Young Peoples Services,Head of Education and Skills,Transport,230007,Contract Hire,08/06/2021,3877076-370,"1,656.00",MICKS TAXIS - MURTON.
Children and Young Peoples Services,Head of Education and Skills,Transport,230007,Contract Hire,08/06/2021,3877085-222,"1,567.50",REDACTED - PAYMENT TO INDIVIDUAL
Children and Young Peoples Services,Head of Education and Skills,Transport,230007,Contract Hire,08/06/2021,3876995-101,672.00,HAMLET TAXIS.
Children and Young Peoples Services,Head of Education and Skills,Transport,230007,Contract Hire,08/06/2021,3877066-0008MAY21,"1,330.00",MGD TAXIS.
Children and Young Peoples Services,Head of Education and Skills,Transport,230007,Contract Hire,08/06/2021,3877076-369,980.97,MICKS TAXIS - MURTON.
Children and Young Peoples Services,Head of Education and Skills,Transport,230007,Contract Hire,08/06/2021,3877165-SKS2122-15,"1,045.00",SAMUEL KINGS SCHOOL.
Children and Young Peoples Services,Head of Education and Skills,Transport,230007,Contract Hire,08/06/2021,3877168-MAY21,"2,152.05",SHAUN MILLS T/A ASM TRAVEL.
Children and Young Peoples Services,Head of Education and Skills,Transport,230007,Contract Hire,08/06/2021,3877018-6061,713.83,J YOUNG T/A VIP TAXIS.
Children and Young Peoples Services,Head of Education and Skills,Transport,230007,Contract Hire,08/06/2021,3877046-29552,"2,004.50",LEE`S COACHES LTD.
Children and Young Peoples Services,Head of Education and Skills,Transport,230007,Contract Hire,08/06/2021,3877046-29553,"3,705.00",LEE`S COACHES LTD.
Children and Young Peoples Services,Head of Education and Skills,Transport,230007,Contract Hire,08/06/2021,3876998-HT538,"2,717.00",HARRY`S TAXI`S.
Children and Young Peoples Services,Head of Education and Skills,Transport,230007,Contract Hire,08/06/2021,3876998-HT541,"2,287.60",HARRY`S TAXI`S.
Children and Young Peoples Services,Head of Education and Skills,Transport,230007,Contract Hire,08/06/2021,3876968-5234/0521,"2,413.00",ELLIOTTS OF TRIMDON.
Children and Young Peoples Services,Head of Education and Skills,Transport,230007,Contract Hire,08/06/2021,3877101-1MAY2021,"1,733.75",NC TAXI`S.
Children and Young Peoples Services,Head of Education and Skills,Transport,230007,Contract Hire,08/06/2021,3877224-8-3334,"1,083.00",WALTONS TAXIS.
Children and Young Peoples Services,Head of Education and Skills,Transport,230007,Contract Hire,08/06/2021,3876907-843,"1,746.00",AT TAXIS LTD.
Children and Young Peoples Services,Head of Education and Skills,Transport,230007,Contract Hire,08/06/2021,3877131-56,"1,539.00",PETER NAYLOR.
Children and Young Peoples Services,Head of Education and Skills,Transport,230007,Contract Hire,08/06/2021,3876897-DCC082,"2,344.60",ALSTON ROAD GARAGE.
Children and Young Peoples Services,Head of Education and Skills,Transport,230007,Contract Hire,08/06/2021,3877185-6574,"2,004.50",STEPHEN MAUDE LTD T/A MAUDES COACHES.
Children and Young Peoples Services,Head of Education and Skills,Transport,230007,Contract Hire,08/06/2021,3877185-6575,"4,660.00",STEPHEN MAUDE LTD T/A MAUDES COACHES.
Children and Young Peoples Services,Head of Education and Skills,Transport,230007,Contract Hire,08/06/2021,3877002-742,"2,014.00",HEPWORTHS TRAVEL.
Children and Young Peoples Services,Head of Education and Skills,Transport,230007,Contract Hire,08/06/2021,3877228-16509,"1,539.00",WEARDALE MOTOR SERVICES LTD.
Children and Young Peoples Services,Head of Education and Skills,Transport,230007,Contract Hire,08/06/2021,3877228-16507,"2,559.60",WEARDALE MOTOR SERVICES LTD.
Children and Young Peoples Services,Head of Education and Skills,Transport,230007,Contract Hire,08/06/2021,3877133-5259-MAY,"1,787.14",PETER`S PRIVATE HIRE/PETER BEST.
Children and Young Peoples Services,Head of Education and Skills,Transport,230007,Contract Hire,08/06/2021,3877134-N103-MAY,"1,558.00",PETER`S TAXIS.
Children and Young Peoples Services,Head of Education and Skills,Transport,230003,Contract Hire,08/06/2021,3877228-16501,"3,914.00",WEARDALE MOTOR SERVICES LTD.
Children and Young Peoples Services,Head of Education and Skills,Transport,230003,Contract Hire,08/06/2021,3877046-29551,"4,275.00",LEE`S COACHES LTD.
Children and Young Peoples Services,Head of Education and Skills,Transport,230003,Contract Hire,08/06/2021,3877160-ROXDCC238,"8,171.90",ROXBYS BUS HIRE.
Children and Young Peoples Services,Head of Education and Skills,Transport,230003,Contract Hire,08/06/2021,3877160-ROXDCC240,"2,584.00",ROXBYS BUS HIRE.
Children and Young Peoples Services,Head of Education and Skills,Transport,230003,Contract Hire,08/06/2021,3877200-5030/47-MAY,"3,629.00",TED WILFORD COACHES.
Children and Young Peoples Services,Head of Education and Skills,Transport,230003,Contract Hire,08/06/2021,3876915-STJOHNS8030521,"2,774.00",BELL BROTHERS TRAVEL.
Children and Young Peoples Services,Head of Education and Skills,Transport,230003,Contract Hire,08/06/2021,3877002-743,"2,907.00",HEPWORTHS TRAVEL.
Children and Young Peoples Services,Head of Education and Skills,Transport,230003,Contract Hire,08/06/2021,3877046-29544,"4,474.50",LEE`S COACHES LTD.
Children and Young Peoples Services,Head of Education and Skills,Transport,230003,Contract Hire,08/06/2021,3877228-16506,"4,465.00",WEARDALE MOTOR SERVICES LTD.
Children and Young Peoples Services,Head of Education and Skills,Transport,230009,Contract Hire,08/06/2021,3877025-2124,"1,593.72",JDS PRIVATE HIRE DURHAM.
Children and Young Peoples Services,Head of Education and Skills,Transport,230009,Contract Hire,08/06/2021,3877025-2132,"1,456.81",JDS PRIVATE HIRE DURHAM.
Dedicated Schools Grant BG0015,DSG High Needs Block,Transport,230009,Contract Hire,08/06/2021,3876890-O610,"1,219.00",ABC & OUSTON CABS.
Dedicated Schools Grant BG0015,DSG High Needs Block,Transport,230009,Contract Hire,08/06/2021,3876986-32,"1,632.66",GARY BRUNTON`S TAXI.
Dedicated Schools Grant BG0015,DSG High Needs Block,Transport,230009,Contract Hire,08/06/2021,3877188-MAY21-G008,"1,330.00",STEVEN OWEN TAXI.
Children and Young Peoples Services,Head of Education and Skills,Transport,230009,Contract Hire,08/06/2021,3877092-165,"1,178.00",MR NEIL LEONARD T/A LENNY`S TAXIS.
Children and Young Peoples Services,Head of Education and Skills,Transport,230009,Contract Hire,08/06/2021,3877012-3-G026,756.00,IAN SHEPLEY T/A RIVERSIDE TAXIS.
Children and Young Peoples Services,Head of Education and Skills,Transport,230009,Contract Hire,08/06/2021,3877012-3-7370,608.00,IAN SHEPLEY T/A RIVERSIDE TAXIS.
Children and Young Peoples Services,Head of Education and Skills,Transport,230009,Contract Hire,08/06/2021,3877086-KDK/MAY212,883.12,MR IAN KELSEY T/A KDK TAXIS.
Children and Young Peoples Services,Head of Education and Skills,Transport,230009,Contract Hire,08/06/2021,3877132-725,798.00,PETERLEE EXECUTIVE CARS.
Children and Young Peoples Services,Head of Education and Skills,Transport,230009,Contract Hire,08/06/2021,3877228-16508,"3,621.21",WEARDALE MOTOR SERVICES LTD.
Children and Young Peoples Services,Head of Education and Skills,Transport,230006,Contract Hire,08/06/2021,3877132-726,"2,698.00",PETERLEE EXECUTIVE CARS.
Children and Young Peoples Services,Head of Education and Skills,Transport,230006,Contract Hire,08/06/2021,3877024-40-APRIL,600.00,JAYS TAXIS/JOHN GARLAND (TAXIS).
Children and Young Peoples Services,Head of Education and Skills,Transport,230006,Contract Hire,08/06/2021,3877024-40-APRIL2,"1,200.00",JAYS TAXIS/JOHN GARLAND (TAXIS).
Children and Young Peoples Services,Head of Education and Skills,Transport,230006,Contract Hire,08/06/2021,3877024-40-JUNE,"3,300.00",JAYS TAXIS/JOHN GARLAND (TAXIS).
Children and Young Peoples Services,Head of Education and Skills,Transport,230006,Contract Hire,08/06/2021,3877024-40-MAY,"2,250.00",JAYS TAXIS/JOHN GARLAND (TAXIS).
Children and Young Peoples Services,Head of Education and Skills,Transport,230006,Contract Hire,08/06/2021,3877208-9-A105-MAY21,"2,927.29",TONYS TAXIS (A BIRCH).
Children and Young Peoples Services,Head of Education and Skills,Transport,230006,Contract Hire,08/06/2021,3876885-52120,"2,904.00",24/7 TAXI SERVICES LTD.
Children and Young Peoples Services,Head of Education and Skills,Transport,230006,Contract Hire,08/06/2021,3876921-F738-MAY21,"1,753.36",BIG MAMA`S TAXI.
Children and Young Peoples Services,Head of Education and Skills,Transport,230006,Contract Hire,08/06/2021,3876925-95-MAY21,615.00,BL TAXIS.
Children and Young Peoples Services,Head of Education and Skills,Transport,230006,Contract Hire,08/06/2021,3876939-14,838.00,CHRISTOPHER MADDISON (TAXI).
Children and Young Peoples Services,Head of Education and Skills,Transport,230006,Contract Hire,08/06/2021,3876993-009-F782-MAY21,672.00,GUY`S TAXIS.
Children and Young Peoples Services,Head of Education and Skills,Transport,230006,Contract Hire,08/06/2021,3876993-009-MAY21,"1,044.00",GUY`S TAXIS.
Children and Young Peoples Services,Head of Education and Skills,Transport,230006,Contract Hire,08/06/2021,3877018-6063,517.00,J YOUNG T/A VIP TAXIS.
Children and Young Peoples Services,Head of Education and Skills,Transport,230006,Contract Hire,08/06/2021,3877018-6065,"1,133.40",J YOUNG T/A VIP TAXIS.
Children and Young Peoples Services,Head of Education and Skills,Transport,230006,Contract Hire,08/06/2021,3877018-6067,"1,208.00",J YOUNG T/A VIP TAXIS.
Children and Young Peoples Services,Head of Education and Skills,Transport,230006,Contract Hire,08/06/2021,3877031-240,892.10,JOHN ROBSON T/A ACE TAXIS.
Children and Young Peoples Services,Head of Education and Skills,Transport,230006,Contract Hire,08/06/2021,3877087-JB/05/21,"1,440.00",MR J AGAR T/A PARK TAXIS.
Children and Young Peoples Services,Head of Education and Skills,Transport,230006,Contract Hire,08/06/2021,3877091-MAY21-F866,790.90,MR MARK WILE T/A HARRY`S TAXIS.
Children and Young Peoples Services,Head of Education and Skills,Transport,230006,Contract Hire,08/06/2021,3877092-169,"1,188.00",MR NEIL LEONARD T/A LENNY`S TAXIS.
Children and Young Peoples Services,Head of Education and Skills,Transport,230006,Contract Hire,08/06/2021,3877095-05-21-F895,924.00,MR S DOCKERY T/A SEAN'S TAXIS.
Children and Young Peoples Services,Head of Education and Skills,Transport,230006,Contract Hire,08/06/2021,3877132-723,660.00,PETERLEE EXECUTIVE CARS.
Children and Young Peoples Services,Head of Education and Skills,Transport,230006,Contract Hire,08/06/2021,3877137-41568,770.00,PHOENIX TAXIS T/A PRATT`S TAXIS.
Children and Young Peoples Services,Head of Education and Skills,Transport,230006,Contract Hire,08/06/2021,3877138-41561,"1,878.00",PHOENIX TAXIS T/A PRATT`S TAXIS.
Children and Young Peoples Services,Head of Education and Skills,Transport,230006,Contract Hire,08/06/2021,3877138-41563,950.00,PHOENIX TAXIS T/A PRATT`S TAXIS.
Children and Young Peoples Services,Head of Education and Skills,Transport,230006,Contract Hire,08/06/2021,3877138-41565,"1,404.00",PHOENIX TAXIS T/A PRATT`S TAXIS.
Children and Young Peoples Services,Head of Education and Skills,Transport,230006,Contract Hire,08/06/2021,3877138-41569,672.00,PHOENIX TAXIS T/A PRATT`S TAXIS.
Children and Young Peoples Services,Head of Education and Skills,Transport,230006,Contract Hire,08/06/2021,3877154-RDS068,533.00,RDS TAXI.
Children and Young Peoples Services,Head of Education and Skills,Transport,230006,Contract Hire,08/06/2021,3877187-070,"1,254.00",STEVEN HENDERSON T/A HENDYS TAXIS.
Children and Young Peoples Services,Head of Education and Skills,Transport,230006,Contract Hire,08/06/2021,3877190-00144,627.38,STEVES TAXIS.
Children and Young Peoples Services,Head of Education and Skills,Transport,230006,Contract Hire,08/06/2021,3877213-TC10009,608.00,TRAVEL 6.
Children and Young Peoples Services,Head of Education and Skills,Transport,230006,Contract Hire,08/06/2021,3877223-F702-MAY21,"1,634.00",WAINE SANDERSON T/A 1A CAB.
Children and Young Peoples Services,Head of Education and Skills,Transport,230006,Contract Hire,08/06/2021,3876950-110681,"3,603.60",CROFT BUSINESS SERVICES (UK) LTD T/A CROFT TAXIS.
Children and Young Peoples Services,Head of Education and Skills,Transport,230006,Contract Hire,08/06/2021,3877076-372,"1,026.00",MICKS TAXIS - MURTON.
Children and Young Peoples Services,Head of Education and Skills,Transport,230006,Contract Hire,08/06/2021,3877131-57,"1,539.00",PETER NAYLOR.
Children and Young Peoples Services,Head of Education and Skills,Transport,230006,Contract Hire,08/06/2021,3877138-41557,"1,292.00",PHOENIX TAXIS T/A PRATT`S TAXIS.
Children and Young Peoples Services,Head of Education and Skills,Transport,230006,Contract Hire,08/06/2021,3877036-1173,"2,268.00",K & R TAXIS (STANLEY).
Children and Young Peoples Services,Head of Education and Skills,Transport,230010,Contract Hire,08/06/2021,3876894-BL029-MAY2021/C,886.48,AIRPORT TRANSFER DURHAM.
Children and Young Peoples Services,Head of Education and Skills,Transport,230010,Contract Hire,08/06/2021,3876988-5B,"1,944.37",GERARD MCLOUGHLIN T/A GMAC TAXIS.
Children and Young Peoples Services,Head of Education and Skills,Transport,230010,Contract Hire,08/06/2021,3877024-44-APRIL-A,750.00,JAYS TAXIS/JOHN GARLAND (TAXIS).
Children and Young Peoples Services,Head of Education and Skills,Transport,230010,Contract Hire,08/06/2021,3877024-44-JUNE,"2,062.50",JAYS TAXIS/JOHN GARLAND (TAXIS).
Children and Young Peoples Services,Head of Education and Skills,Transport,230010,Contract Hire,08/06/2021,3877024-44-MAY,"1,406.25",JAYS TAXIS/JOHN GARLAND (TAXIS).
Children and Young Peoples Services,Head of Education and Skills,Transport,230010,Contract Hire,08/06/2021,3877025-2130,"2,814.66",JDS PRIVATE HIRE DURHAM.
Children and Young Peoples Services,Head of Education and Skills,Transport,230010,Contract Hire,08/06/2021,3877025-2144,"2,379.94",JDS PRIVATE HIRE DURHAM.
Children and Young Peoples Services,Head of Education and Skills,Transport,230010,Contract Hire,08/06/2021,3877059-INV05/202103,"2,783.27",MARK & JOHN CHISHOLM T/A (CHEVRON).
Children and Young Peoples Services,Head of Education and Skills,Transport,230010,Contract Hire,08/06/2021,3877097-9/20/21,"1,930.80",MR TERENCE DOUGHERTY T/A TERRYS TAXIS.
Children and Young Peoples Services,Head of Education and Skills,Transport,230010,Contract Hire,08/06/2021,3877191-20210002,"1,457.75",STEVE`S CABS (TAXIS).
Children and Young Peoples Services,Head of Education and Skills,Transport,230010,Contract Hire,08/06/2021,3877213-WL20020,"1,486.82",TRAVEL 6.
Children and Young Peoples Services,Head of Education and Skills,Transport,230010,Contract Hire,08/06/2021,3877230-0521,"1,649.50",WEST AUCKLAND TOWN TRAVEL (WATT).
Children and Young Peoples Services,Head of Education and Skills,Transport,230012,Contract Hire,08/06/2021,3877025-2133,"1,388.52",JDS PRIVATE HIRE DURHAM.
Children and Young Peoples Services,Head of Education and Skills,Transport,230012,Contract Hire,08/06/2021,3876889-01/05/21,"1,143.90",ABA TAXIS.
Children and Young Peoples Services,Head of Education and Skills,Transport,230012,Contract Hire,08/06/2021,3876890-O508,"1,767.00",ABC & OUSTON CABS.
Children and Young Peoples Services,Head of Education and Skills,Transport,230012,Contract Hire,08/06/2021,3877080-KDC-01052021,"2,637.77",MJ TIMNEY T/A KDC & C&M TAXIS.
Children and Young Peoples Services,Head of Education and Skills,Transport,230012,Contract Hire,08/06/2021,3877176-585,982.00,SPENNYMOOR TAXIS.
Children and Young Peoples Services,Head of Education and Skills,Transport,230012,Contract Hire,08/06/2021,3877083-0215-MAY21,920.03,REDACTED - PAYMENT TO INDIVIDUAL
Children and Young Peoples Services,Head of Education and Skills,Transport,230012,Contract Hire,08/06/2021,3877208-11-E057-MAY21,"1,580.42",TONYS TAXIS (A BIRCH).
Children and Young Peoples Services,Head of Education and Skills,Transport,230012,Contract Hire,08/06/2021,3877208-5-E041-MAY21,"1,961.56",TONYS TAXIS (A BIRCH).
Children and Young Peoples Services,Head of Education and Skills,Transport,230016,Contract Hire,08/06/2021,3877162-S101/22,"2,147.00",S & S TRAVEL LTD.
Children and Young Peoples Services,Head of Education and Skills,Transport,230016,Contract Hire,08/06/2021,3877018-6062,"1,322.00",J YOUNG T/A VIP TAXIS.
Children and Young Peoples Services,Head of Education and Skills,Transport,230016,Contract Hire,08/06/2021,3876998-HT543,"1,064.00",HARRY`S TAXI`S.
Children and Young Peoples Services,Head of Education and Skills,Transport,230016,Contract Hire,08/06/2021,3877011-IR2105002,"1,850.04",I & R EXECUTIVE TRAVEL.
Children and Young Peoples Services,Head of Education and Skills,Transport,230016,Contract Hire,08/06/2021,3877023-97,"1,948.00",JAYS TAXIS/JOHN GARLAND (TAXIS).
Children and Young Peoples Services,Head of Education and Skills,Transport,230016,Contract Hire,08/06/2021,3877156-3296,666.00,RICHARD SHANKS T/A RICHIES TAXIS.
Children and Young Peoples Services,Head of Education and Skills,Transport,230016,Contract Hire,08/06/2021,3876922-000405,"2,466.00",BIRDS TAXIS LTD.
Children and Young Peoples Services,Head of Education and Skills,Transport,230008,Contract Hire,08/06/2021,3877060-0067,"2,409.00",MARK WATSON T/A MARK`S TAXIS.
Children and Young Peoples Services,Head of Education and Skills,Transport,230008,Contract Hire,08/06/2021,3877208-10-E058-MAY21,"3,177.18",TONYS TAXIS (A BIRCH).
Children and Young Peoples Services,Head of Education and Skills,Transport,230008,Contract Hire,08/06/2021,3877232-WESTLEA280521,"1,235.00",WESTLEA TAXIS.
Children and Young Peoples Services,Head of Education and Skills,Transport,230008,Contract Hire,08/06/2021,3877093-29A-MAY21,"1,569.97",MR RAYMOND RENWICK T/A RAY`S TAXIS & MINIBUSES.
Children and Young Peoples Services,Head of Education and Skills,Transport,230008,Contract Hire,08/06/2021,3877096-068,"2,867.00",MR SCOTT MALCOLM MACKENZIE T/A SCOTTS TAXIS.
Children and Young Peoples Services,Head of Education and Skills,Transport,230008,Contract Hire,08/06/2021,3877100-043,"2,172.76",MRS SAMANTHA MACKENZIE T/A SAM`S TAXIS.
Children and Young Peoples Services,Head of Education and Skills,Transport,230008,Contract Hire,08/06/2021,3877133-E043-MAY,"1,887.90",PETER`S PRIVATE HIRE/PETER BEST.
Children and Young Peoples Services,Head of Education and Skills,Transport,230008,Contract Hire,08/06/2021,3877133-N049-MAY,"2,911.25",PETER`S PRIVATE HIRE/PETER BEST.
Children and Young Peoples Services,Head of Education and Skills,Transport,230008,Contract Hire,08/06/2021,3876886-0230,"2,318.00",A HENDERSON T/A CHUCKS TAXIS.
Children and Young Peoples Services,Head of Education and Skills,Transport,230008,Contract Hire,08/06/2021,3876907-840,"2,793.00",AT TAXIS LTD.
Children and Young Peoples Services,Head of Education and Skills,Transport,230008,Contract Hire,08/06/2021,3876908-DCC10MAY21,"3,838.00",ATLAS TAXIS BISHOP AUCKLAND.
Children and Young Peoples Services,Head of Education and Skills,Transport,230008,Contract Hire,08/06/2021,3876908-DCC9MAY21,"2,040.60",ATLAS TAXIS BISHOP AUCKLAND.
Children and Young Peoples Services,Head of Education and Skills,Transport,230008,Contract Hire,08/06/2021,3877028-28/05/21A,"1,928.50",JL EBDON. T/A DIAL-A-CAB.
Children and Young Peoples Services,Head of Education and Skills,Transport,230008,Contract Hire,08/06/2021,3877028-28/05/21B,"2,755.60",JL EBDON. T/A DIAL-A-CAB.
Children and Young Peoples Services,Head of Education and Skills,Transport,230008,Contract Hire,08/06/2021,3877092-167,"2,356.00",MR NEIL LEONARD T/A LENNY`S TAXIS.
Children and Young Peoples Services,Head of Education and Skills,Transport,230008,Contract Hire,08/06/2021,3877162-S017/50,"2,311.16",S & S TRAVEL LTD.
Children and Young Peoples Services,Head of Education and Skills,Transport,230008,Contract Hire,08/06/2021,3877162-S027/22,"2,478.80",S & S TRAVEL LTD.
Children and Young Peoples Services,Head of Education and Skills,Transport,230008,Contract Hire,08/06/2021,3877162-W056/22-MAY,"2,128.00",S & S TRAVEL LTD.
Children and Young Peoples Services,Head of Education and Skills,Transport,230008,Contract Hire,08/06/2021,3877162-W067/23,"4,227.10",S & S TRAVEL LTD.
Children and Young Peoples Services,Head of Education and Skills,Transport,230008,Contract Hire,08/06/2021,3877162-W076/22,"2,439.60",S & S TRAVEL LTD.
Children and Young Peoples Services,Head of Education and Skills,Transport,230008,Contract Hire,08/06/2021,3876958-20,"2,816.75",DEXTERS PRIVATE HIRE.
Children and Young Peoples Services,Head of Education and Skills,Transport,230008,Contract Hire,08/06/2021,3877025-2137,"1,535.20",JDS PRIVATE HIRE DURHAM.
Children and Young Peoples Services,Head of Education and Skills,Transport,230008,Contract Hire,08/06/2021,3877087-CP/05/21,"2,349.40",MR J AGAR T/A PARK TAXIS.
Children and Young Peoples Services,Head of Education and Skills,Transport,230008,Contract Hire,08/06/2021,3876914-958,"1,630.96",BEELINE MINI BUSES.
Children and Young Peoples Services,Head of Education and Skills,Transport,230008,Contract Hire,08/06/2021,3876950-110695,"2,483.49",CROFT BUSINESS SERVICES (UK) LTD T/A CROFT TAXIS.
Children and Young Peoples Services,Head of Education and Skills,Transport,230008,Contract Hire,08/06/2021,3876980-1529,"1,762.06",FMR SILVA PITA.
Children and Young Peoples Services,Head of Education and Skills,Transport,230008,Contract Hire,08/06/2021,3877024-42-JUNE,"1,320.00",JAYS TAXIS/JOHN GARLAND (TAXIS).
Children and Young Peoples Services,Head of Education and Skills,Transport,230008,Contract Hire,08/06/2021,3877024-42-MAY,900.00,JAYS TAXIS/JOHN GARLAND (TAXIS).
Children and Young Peoples Services,Head of Education and Skills,Transport,230008,Contract Hire,08/06/2021,3877025-2138,"1,904.37",JDS PRIVATE HIRE DURHAM.
Children and Young Peoples Services,Head of Education and Skills,Transport,230008,Contract Hire,08/06/2021,3877208-1-E056-MAY21,"2,052.00",TONYS TAXIS (A BIRCH).
Children and Young Peoples Services,Head of Education and Skills,Transport,230008,Contract Hire,08/06/2021,3877235-16,"3,163.12",WISS TAXIS.
Children and Young Peoples Services,Head of Education and Skills,Transport,230008,Contract Hire,08/06/2021,3876885-52114,"1,699.00",24/7 TAXI SERVICES LTD.
Children and Young Peoples Services,Head of Education and Skills,Transport,230008,Contract Hire,08/06/2021,3876905-MAY2021-01,"1,388.52",ARMSTRONG`S TAXIS.
Children and Young Peoples Services,Head of Education and Skills,Transport,230008,Contract Hire,08/06/2021,3877002-740,"1,767.00",HEPWORTHS TRAVEL.
Children and Young Peoples Services,Head of Education and Skills,Transport,230008,Contract Hire,08/06/2021,3877002-741,"1,930.40",HEPWORTHS TRAVEL.
Children and Young Peoples Services,Head of Education and Skills,Transport,230008,Contract Hire,08/06/2021,3877011-IR2105001,"3,106.92",I & R EXECUTIVE TRAVEL.
Children and Young Peoples Services,Head of Education and Skills,Transport,230008,Contract Hire,08/06/2021,3877096-066,"2,043.26",MR SCOTT MALCOLM MACKENZIE T/A SCOTTS TAXIS.
Children and Young Peoples Services,Head of Education and Skills,Transport,230008,Contract Hire,08/06/2021,3877133-E007-MAY,"1,900.00",PETER`S PRIVATE HIRE/PETER BEST.
Children and Young Peoples Services,Head of Education and Skills,Transport,230008,Contract Hire,08/06/2021,3877133-E012-MAY,"1,873.78",PETER`S PRIVATE HIRE/PETER BEST.
Children and Young Peoples Services,Head of Education and Skills,Transport,230008,Contract Hire,08/06/2021,3877133-E014-MAY,"3,456.10",PETER`S PRIVATE HIRE/PETER BEST.
Children and Young Peoples Services,Head of Education and Skills,Transport,230008,Contract Hire,08/06/2021,3877133-E035-MAY,"1,634.00",PETER`S PRIVATE HIRE/PETER BEST.
Children and Young Peoples Services,Head of Education and Skills,Transport,230008,Contract Hire,08/06/2021,3877082-E207-7,"1,729.00",REDACTED - PAYMENT TO INDIVIDUAL
Children and Young Peoples Services,Head of Education and Skills,Transport,230008,Contract Hire,08/06/2021,3877085-221,"1,518.48",REDACTED - PAYMENT TO INDIVIDUAL
Children and Young Peoples Services,Head of Education and Skills,Transport,230008,Contract Hire,08/06/2021,3877208-2-N055-MAY21,"2,420.41",TONYS TAXIS (A BIRCH).
Children and Young Peoples Services,Head of Education and Skills,Transport,230008,Contract Hire,08/06/2021,3876950-110699,"1,899.46",CROFT BUSINESS SERVICES (UK) LTD T/A CROFT TAXIS.
Children and Young Peoples Services,Head of Education and Skills,Transport,230008,Contract Hire,08/06/2021,3877023-95,"2,318.00",JAYS TAXIS/JOHN GARLAND (TAXIS).
Children and Young Peoples Services,Head of Education and Skills,Transport,230008,Contract Hire,08/06/2021,3876908-DCC14MAY2021,"1,392.00",ATLAS TAXIS BISHOP AUCKLAND.
Children and Young Peoples Services,Head of Education and Skills,Transport,230008,Contract Hire,08/06/2021,3876910-34,"2,736.00",AUCKLAND TRAVEL.
Children and Young Peoples Services,Head of Education and Skills,Transport,230008,Contract Hire,08/06/2021,3876937-5520,"2,400.03",CHIPPERS TAXIS.
Children and Young Peoples Services,Head of Education and Skills,Transport,230008,Contract Hire,08/06/2021,3876950-110683,"2,223.00",CROFT BUSINESS SERVICES (UK) LTD T/A CROFT TAXIS.
Children and Young Peoples Services,Head of Education and Skills,Transport,230008,Contract Hire,08/06/2021,3877023-94,"1,558.00",JAYS TAXIS/JOHN GARLAND (TAXIS).
Children and Young Peoples Services,Head of Education and Skills,Transport,230008,Contract Hire,08/06/2021,3877024-44-APRIL20-A,960.00,JAYS TAXIS/JOHN GARLAND (TAXIS).
Children and Young Peoples Services,Head of Education and Skills,Transport,230008,Contract Hire,08/06/2021,3877024-44-JUNE20,"2,640.00",JAYS TAXIS/JOHN GARLAND (TAXIS).
Children and Young Peoples Services,Head of Education and Skills,Transport,230008,Contract Hire,08/06/2021,3877024-44-MAY20,"1,800.00",JAYS TAXIS/JOHN GARLAND (TAXIS).
Children and Young Peoples Services,Head of Education and Skills,Transport,230008,Contract Hire,08/06/2021,3877024-96,"3,078.00",JAYS TAXIS/JOHN GARLAND (TAXIS).
Children and Young Peoples Services,Head of Education and Skills,Transport,230008,Contract Hire,08/06/2021,3877025-2125,"2,698.00",JDS PRIVATE HIRE DURHAM.
Children and Young Peoples Services,Head of Education and Skills,Transport,230008,Contract Hire,08/06/2021,3877025-2126,"2,698.00",JDS PRIVATE HIRE DURHAM.
Children and Young Peoples Services,Head of Education and Skills,Transport,230008,Contract Hire,08/06/2021,3877025-2128,"2,731.10",JDS PRIVATE HIRE DURHAM.
Children and Young Peoples Services,Head of Education and Skills,Transport,230008,Contract Hire,08/06/2021,3877031-242,"2,529.09",JOHN ROBSON T/A ACE TAXIS.
Children and Young Peoples Services,Head of Education and Skills,Transport,230008,Contract Hire,08/06/2021,3877047-025,"2,256.00",LEWIS PATTISON T/A LEWIS TAXIS.
Children and Young Peoples Services,Head of Education and Skills,Transport,230008,Contract Hire,08/06/2021,3877068-MAY,"1,360.97",MICHAEL A BODDY T/A MBS TAXIS.
Children and Young Peoples Services,Head of Education and Skills,Transport,230008,Contract Hire,08/06/2021,3877069-MAY21-A032,"3,038.00",MICHAEL ANDERSON T/A TAXI DURHAM.
Children and Young Peoples Services,Head of Education and Skills,Transport,230008,Contract Hire,08/06/2021,3877096-069,"2,888.00",MR SCOTT MALCOLM MACKENZIE T/A SCOTTS TAXIS.
Children and Young Peoples Services,Head of Education and Skills,Transport,230008,Contract Hire,08/06/2021,3876998-HT539,"2,318.00",HARRY`S TAXI`S.
Children and Young Peoples Services,Head of Education and Skills,Transport,230008,Contract Hire,08/06/2021,3876950-110694,"2,720.61",CROFT BUSINESS SERVICES (UK) LTD T/A CROFT TAXIS.
Children and Young Peoples Services,Head of Education and Skills,Transport,230008,Contract Hire,08/06/2021,3876950-110696,"3,553.00",CROFT BUSINESS SERVICES (UK) LTD T/A CROFT TAXIS.
Children and Young Peoples Services,Head of Education and Skills,Transport,230008,Contract Hire,08/06/2021,3876998-HT542-1,984.00,HARRY`S TAXI`S.
Children and Young Peoples Services,Head of Education and Skills,Transport,230008,Contract Hire,08/06/2021,3876998-HT542-2,574.00,HARRY`S TAXI`S.
Children and Young Peoples Services,Head of Education and Skills,Transport,230008,Contract Hire,08/06/2021,3877040-009MAY21,"2,149.24",KEVIN HALL T/A KDH TAXIS.
Children and Young Peoples Services,Head of Education and Skills,Transport,230008,Contract Hire,08/06/2021,3877089-JK27715,"2,508.00",MR JOHN KNIGHTON T/A JK TAXIS.
Children and Young Peoples Services,Head of Education and Skills,Transport,230008,Contract Hire,08/06/2021,3877096-067,"2,138.26",MR SCOTT MALCOLM MACKENZIE T/A SCOTTS TAXIS.
Children and Young Peoples Services,Head of Education and Skills,Transport,230008,Contract Hire,08/06/2021,3877227-1260-2021,"1,558.19",WAYNE`S TAXIS.
Children and Young Peoples Services,Head of Education and Skills,Transport,230008,Contract Hire,08/06/2021,3876898-20,"2,413.00",AMANDA SMITH T/A WEARDALE WHEELS.
Children and Young Peoples Services,Head of Education and Skills,Transport,230008,Contract Hire,08/06/2021,3876908-DCC03MAY21,"2,508.00",ATLAS TAXIS BISHOP AUCKLAND.
Children and Young Peoples Services,Head of Education and Skills,Transport,230008,Contract Hire,08/06/2021,3876908-DCC7MAY2021,"3,203.78",ATLAS TAXIS BISHOP AUCKLAND.
Children and Young Peoples Services,Head of Education and Skills,Transport,230008,Contract Hire,08/06/2021,3876908-DCC8MAY21,"3,405.18",ATLAS TAXIS BISHOP AUCKLAND.
Children and Young Peoples Services,Head of Education and Skills,Transport,230008,Contract Hire,08/06/2021,3876922-000404,"1,520.00",BIRDS TAXIS LTD.
Children and Young Peoples Services,Head of Education and Skills,Transport,230008,Contract Hire,08/06/2021,3876953-0521-001,"1,923.94",DCM TAXIS.
Children and Young Peoples Services,Head of Education and Skills,Transport,230008,Contract Hire,08/06/2021,3877025-2148,"2,489.00",JDS PRIVATE HIRE DURHAM.
Children and Young Peoples Services,Head of Education and Skills,Transport,230008,Contract Hire,08/06/2021,3877025-2149,"1,748.00",JDS PRIVATE HIRE DURHAM.
Children and Young Peoples Services,Head of Education and Skills,Transport,230008,Contract Hire,08/06/2021,3877081-0009-A,730.38,MR A MILLWARD T/A SWISS CABS PRIVATE HIRE.
Children and Young Peoples Services,Head of Education and Skills,Transport,230008,Contract Hire,08/06/2021,3877081-0009-B,"1,549.99",MR A MILLWARD T/A SWISS CABS PRIVATE HIRE.
Children and Young Peoples Services,Head of Education and Skills,Transport,230008,Contract Hire,08/06/2021,3877146-1365,"1,122.00",PODA TAXIS LTD.
Children and Young Peoples Services,Head of Education and Skills,Transport,230008,Contract Hire,08/06/2021,3877146-1365-M037,816.00,PODA TAXIS LTD.
Children and Young Peoples Services,Head of Education and Skills,Transport,230008,Contract Hire,08/06/2021,3877153-05-W042,"1,909.50",RAYNERS COACHES.
Children and Young Peoples Services,Head of Education and Skills,Transport,230008,Contract Hire,08/06/2021,3877162-S009/22,"2,758.80",S & S TRAVEL LTD.
Children and Young Peoples Services,Head of Education and Skills,Transport,230008,Contract Hire,08/06/2021,3877162-W032/22,"2,717.00",S & S TRAVEL LTD.
Children and Young Peoples Services,Head of Education and Skills,Transport,230008,Contract Hire,08/06/2021,3877226-0003030,"2,154.60",WATSON OF SPENNYMOOR.
Children and Young Peoples Services,Head of Education and Skills,Transport,230008,Contract Hire,08/06/2021,3877226-0003031,"2,475.20",WATSON OF SPENNYMOOR.
Children and Young Peoples Services,Head of Education and Skills,Transport,230008,Contract Hire,08/06/2021,3877228-16502,"2,966.85",WEARDALE MOTOR SERVICES LTD.
Children and Young Peoples Services,Head of Education and Skills,Transport,230008,Contract Hire,08/06/2021,3877228-16503,"2,967.04",WEARDALE MOTOR SERVICES LTD.
Children and Young Peoples Services,Head of Education and Skills,Transport,230008,Contract Hire,08/06/2021,3877228-16504,"3,553.00",WEARDALE MOTOR SERVICES LTD.
Children and Young Peoples Services,Head of Education and Skills,Transport,230008,Contract Hire,08/06/2021,3877228-16505,"3,914.00",WEARDALE MOTOR SERVICES LTD.
Children and Young Peoples Services,Head of Education and Skills,Transport,230008,Contract Hire,08/06/2021,3877235-09-N324,"2,318.00",WISS TAXIS.
Children and Young Peoples Services,Head of Education and Skills,Transport,230008,Contract Hire,08/06/2021,3877056-52,"2,318.00",M&C`S CABS LTD.
Children and Young Peoples Services,Head of Education and Skills,Transport,230008,Contract Hire,08/06/2021,3876890-0509,"1,964.70",ABC & OUSTON CABS.
Children and Young Peoples Services,Head of Education and Skills,Transport,230008,Contract Hire,08/06/2021,3876914-959,"1,877.58",BEELINE MINI BUSES.
Children and Young Peoples Services,Head of Education and Skills,Transport,230008,Contract Hire,08/06/2021,3877025-2129,"3,002.00",JDS PRIVATE HIRE DURHAM.
Children and Young Peoples Services,Head of Education and Skills,Transport,230008,Contract Hire,08/06/2021,3877025-2134,"1,487.34",JDS PRIVATE HIRE DURHAM.
Children and Young Peoples Services,Head of Education and Skills,Transport,230008,Contract Hire,08/06/2021,3877025-2135,"1,636.56",JDS PRIVATE HIRE DURHAM.
Children and Young Peoples Services,Head of Education and Skills,Transport,230008,Contract Hire,08/06/2021,3877025-2136,"1,487.70",JDS PRIVATE HIRE DURHAM.
Children and Young Peoples Services,Head of Education and Skills,Transport,230008,Contract Hire,08/06/2021,3877025-2139,"1,332.00",JDS PRIVATE HIRE DURHAM.
Children and Young Peoples Services,Head of Education and Skills,Transport,230008,Contract Hire,08/06/2021,3877025-2140,"1,656.00",JDS PRIVATE HIRE DURHAM.
Children and Young Peoples Services,Head of Education and Skills,Transport,230008,Contract Hire,08/06/2021,3877025-2142,"2,232.72",JDS PRIVATE HIRE DURHAM.
Children and Young Peoples Services,Head of Education and Skills,Transport,230008,Contract Hire,08/06/2021,3877025-2143,"1,260.00",JDS PRIVATE HIRE DURHAM.
Children and Young Peoples Services,Head of Education and Skills,Transport,230008,Contract Hire,08/06/2021,3877036-1172,"2,370.00",K & R TAXIS (STANLEY).
Children and Young Peoples Services,Head of Education and Skills,Transport,230008,Contract Hire,08/06/2021,3877036-1178,"2,270.16",K & R TAXIS (STANLEY).
Children and Young Peoples Services,Head of Education and Skills,Transport,230008,Contract Hire,08/06/2021,3877036-1179,"1,944.00",K & R TAXIS (STANLEY).
Children and Young Peoples Services,Head of Education and Skills,Transport,230008,Contract Hire,08/06/2021,3877053-M032-MAY21,"2,407.30",LORRAINES TAXIS.
Children and Young Peoples Services,Head of Education and Skills,Transport,230008,Contract Hire,08/06/2021,3877092-166,"1,627.38",MR NEIL LEONARD T/A LENNY`S TAXIS.
Children and Young Peoples Services,Head of Education and Skills,Transport,230008,Contract Hire,08/06/2021,3877092-172,"2,821.68",MR NEIL LEONARD T/A LENNY`S TAXIS.
Children and Young Peoples Services,Head of Education and Skills,Transport,230008,Contract Hire,08/06/2021,3877093-28B-MAY21,"1,563.66",MR RAYMOND RENWICK T/A RAY`S TAXIS & MINIBUSES.
Children and Young Peoples Services,Head of Education and Skills,Transport,230008,Contract Hire,08/06/2021,3877127-M012310521,"1,427.40",PB PRIVATE HIRE.
Children and Young Peoples Services,Head of Education and Skills,Transport,230008,Contract Hire,08/06/2021,3877133-M023-MAY,"1,332.00",PETER`S PRIVATE HIRE/PETER BEST.
Children and Young Peoples Services,Head of Education and Skills,Transport,230008,Contract Hire,08/06/2021,3877138-41572,"2,170.40",PHOENIX TAXIS T/A PRATT`S TAXIS.
Children and Young Peoples Services,Head of Education and Skills,Transport,230008,Contract Hire,08/06/2021,3877146-1364,"1,588.51",PODA TAXIS LTD.
Children and Young Peoples Services,Head of Education and Skills,Transport,230008,Contract Hire,08/06/2021,3877146-1364-E039,"1,010.87",PODA TAXIS LTD.
Children and Young Peoples Services,Head of Education and Skills,Transport,230008,Contract Hire,08/06/2021,3877153-05-M008,"2,509.20",RAYNERS COACHES.
Children and Young Peoples Services,Head of Education and Skills,Transport,230008,Contract Hire,08/06/2021,3876908-DCC04MAY21,"2,508.00",ATLAS TAXIS BISHOP AUCKLAND.
Children and Young Peoples Services,Head of Education and Skills,Transport,230008,Contract Hire,08/06/2021,3876985-22810,"2,211.00",GARNETTS LTD (COACHES).
Children and Young Peoples Services,Head of Education and Skills,Transport,230008,Contract Hire,08/06/2021,3876985-22810/A,"1,561.12",GARNETTS LTD (COACHES).
Children and Young Peoples Services,Head of Education and Skills,Transport,230008,Contract Hire,08/06/2021,3877025-2146,"2,755.00",JDS PRIVATE HIRE DURHAM.
Children and Young Peoples Services,Head of Education and Skills,Transport,230008,Contract Hire,08/06/2021,3877048-008-E206,"1,995.00",LIMASEC LTD T/A LIMA TRANSPORT.
Children and Young Peoples Services,Head of Education and Skills,Transport,230008,Contract Hire,08/06/2021,3877084-24D,"2,490.14",MR G FREELAND T/A HUNWICK CARS.
Children and Young Peoples Services,Head of Education and Skills,Transport,230008,Contract Hire,08/06/2021,3877092-171,"1,900.00",MR NEIL LEONARD T/A LENNY`S TAXIS.
Children and Young Peoples Services,Head of Education and Skills,Transport,230008,Contract Hire,08/06/2021,3877105-268,"1,938.00",NEVILLE FORBES T/A FORBES TAXIS.
Children and Young Peoples Services,Head of Education and Skills,Transport,230008,Contract Hire,08/06/2021,3877138-41571,"1,862.00",PHOENIX TAXIS T/A PRATT`S TAXIS.
Children and Young Peoples Services,Head of Education and Skills,Transport,230008,Contract Hire,08/06/2021,3877164-TAS0362021/JD,"1,748.00",SAFELINE TRAVEL.
Children and Young Peoples Services,Head of Education and Skills,Transport,230008,Contract Hire,08/06/2021,3877164-TAS362021/CM,"2,020.08",SAFELINE TRAVEL.
Children and Young Peoples Services,Head of Education and Skills,Transport,230008,Contract Hire,08/06/2021,3877176-AL586,"2,445.30",SPENNYMOOR TAXIS.
Children and Young Peoples Services,Head of Education and Skills,Transport,230008,Contract Hire,08/06/2021,3876890-0507,"2,049.72",ABC & OUSTON CABS.
Children and Young Peoples Services,Head of Education and Skills,Transport,230008,Contract Hire,08/06/2021,3876998-HT540,"2,508.00",HARRY`S TAXI`S.
Children and Young Peoples Services,Head of Education and Skills,Transport,230008,Contract Hire,08/06/2021,3877162-W014/23,"2,869.50",S & S TRAVEL LTD.
Children and Young Peoples Services,Head of Education and Skills,Transport,230008,Contract Hire,08/06/2021,3877215-19-W064,"2,013.24",TRIDENT TAXIS.
"Regeneration, Economy and Growth",Transport and Contracted Services,Third Party Payments,430109,Rendered by Private Contractors,08/06/2021,3877147-IN16157QTDC,"1,950.00",Q-FREE (BRISTOL) UK LTD.
"Regeneration, Economy and Growth",Business Durham CL0850,Third Party Payments,460305,Contract Payments,08/06/2021,3877219-RED-06-2021-053,"25,261.50",UMI COMMERCIAL LTD.
Neighbourhoods and Climate Change,Environmental Services,Third Party Payments,430120,Rendered by Private Contractors,08/06/2021,3876975-CTIN06644426,"5,895.77",FINNING (UK) LTD.
